Workbook

Sheet Disclaimer
B2: Select Language: | C2: English
B3: Select Currency | C3: USD($)
B6: ='Translation '!A715 -> Disclaimer
B7: ='Translation '!A716 -> This tool was prepared as an account of work sponsored by an agency of the United States Government. Neither the United States Government nor any agency thereof, nor any of their employees, makes any warranty, express or implied, or assumes any legal liability or responsibility for the accuracy, completeness, or usefulness of any information, apparatus, product, or process disclosed, or represents that its use would not infringe privately owned rights. Reference herein to any specific commercial product, process, or service by trade name, trademark, manufacturer, or otherwise, does not necessarily constitute or imply its endorsement, recommendation, or favoring by the United States Government or any agency thereof. The views and opinions of authors expressed herein do not necessarily state or reflect those of the United States Government or any agency thereof.

Sheet Instruction
A1: ='Translation '!A2 -> Plant Energy Profiler Tool - Instructions
A2: ='Translation '!A3 -> Color Scheme
A3: ='Translation '!A4 -> Green | B3: ='Translation '!A7 -> User input | D3: ='Translation '!A9 -> User input required
A4: ='Translation '!A5 -> Pink | B4: ='Translation '!A7 -> User input | D4: ='Translation '!A10 -> Drop down list
A5: Grey | B5: ='Translation '!A8 -> NO User Input | D5: ='Translation '!A11 -> Formula inserted
A7: For a detailed walkthrough of the tool, please refer to the tutorial
A9: ='Translation '!A12 -> Content
A10: ='Translation '!A13 -> Tab Title | B10: ='Translation '!A14 -> User Information | D10: ='Translation '!A15 -> Contains Instruction on how to fill the data collection sheet
A11: ='Translation '!A16 -> Basic Info (Mandatory Data) | B11: ='Translation '!A7 -> User input | D11: ='Translation '!A27 -> Please input information on:
D12: ='Translation '!A28 -> Industry Type
D13: ='Translation '!A29 -> Location and Contact info for the plant
D14: ='Translation '!A30 -> Hours of operation
D15: ='Translation '!A31 -> General energy management questions
A16: ='Translation '!A17 -> Energy & Production (Mandatory Data) | B16: ='Translation '!A7 -> User input | D16: ='Translation '!A32 -> Please input information on:
D17: ='Translation '!A33 -> Energy Consumption of plant for 2 consecutive years
D18: ='Translation '!A34 -> Electricity and fuel prices
D19: ='Translation '!A35 -> Energy source for major equipment
A20: ='Translation '!A18 -> Energy Use System (Mandatory Data) | B20: ='Translation '!A7 -> User input | D20: ='Translation '!A36 -> Please input information on:
D21: ='Translation '!A37 -> Energy Systems present in a plant, their energy consumption, annual cost running the systems
D22: ='Translation '!A38 -> Rating of major Equipment and their Annual Operating hours.
A23: ='Translation '!A19 -> Energy Saving Opportunities (Mandatory Data) | B23: ='Translation '!A7 -> User input | D23: ='Translation '!A39 -> Use this screen to characterize the potential energy savings opportunities for the various major systems in your plant.
A25: ='Translation '!A20 -> CHP (Scorecard) | B25: ='Translation '!A7 -> User input | D25: ='Translation '!A40 -> Please answer the questions in this form if the CHP system is present in your plant
A26: ='Translation '!A21 -> Compressed Air (Scorecard) | B26: ='Translation '!A7 -> User input | D26: ='Translation '!A41 -> Please answer the questions in this form if the Compressed Air system is present in your plant
A27: ='Translation '!A22 -> Process Cooling and Refrigeration (Scorecard) | B27: ='Translation '!A7 -> User input | D27: ='Translation '!A42 -> Please answer the questions in this form if the Process Cooling and Refrigeration system is present in your plant
A28: ='Translation '!A23 -> Process Heating (Scorecard) | B28: ='Translation '!A7 -> User input | D28: ='Translation '!A43 -> Please answer the questions in this form if the Process Heating system is present in your plant
A29: ='Translation '!A24 -> Pumps (Scorecard) | B29: ='Translation '!A7 -> User input | D29: ='Translation '!A44 -> Please answer the questions in this form if the Pump system is present in your plant
A30: ='Translation '!A25 -> Steam Generation Equipment (Scorecard) | B30: ='Translation '!A7 -> User input | D30: ='Translation '!A45 -> Please answer the questions in this form if the Steam Generation Equipment are present in your plant
A32: If you have any comments or questions, please contact: Thomas Wenning (wenningtj@ornl.gov) or Sachin Nimbalkar (nimbalkarsu@ornl.gov)

Sheet Basic Info
A1: ='Translation '!A46 -> Basic Plant Information
A2: ='Translation '!A47 -> Plant Contact Information:
A3: ='Translation '!A48 -> Corporation Name: | G3: ='Translation '!A56 -> Location:
A4: ='Translation '!A49 -> Plant Name: | G4: ='Translation '!A57 -> Primary Contact for Assessment:
A5: ='Translation '!A50 -> Primary Product: | G5: ='Translation '!A58 -> Address
A6: ='Translation '!A51 -> Industry Type: | G6: ='Translation '!A59 -> Phone:
A7: ='Translation '!A52 -> NAICS Code | G7: ='Translation '!A60 -> Fax-No:
A8: ='Translation '!A53 -> Specify if other: | G8: ='Translation '!A61 -> E-mail:
A9: ='Translation '!A54 -> Plant's Safety Protocol:
A12: ='Translation '!A55 -> Specific Problems or Ideas of Interest related to Plant's Energy use:
A16: ='Translation '!A62 -> Plant's Operating Schedule:
A17: ='Translation '!A63 -> Shift No. | B17: ='Translation '!A64 -> Hours of Operation/ Day | E17: ='Translation '!A65 -> Days/Week | G17: ='Translation '!A66 -> Weeks/ Year | H17: Annual Hours
A18: ='Translation '!A67 -> 1 | H18: =IF(B18*E18*G18>0,B18*E18*G18,"") -> 
A19: ='Translation '!A68 -> 2 | H19: =IF(B19*E19*G19>0,B19*E19*G19,"") -> 
A20: ='Translation '!A69 -> 3
A21: ='Translation '!A70 -> Office Hours
A22: ='Translation '!A71 -> Others
A25: ='Translation '!A72 -> Energy Management Questions: | H25: ='Translation '!A73 -> Please select the answers from the drop down list
A26: ='Translation '!A74 -> Does your company have a formal written Energy Management Plan?
A27: ='Translation '!A75 -> Have you formed Energy Management Team at your plant?
A28: ='Translation '!A76 -> Does your company have a formal method of communication in place for employees?
A29: ='Translation '!A77 -> Does your company use life cycle cost analysis to evaluate the economics of Energy Efficient equipment when making new purchase of large system?
A30: ='Translation '!A78 -> Does your company establish required payback periods for energy efficient improvement projects?

Sheet Energy & Production
A1: ='Translation '!A79 -> Plant's Energy Consumption & Production Overview
A2: ='Translation '!A80 -> Instructions:
A3: ='Translation '!A81 -> Please respond to the following questions on Plant's energy consumption and product overview.
A5: ='Translation '!A83 -> Input values in cells colored in green
A6: ='Translation '!A84 -> Select from the drop down menu in the cells colored in pink
A7: ='Translation '!A85 -> Please DO NOT insert any value in cells colored in grey
A9: ='Translation '!A837 -> Units of Measurement:
A10: ='Translation '!A838 -> Unit for Electricity | D10: ='Translation '!A841 -> Other Fuel
A11: ='Translation '!A839 -> Unit for Natural Gas | D11: ='Translation '!A842 -> Unit for Other fuel
A12: ='Translation '!A840 -> Unit for Steam | D12: ='Translation '!A843 -> Output Energy Metric
A14: ='Translation '!A86 -> Note: | B14: ='Translation '!A87 -> Please provide either monthly or annual energy and production data. While most of the PEPEx results can be generated with just the annual data, some of them graphs/tables make use of monthly data.
A15: ='Translation '!A88 -> Facility's Energy and Production Data:
A16: Data Interval
A17: ='Translation '!A89 -> Year 1 ( Baseline Year):
A18: ='Translation '!A90 -> Month | B18: ='Translation '!A91 -> Monthly Site Electricity Consumption(0) | C18: ='Translation '!A92 -> Total Monthly Electricity Cost($) | D18: ='Translation '!A93 -> Monthly Natural Gas Consumption(0) | E18: ='Translation '!A94 -> Total Monthly Natural Gas Cost ($) | F18: ='Translation '!A95 -> Monthly Steam Consumption (0) | G18: ='Translation '!$A$96 -> Total Monthly Steam Consumption Cost ($) | H18: ='Translation '!$A$97 -> Monthly Other Fuel Consumption (0) | I18: ='Translation '!$A$98 -> Total Monthly Other Fuel Cost ($) | J18: ='Translation '!A99 -> Monthly Production (Product 1) | K18: ='Translation '!A100 -> Monthly Production (Product 2) | L18: ='Translation '!A101 -> Monthly Production (Product 3)
J19: Unit | K19: Unit | L19: Unit
A20: ='Translation '!A102 -> January
A21: ='Translation '!A103 -> February
A22: ='Translation '!A104 -> March
A23: ='Translation '!A105 -> April
A24: ='Translation '!A106 -> May
A25: ='Translation '!A107 -> June
A26: ='Translation '!A108 -> July
A27: ='Translation '!A109 -> August
A28: ='Translation '!A110 -> September
A29: ='Translation '!A111 -> October
A30: ='Translation '!A112 -> November
A31: ='Translation '!A113 -> December
A32: ='Translation '!A115 -> Year 1 - Grand Total | B32: =SUM(B20:B31) -> 0 | C32: 0 | D32: 0 | E32: 0 | F32: 0 | G32: 0 | H32: 0 | I32: 0 | J32: 0 | K32: 0 | L32: 0
A33: ='Translation '!A114 -> Year 2: | B33: =B17+1 -> 1
A34: ='Translation '!A102 -> January
A35: ='Translation '!A103 -> February
A36: ='Translation '!A104 -> March
A37: ='Translation '!A105 -> April
A38: ='Translation '!A106 -> May
A39: ='Translation '!A107 -> June
A40: ='Translation '!A108 -> July
A41: ='Translation '!A109 -> August
A42: ='Translation '!A110 -> September
A43: ='Translation '!A111 -> October
A44: ='Translation '!A112 -> November
A45: ='Translation '!A113 -> December
A46: ='Translation '!A116 -> Year 2- Grand Total | B46: =SUM(B34:B45) -> 0 | C46: 0 | D46: 0 | E46: 0 | F46: 0 | G46: 0 | H46: 0 | I46: 0 | J46: 0 | K46: 0 | L46: 0
A48: ='Translation '!A80 -> Instructions: | B48: ='Translation '!A117 -> 1) For each energy stream you will need to enter account information for each meter for which you have data. For each account enter a Meter ID or name, enter the Annual Energy consumption, Energy Type, Total Annual Cost for 2 consecutive year.
B49: ='Translation '!A118 -> 2) Other Fuels include Coal, Diesel or nay other fuel that is used in Plant
A52: ='Translation '!A119 -> Total Annual Energy Consumption for the Baseline Year
A53: 1900-01-05 | D53: Note: If you do not have the annual cost spent, kindly leave the associated cells blank and provide an average unit price in cells B67-B70.
A54: ='Translation '!A120 -> Energy Type | B54: ='Translation '!A122 -> Annual Energy Use (SITE) | D54: ='Translation '!A123 -> Unit | E54: ='Translation '!A124 -> Annual Cost of Energy($) | G54: ='Translation '!A126 -> Annual Production (Product 1) | H54: ='Translation '!A127 -> Annual Production (Product 2) | I54: ='Translation '!A128 -> Annual Production (Product 3 )
G55: ='Translation '!A123 -> Unit | H55: ='Translation '!A123 -> Unit | I55: ='Translation '!A123 -> Unit
A56: ='Translation '!A129 -> Electricity | D56: =B10 -> 0
A57: ='Translation '!A130 -> Natural Gas | D57: =B11 -> 0
A58: ='Translation '!A131 -> Steam | D58: =B12 -> 0
A59: ='Translation '!A132 -> Other Fuel | D59: =F11 -> 0
A61: ='Translation '!A133 -> Unit Cost of Energy:
A62: ='Translation '!A80 -> Instructions: | B62: ='Translation '!A135 -> 1) Please provide unit costs for different energy types used in your plant if the associated costs were not provided in the section above.
B64: ='Translation '!A136 -> 2) Please provide steam cost only if user is buying steam from an utility or a third-party enterprise.
A66: ='Translation '!A134 -> Energy Type | B66: ='Translation '!A138 -> Unit Price | D66: ='Translation '!A123 -> Unit
A67: ='Translation '!A129 -> Electricity | D67: =CONCATENATE(List!G48,"/",B10) -> $/
A68: ='Translation '!A130 -> Natural Gas | D68: =CONCATENATE(List!G49,"/",B11) -> $/
A69: ='Translation '!A131 -> Steam | D69: =CONCATENATE(List!G50,"/",B12) -> $/
A70: ='Translation '!A132 -> Other Fuel | D70: =CONCATENATE(List!G51,"/",F11) -> $/
A72: ='Translation '!A139 -> Site to Source Conversion Factors
A73: ='Translation '!A80 -> Instructions: | B73: Source Energy factor is used to calculate the source energy for each energy stream. Source energy incorporates all transmission, delivery and production losses associated with each energy stream. It is calculated by all multiplying the site energy by source energy factor. The default source factor for each stream is provided , based on those used in Energy Star Portfolio Manager. User may use their own source factor for each energy stream e.g. to account for electricity produced from co-generation, renewable sources, etc. Note: PEPEx calculates all its results in terms of "site energy" unless explicitily stated.
A75: ='Translation '!A137 -> Energy Type | B75: ='Translation '!A141 -> Site-to-Source Conversion Factor
A76: ='Translation '!A129 -> Electricity | B76: 3.14
A77: ='Translation '!A130 -> Natural Gas | B77: 1.05
A78: ='Translation '!A131 -> Steam | B78: 1.2
A79: ='Translation '!A132 -> Other Fuel | B79: 1
A82: ='Translation '!A142 -> Total Annual Energy Consumption
A83: ='Translation '!A89 -> Year 1 ( Baseline Year): | B83: =B53 -> 0
A84: ='Translation '!A120 -> Energy Type | B84: =CONCATENATE("Total Annual Energy Consumption (Site) (",F12,")") -> Total Annual Energy Consumption (Site) () | D84: =CONCATENATE("Total Annual Energy Consumption (Source) (",F12,")") -> Total Annual Energy Consumption (Source) () | F84: ='Translation '!A124 -> Annual Cost of Energy($) | H84: ='Translation '!A126 -> Annual Production (Product 1) | I84: ='Translation '!A127 -> Annual Production (Product 2) | J84: ='Translation '!A128 -> Annual Production (Product 3 )
H85: =G55 -> Unit | I85: =H55 -> Unit | J85: =I55 -> Unit
A86: ='Translation '!A129 -> Electricity | B86: =IFERROR(IF(B16="Monthly",B32*'NAICS Data-Base'!G64,IF(B16="Annual",B56*'NAICS Data-Base'!G64)),0) -> FALSE | D86: =IF(B16="Monthly",B32*B76*'NAICS Data-Base'!G64,IF(B16="Annual",B56*B76*'NAICS Data-Base'!G64,"")) ->  | F86: =IFERROR(IF(OR(C32>0,E56>0)=TRUE,IF(B16="Monthly",C32,IF(B16="Annual",E56,"NA")),B67*Total_Electricity/'NAICS Data-Base'!G64),"") ->  | H86: =IFERROR(IF($B$16="Monthly",J32,IF($B$16="Annual",G56)),0) -> FALSE | I86: =IFERROR(IF($B$16="Monthly",K32,IF($B$16="Annual",H56)),0) -> FALSE | J86: FALSE
A87: ='Translation '!A130 -> Natural Gas | B87: =IFERROR(IF(B16="Monthly",D32*'NAICS Data-Base'!G65,IF(B16="Annual",B57*'NAICS Data-Base'!G65)),0) -> FALSE | D87: =IF(B16="Monthly",D32*B77*'NAICS Data-Base'!G65,IF(B16="Annual",B57*B77*'NAICS Data-Base'!G65,"")) ->  | F87: =IFERROR(IF(OR(E32>0,E57>0)=TRUE,IF(B16="Monthly",E32,IF(B16="Annual",E57,"NA")),B68*Total_NG/'NAICS Data-Base'!G65),"") -> 
A88: ='Translation '!A131 -> Steam | B88: =IFERROR(IF(B16="Monthly",F32*'NAICS Data-Base'!G66,IF(B16="Annual",B58*'NAICS Data-Base'!G66)),0) -> FALSE | D88: =IF(B16="Monthly",F32*B78*'NAICS Data-Base'!G66,IF(B16="Annual",B58*B78*'NAICS Data-Base'!G66,"")) ->  | F88: =IFERROR(IF(OR(G32>0,E58>0)=TRUE,IF(B16="Monthly",G32,IF(B16="Annual",E58,"NA")),B69*Total_Steam/'NAICS Data-Base'!G66),"") -> 
A89: ='Translation '!A132 -> Other Fuel | B89: =IFERROR(IF(B16="Monthly",H32*'NAICS Data-Base'!G67,IF(B16="Annual",B59*'NAICS Data-Base'!G67)),0) -> FALSE | D89: =IF(B16="Monthly",H32*B79*'NAICS Data-Base'!G67,IF(B16="Annual",B59*B79*'NAICS Data-Base'!G67,"")) ->  | F89: =IFERROR(IF(OR(I32>0,E59>0)=TRUE,IF(B16="Monthly",I32,IF(B16="Annual",E59,"NA")),B70*Total_OF/'NAICS Data-Base'!G67),"") -> 

Sheet Energy Use System
A1: ='Translation '!A144 -> Energy Use Systems Used in the Plant
A2: ='Translation '!A80 -> Instructions:
A3: ='Translation '!A145 -> Please respond to the following questions on energy use systems used in the plant.
A5: ='Translation '!A83 -> Input values in cells colored in green
A6: ='Translation '!A84 -> Select from the drop down menu in the cells colored in pink
A7: ='Translation '!A85 -> Please DO NOT insert any value in cells colored in grey
A8: Auto populated output cells
A10: ='Translation '!A80 -> Instructions: | B10: =CONCATENATE('Translation '!A147," ",'Translation '!B146) -> 1) Please select the systems present in your plant and choose the associated energy sources in Cells C24 - E35. Select Not Applicable (N/A) if the system is not present in your plant.
B13: ='Translation '!A148 -> 2) If known, provide the percent energy distribution by fuel type for the different systems used in your plant in cells F24 - G35. PEPEx uses "Default" numbers if this information is not provided.
B16: ='Translation '!A149 -> 3) The table Energy Use Systems Used in the Plant (Default) provides U.S. default percentages for you based on the industry that you selected in the Basic Information sheet (Tab 2).
B19: ='Translation '!A150 -> 4) Default energy distribution values are based on the Energy Information Administration 2010 Manufacturing Energy Consumption Survey (MECS) for all industries except cement. Default energy distributions for the cement industry were updated to more accurately portray the industry norm by Dr. Ali Hasanbeigi of the Lawrence Berkeley National Laboratory on December 7, 2011.
B20: ='Translation '!A151 -> 5) If the user wants to use default value kindly select the systems present in your plant and the type of energy source used for the system (in cells Cells C24 - E35.) and leave the cells F24 - G35 blank.
A22: ='Translation '!A152 -> Energy Consumption Systems Utilized in the Plant - User Defined:
A23: ='Translation '!A153 -> System | C23: ='Translation '!A154 -> Energy System in use (Please select Yes/No) | D23: ='Translation '!A155 -> Primary Energy Source | E23: ='Translation '!A156 -> Secondary Energy Source | F23: ='Translation '!A157 -> % Primary Energy Source | G23: ='Translation '!A158 -> % Secondary Energy Source | H23: ='Translation '!A159 -> Annual Consumption(0) | I23: ='Translation '!A160 -> Annual Cost($)
A24: ='Translation '!A161 -> Combined Heat and Power (Cogeneration) | H24: ='NAICS Data-Base'!J72 -> 0 | I24: ='NAICS Data-Base'!M72 -> 0
A25: ='Translation '!A162 -> Compressed Air | H25: ='NAICS Data-Base'!J73 -> 0 | I25: ='NAICS Data-Base'!M73 -> 0
A26: ='Translation '!A163 -> Electrochemical Processes | H26: ='NAICS Data-Base'!J74 -> 0 | I26: ='NAICS Data-Base'!M74 -> 0
A27: ='Translation '!A164 -> Fans and Blowers | H27: ='NAICS Data-Base'!J75 -> 0 | I27: ='NAICS Data-Base'!M75 -> 0
A28: ='Translation '!A165 -> Industrial Facilities (Lighting) | H28: ='NAICS Data-Base'!J76 -> 0 | I28: ='NAICS Data-Base'!M76 -> 0
A29: ='Translation '!A166 -> Industrial Facilities (HVAC) | H29: ='NAICS Data-Base'!J77 -> 0 | I29: ='NAICS Data-Base'!M77 -> 0
A30: ='Translation '!A167 -> Material Handling | H30: ='NAICS Data-Base'!J78 -> 0 | I30: ='NAICS Data-Base'!M78 -> 0
A31: ='Translation '!A168 -> Material Processing | H31: ='NAICS Data-Base'!J79 -> 0 | I31: ='NAICS Data-Base'!M79 -> 0
A32: ='Translation '!A169 -> Process Cooling and Refrigeration | H32: ='NAICS Data-Base'!J80 -> 0 | I32: ='NAICS Data-Base'!M80 -> 0
A33: ='Translation '!A170 -> Process Heating | H33: ='NAICS Data-Base'!J81 -> 0 | I33: ='NAICS Data-Base'!M81 -> 0
A34: ='Translation '!A171 -> Pumps | H34: ='NAICS Data-Base'!J82 -> 0 | I34: ='NAICS Data-Base'!M82 -> 0
A35: ='Translation '!A172 -> Steam Generation Equipment | H35: ='NAICS Data-Base'!J83 -> 0 | I35: ='NAICS Data-Base'!M83 -> 0
A37: ='Translation '!A174 -> Energy Consumption Systems Utilized in the Plant - Default (Default values are used when user defined values are not provided):
A38: ='Translation '!A153 -> System | C38: ='Translation '!A154 -> Energy System in use (Please select Yes/No) | D38: ='Translation '!A155 -> Primary Energy Source | E38: ='Translation '!A156 -> Secondary Energy Source | F38: ='Translation '!A157 -> % Primary Energy Source | G38: ='Translation '!A158 -> % Secondary Energy Source | H38: =H23 -> Annual Consumption(0) | I38: =I23 -> Annual Cost($)
A39: ='Translation '!A161 -> Combined Heat and Power (Cogeneration) | C39: =C24 -> 0 | D39: 0 | E39: 0 | F39: ='NAICS Data-Base'!F88 -> 0 | G39: ='NAICS Data-Base'!G88 -> 0 | H39: ='NAICS Data-Base'!J88 -> 0 | I39: ='NAICS Data-Base'!M88 -> 0
A40: ='Translation '!A162 -> Compressed Air | C40: 0 | D40: 0 | E40: 0 | F40: ='NAICS Data-Base'!F89 -> 0 | G40: ='NAICS Data-Base'!G89 -> 0 | H40: ='NAICS Data-Base'!J89 -> 0 | I40: ='NAICS Data-Base'!M89 -> 0
A41: ='Translation '!A163 -> Electrochemical Processes | C41: 0 | D41: 0 | E41: 0 | F41: ='NAICS Data-Base'!F90 -> 0 | G41: ='NAICS Data-Base'!G90 -> 0 | H41: ='NAICS Data-Base'!J90 -> 0 | I41: ='NAICS Data-Base'!M90 -> 0
A42: ='Translation '!A164 -> Fans and Blowers | C42: =C27 -> 0 | D42: 0 | E42: 0 | F42: ='NAICS Data-Base'!F91 -> 0 | G42: ='NAICS Data-Base'!G91 -> 0 | H42: ='NAICS Data-Base'!J91 -> 0 | I42: ='NAICS Data-Base'!M91 -> 0
A43: ='Translation '!A165 -> Industrial Facilities (Lighting) | C43: =C28 -> 0 | D43: 0 | E43: 0 | F43: ='NAICS Data-Base'!F92 -> 0 | G43: ='NAICS Data-Base'!G92 -> 0 | H43: ='NAICS Data-Base'!J92 -> 0 | I43: ='NAICS Data-Base'!M92 -> 0
A44: ='Translation '!A166 -> Industrial Facilities (HVAC) | C44: 0 | D44: 0 | E44: 0 | F44: ='NAICS Data-Base'!F93 -> 0 | G44: ='NAICS Data-Base'!G93 -> 0 | H44: ='NAICS Data-Base'!J93 -> 0 | I44: ='NAICS Data-Base'!M93 -> 0
A45: ='Translation '!A167 -> Material Handling | C45: 0 | D45: 0 | E45: 0 | F45: ='NAICS Data-Base'!F94 -> 0 | G45: ='NAICS Data-Base'!G94 -> 0 | H45: ='NAICS Data-Base'!J94 -> 0 | I45: ='NAICS Data-Base'!M94 -> 0
A46: ='Translation '!A168 -> Material Processing | C46: 0 | D46: 0 | E46: 0 | F46: ='NAICS Data-Base'!F95 -> 0 | G46: ='NAICS Data-Base'!G95 -> 0 | H46: ='NAICS Data-Base'!J95 -> 0 | I46: ='NAICS Data-Base'!M95 -> 0
A47: ='Translation '!A169 -> Process Cooling and Refrigeration | C47: 0 | D47: 0 | E47: 0 | F47: ='NAICS Data-Base'!F96 -> 0 | G47: ='NAICS Data-Base'!G96 -> 0 | H47: ='NAICS Data-Base'!J96 -> 0 | I47: ='NAICS Data-Base'!M96 -> 0
A48: ='Translation '!A170 -> Process Heating | C48: 0 | D48: 0 | E48: 0 | F48: ='NAICS Data-Base'!F97 -> 0 | G48: ='NAICS Data-Base'!G97 -> 0 | H48: ='NAICS Data-Base'!J97 -> 0 | I48: ='NAICS Data-Base'!M97 -> 0
A49: ='Translation '!A171 -> Pumps | C49: 0 | D49: 0 | E49: 0 | F49: ='NAICS Data-Base'!F98 -> 0 | G49: ='NAICS Data-Base'!G98 -> 0 | H49: ='NAICS Data-Base'!J98 -> 0 | I49: ='NAICS Data-Base'!M98 -> 0
A50: ='Translation '!A172 -> Steam Generation Equipment | C50: 0 | D50: 0 | E50: 0 | F50: ='NAICS Data-Base'!F99 -> 0 | G50: ='NAICS Data-Base'!G99 -> 0 | H50: ='NAICS Data-Base'!J99 -> 0 | I50: ='NAICS Data-Base'!M99 -> 0
H51: Energy use for any given source cannot exceed 100%.
D54: Modeled Energy Usage (Cross-check)
D55: Energy Source | F55: % Energy Use (Defined)
D56: ='Translation '!A129 -> Electricity | F56: =SUMIF($E$39:$E$50,"="&D56,$G$39:$G$50)+SUMIF($D$39:$D$50,"="&D56,$F$39:$F$50) -> 0
D57: ='Translation '!A130 -> Natural Gas | F57: =SUMIF($E$39:$E$50,"="&D57,$G$39:$G$50)+SUMIF($D$39:$D$50,"="&D57,$F$39:$F$50) -> 0
D58: ='Translation '!A131 -> Steam | F58: =SUMIF($E$39:$E$50,"="&D58,$G$39:$G$50)+SUMIF($D$39:$D$50,"="&D58,$F$39:$F$50) -> 0
D59: ='Translation '!A132 -> Other Fuel | F59: =SUMIF($E$39:$E$50,"="&D59,$G$39:$G$50)+SUMIF($D$39:$D$50,"="&D59,$F$39:$F$50) -> 0
A67: ='Translation '!A175 -> Rating of Major Equipment in the Plant:
A68: ='Translation '!A80 -> Instructions: | B68: ='Translation '!A176 -> Please provide the quantity, rated size, unit for rated size, % load factor and annual hours of operation for the major equipment used in the plant.
A69: ='Translation '!A153 -> System | B69: ='Translation '!A177 -> Quantity | C69: ='Translation '!A178 -> Total Rated Size | D69: ='Translation '!A179 -> Unit for Rated Size | E69: Energy Source | F69: ='Translation '!B180 -> % Load factor | G69: ='Translation '!B181 -> Annual Hours of Operation (hr/year) | H69: % System Efficiency | I69: =H23 -> Annual Consumption(0) | J69: Percent of Energy Source
A70: CHP - Primary | E70: =D24 -> 0 | I70: ='Energy Breakdown Calculations'!J5 ->  | J70: ='Energy Breakdown Calculations'!K5 -> 
A71: CHP - Secondary | E71: =E24 -> 0 | I71: ='Energy Breakdown Calculations'!J6 ->  | J71: ='Energy Breakdown Calculations'!K6 -> 
A72: Air Compressors | B72: 2 | C72: 50 | D72: HP | E72: =D25 -> 0 | F72: 0.3 | G72: 6000 | H72: 0.75 | I72: ='Energy Breakdown Calculations'!J7 ->  | J72: ='Energy Breakdown Calculations'!K7 -> 
A73: =A41 -> Electrochemical Processes | E73: =D26 -> 0 | I73: ='Energy Breakdown Calculations'!J8 ->  | J73: ='Energy Breakdown Calculations'!K8 -> 
A74: Fans and Blowers | E74: 0 | I74: ='Energy Breakdown Calculations'!J9 ->  | J74: ='Energy Breakdown Calculations'!K9 -> 
A75: Industrial Facilities (Lighting) | E75: 0 | I75: ='Energy Breakdown Calculations'!J10 ->  | J75: ='Energy Breakdown Calculations'!K10 -> 
A76: Industrial Facilities (HVAC) | E76: 0 | I76: ='Energy Breakdown Calculations'!J11 ->  | J76: ='Energy Breakdown Calculations'!K11 -> 
A77: Material Handling | E77: 0 | I77: ='Energy Breakdown Calculations'!J12 ->  | J77: ='Energy Breakdown Calculations'!K12 -> 
A78: Material Processing | E78: 0 | I78: ='Energy Breakdown Calculations'!J13 ->  | J78: ='Energy Breakdown Calculations'!K13 -> 
A79: Process Cooling and Refrigeration | E79: 0 | I79: ='Energy Breakdown Calculations'!J14 ->  | J79: ='Energy Breakdown Calculations'!K14 -> 
A80: Process Heating | E80: 0 | I80: ='Energy Breakdown Calculations'!J15 ->  | J80: ='Energy Breakdown Calculations'!K15 -> 
A81: Pumps | E81: 0 | I81: ='Energy Breakdown Calculations'!J16 ->  | J81: ='Energy Breakdown Calculations'!K16 -> 
A82: Steam Generation Equipment | E82: 0 | I82: ='Energy Breakdown Calculations'!J17 ->  | J82: ='Energy Breakdown Calculations'!K17 -> 
A83: Other

Sheet Energy Saving Opportunities
A1: ='Translation '!A189 -> Energy Savings Opportunities
A2: ='Translation '!A80 -> Instructions:
A3: ='Translation '!A190 -> Please respond to the following questions on Energy saving opportunities
A5: ='Translation '!A83 -> Input values in cells colored in green
A6: ='Translation '!A84 -> Select from the drop down menu in the cells colored in pink
A7: ='Translation '!A314 -> Please select Not Applicable (N/A) to the questions which are not applicable for the system in your plant.
A9: ='Translation '!A80 -> Instructions: | C9: ='Translation '!A191 -> 1)Use the following table to characterize the potential energy savings opportunities for the various major systems in your plant. Use the criteria listed below to categorize your energy use systems.
C10: ='Translation '!A192 -> 2) If the user wants to use scorecard to characterize the potential energy saving opportunities fro major system please select scorecard from the drop down list.
A12: ='Translation '!A193 -> High = No system assessment completed in the last three years/ Don't know
A13: ='Translation '!A194 -> Medium = System assessment completed but little or no implementation completed in the last three years
A14: ='Translation '!A195 -> Low = System assessment completed and substantial implementation completed in the last three years
A16: ='Translation '!A196 -> Energy Use System | G16: ='Translation '!A197 -> Energy Saving Opportunity Level
A17: ='Translation '!A161 -> Combined Heat and Power (Cogeneration)
A18: ='Translation '!A162 -> Compressed Air
A19: ='Translation '!A163 -> Electrochemical Processes
A20: ='Translation '!A164 -> Fans and Blowers
A21: ='Translation '!A165 -> Industrial Facilities (Lighting)
A22: ='Translation '!A166 -> Industrial Facilities (HVAC)
A23: ='Translation '!A167 -> Material Handling
A24: ='Translation '!A168 -> Material Processing
A25: ='Translation '!A169 -> Process Cooling and Refrigeration
A26: ='Translation '!A170 -> Process Heating
A27: ='Translation '!A171 -> Pumps
A28: ='Translation '!A172 -> Steam Generation Equipment
A30: ='Translation '!A80 -> Instructions: | D30: ='Translation '!A789 -> Please provide short decription of Energy efficient project implemented in your plant
A31: ='Translation '!A790 -> Name of the Project | D31: ='Translation '!A791 -> Description of the project

Sheet CHP (hidden)
A1: ='Translation '!A312 -> Combined Heat and Power (Scorecard)
A2: ='Translation '!A80 -> Instructions:
A3: ='Translation '!A313 -> Please respond to the following questions on Combined Heat and Power
A4: ='Translation '!A82 -> Please select the answer from the drop down list
A5: ='Translation '!A83 -> Input values in cells colored in green
A6: ='Translation '!A84 -> Select from the drop down menu in the cells colored in pink
A7: ='Translation '!A314 -> Please select Not Applicable (N/A) to the questions which are not applicable for the system in your plant.
A8: ='Translation '!A315 -> HRSG- Heat Recovery Steam Generator
A10: ='Translation '!A316 -> Select the Equipment present as part of CHP system: | K10: ='Translation '!A326 -> Please select the answer from the drop down list
A11: ='Translation '!A317 -> Gas Turbine | N11: =IF(AND(K13=List!A7,K16=List!A7),12,0) -> 0
A12: ='Translation '!A318 -> Unfired Heat Recovery System Generator (HRSG)
A13: ='Translation '!A319 -> Supplementary Fired HRSG
A14: ='Translation '!A320 -> Fully Fired Boilers
A15: ='Translation '!A321 -> Extraction Steam Turbogenerator
A16: ='Translation '!A322 -> Condensing Steam Turbogenerator
A17: ='Translation '!A323 -> Diesel Engine
A18: ='Translation '!A324 -> Direct Exhaust to furnace , Kiln, Dryer
A20: ='Translation '!A325 -> Questions: | K20: ='Translation '!A326 -> Please select the answer from the drop down list
A21: ='Translation '!A327 -> For Gas Turbine or Diesel generator is the exhaust gas used for : | K21: ='Translation '!A354 -> Direct heating (dryer, kiln or preheated furnace air) | N21: =IF(OR(L21=List!A7,L22=List!A7),60,0) -> 0
K22: ='Translation '!A355 -> Steam Generation
A23: ='Translation '!A328 -> If a HRSG ( Heat Recovery Steam Generator)is a part of your system, how many steam generation level are there? | K23: ='Translation '!A356 -> 1 | N23: =IF(L23=List!A7,36,0) -> 0
K24: ='Translation '!A357 -> 2 or more | N24: =IF(L24=List!$A$7,60,0) -> 0
A25: ='Translation '!A329 -> What type of deaerator do you have? | K25: ='Translation '!A358 -> External | N25: =IF(L25=List!$A$7,12,0) -> 0
K26: ='Translation '!A359 -> Internal | N26: =IF(L26=List!$A$7,18,0) -> 0
A27: ='Translation '!A330 -> If the HRSG has supplementary firing, does HRSG runs at maximum firing or maximum steam generation capacity all the time? | N27: =IF(L27=List!$A$7,60,0) -> 0
A28: ='Translation '!A331 -> Are the boiler used as the swing steam load production or the HRSG? | K28: ='Translation '!A360 -> Boiler (HRSG base loaded) | N28: =IF(L28=List!$A$7,60,0) -> 0
K29: ='Translation '!A361 -> HRSG(Boiler base loaded) | N29: =IF(L29=List!$A$7,0,0) -> 0
A30: ='Translation '!A332 -> What is your HRSG stack temperature? | K30: ='Translation '!A362 -> <=300° F | N30: =IF(L30=List!$A$7,60,0) -> 0
K31: ='Translation '!A363 -> Between 300-400° F | N31: =IF(L31=List!$A$7,48,0) -> 0
K32: ='Translation '!A364 -> >400° F | N32: =IF(L32=List!$A$7,24,0) -> 0
A33: ='Translation '!A333 -> If the HRSG is supplementary fired, what is the HRSG fires operating temperature? | K33: ='Translation '!A365 -> 1500° F or greater | N33: =IF(L33=List!$A$7,30,0) -> 0
K34: ='Translation '!A366 -> 1400° F | N34: =IF(L34=List!$A$7,12,0) -> 0
K35: ='Translation '!A367 -> 1200° F or less | N35: =IF(L35=List!$A$7,0,0) -> 0
A36: ='Translation '!A334 -> Are any of the boilers outside of the cogeneration unit operated? | K36: ='Translation '!A368 -> On hot stand by | N36: =IF(L36=List!$A$8,24,0) -> 0
K37: ='Translation '!A369 -> At minimum load | N37: =IF(L37=List!$A$8,12,0) -> 0
A38: ='Translation '!A335 -> If this is a condensing turbine do you have to run the turbine for extended periods at low to minimum load to keep it on-line? | N38: =IF(K38=List!A8,6,0) -> 0
A39: ='Translation '!A336 -> For a condensing steam turbine as a part of cogeneration unit what is the average condensing pressure? | K39: ='Translation '!A370 -> <2 in Hg | N39: =IF(L39=List!$A$7,18,0) -> 0
K40: ='Translation '!A371 -> Between 2-4 in Hg | N40: =IF(L40=List!$A$7,12,0) -> 0
K41: ='Translation '!A372 -> > 4 in Hg | N41: =IF(L41=List!$A$7,6,0) -> 0
A42: ='Translation '!A337 -> What is the average load factor (average/rated power production ratio) for cogeneration unit? | N42: =K42*25/100 -> 0
A43: ='Translation '!A338 -> Do you use evaporative cooling on the GT inlet air temp? | N43: =IF(K43=List!$A$7,24,0) -> 0
A44: ='Translation '!A339 -> Is the energy for this cooling supplied by the HRSG? | N44: =IF(K44=List!$A$8,36,0) -> 0
A45: ='Translation '!A340 -> Do you have large seasonal variation in gas turbine inlet air temp? | N45: =IF(K45=List!$A$8,12,0) -> 0
A46: ='Translation '!A341 -> Do you sell excess stem or have potential customer for excess steam? | N46: =IF(K46=List!$A$7,12,0) -> 0
A47: ='Translation '!A342 -> Do you export power to grid or external customer? | N47: 0
A48: ='Translation '!A343 -> If so what fraction of the full imported power cost do you receive? | N48: =K48*12/100 -> 0
A49: ='Translation '!A344 -> What is the average net heat rate of the cogeneration unit (Net Btu's of the fuel/kWh of power produced)? | K49: ='Translation '!A373 -> 5000 or less | N49: =IF(L49=List!$A$7,120,0) -> 0
K50: ='Translation '!A374 -> 5,000-7,000 | N50: =IF(L50=List!$A$7,96,0) -> 0
K51: ='Translation '!A375 -> >7,000 | N51: =IF(L51=List!$A$7,48,0) -> 0
K52: ='Translation '!A376 -> Don’t Know | N52: =IF(L52=List!$A$7,24,0) -> 0
A53: ='Translation '!A345 -> What is the average cogeneration unit operating stream factor (on-line time as a fraction)? | N53: =IF(ISBLANK(K53),0,IF(100/(100-K53)>100,100,(100/(100-K53)))) -> 0
A54: ='Translation '!A346 -> How many unplanned trips per year? | N54: =IF(OR(6*(7-K54)<0,ISBLANK(K54)),0,(6*(7-K54))) -> 0
A55: ='Translation '!A347 -> How often is the overall co-generation efficiency monitored? | N55: =IF(ISBLANK(K55),0,IF(K55=List!A43,60,IF(OR(K55=List!A44,K55=List!A45),30,IF(OR(K55=List!A46,K55=List!A47),12,0)))) -> 0
A56: ='Translation '!A348 -> Do you have on-line dynamic load optimization? | N56: =IF(K56=List!A7,60,0) -> 0
A57: ='Translation '!A349 -> How do you control Exhaust NOx levels? | K57: ='Translation '!A377 -> Water Injection | N57: =IF(L57=List!$A$7,36,0) -> 0
K58: ='Translation '!A378 -> Steam Injection | N58: =IF(L58=List!$A$7,36,0) -> 0
K59: ='Translation '!A379 -> Low NOx Burner | N59: =IF(L59=List!$A$7,40,0) -> 0
K60: ='Translation '!A380 -> Null | N60: =IF(L60=List!$A$7,60,0) -> 0
A61: ='Translation '!A350 -> Do you have a program for preventive maintenance of the CHP system? | K61: ='Translation '!A381 -> Routine lubrication | N61: =IF(L61=List!$A$7,2,0) -> 0
K62: ='Translation '!A382 -> Borescope inspections | N62: =IF(L62=List!$A$7,2,0) -> 0
K63: ='Translation '!A383 -> Instrument calibrations | N63: =IF(L63=List!$A$7,2,0) -> 0
K64: ='Translation '!A384 -> Blade cleaning- peanut-almond shells | N64: =IF(L64=List!$A$7,4,0) -> 0
A65: ='Translation '!A351 -> Do you have a program for predictive maintenance? | K65: ='Translation '!A385 -> Lube oil sampling | N65: =IF(L65=List!$A$7,6,0) -> 0
K66: ='Translation '!A386 -> Advanced diagnostics | N66: =IF(L66=List!$A$7,6,0) -> 0
K67: ='Translation '!A387 -> Instrument histograms | N67: =IF(L67=List!$A$7,6,0) -> 0
A68: ='Translation '!A352 -> Do you periodically re-certify cogen operators? | N68: =IF(K68=List!$A$7,6,0) -> 0
A69: ='Translation '!A353 -> Other comments or information related to Combined Heat and Power equipment, energy use, operations etc. | N69: =SUM(N11:N68) -> 0

Sheet Compressed Air (hidden)
A1: ='Translation '!A388 -> Compressed Air (Scorecard)
A2: ='Translation '!A80 -> Instructions:
A3: ='Translation '!A389 -> Please respond to the following questions on Comressed Air
A4: ='Translation '!A82 -> Please select the answer from the drop down list
A5: ='Translation '!A83 -> Input values in cells colored in green
A6: ='Translation '!A84 -> Select from the drop down menu in the cells colored in pink
A7: ='Translation '!A314 -> Please select Not Applicable (N/A) to the questions which are not applicable for the system in your plant.
A9: ='Translation '!A325 -> Questions: | H9: ='Translation '!A326 -> Please select the answer from the drop down list
A10: ='Translation '!A390 -> Have you developed a basic block diagram of the system? | K10: =IF(H10=List!$A$7,200,0) -> 0
A11: ='Translation '!A391 -> Have you developed a pressure profile of your system to determine peak demand and dynamics of demand? | K11: =IF(H11=List!$A$7,100,0) -> 0
A12: ='Translation '!A392 -> Have you estimated total compressed air flow during different shift | K12: =IF(H12=List!$A$7,100,0) -> 0
A13: ='Translation '!A393 -> Have you measured pressure at various points in the system to determine pressure drop? | K13: =IF(H13=List!$A$7,100,0) -> 0
A14: ='Translation '!A394 -> Have you measured compressed air temperature at various points in supply system? | K14: =IF(H14=List!$A$7,200,0) -> 0
A15: ='Translation '!A395 -> Have you estimated leak load? | K15: =IF(H15=List!$A$7,100,0) -> 0
A16: ='Translation '!A396 -> Do you exceed compressor and dryer manufacturer's requirements for maintenance? | K16: =IF(H16=List!$A$7,100,0) -> 0
A17: ='Translation '!A397 -> Do you periodically check ventilation openings to the compressor room to make sure they are free of obstructions? | K17: =IF(H17=List!$A$7,200,0) -> 0
A18: ='Translation '!A398 -> Do you inspect condensate drains daily? | K18: =IF(H18=List!$A$7,100,0) -> 0
A19: ='Translation '!A399 -> Do you periodically inspect and replace hoses that have become cracked or worn? | K19: =IF(H19=List!$A$7,100,0) -> 0
A20: ='Translation '!A400 -> Do you periodically inspect and replace end-use filters, check regulators, and lubricators to maintain functionality? | K20: =IF(H20=List!$A$7,200,0) -> 0
A21: ='Translation '!A401 -> Have you adjusted your compressor controls in the last year? | K21: =IF(H21=List!$A$7,100,0) -> 0
A22: ='Translation '!A402 -> Have you developed a control strategy that allow you to efficiently match supply with demand? | K22: =IF(H22=List!$A$7,300,0) -> 0
A23: ='Translation '!A403 -> Do you monitor compressor operation to avoid rapid cycling of equipment? | K23: =IF(H23=List!$A$7,100,0) -> 0
A24: ='Translation '!A404 -> Do you have a few high pressure application that determines the operating pressure of your entire? plant? | K24: =IF(H24=List!A8,-100,0) -> 0
A25: ='Translation '!A405 -> Have you investigated ways to serve high pressure applications at a lower pressure? | K25: =IF(H25=List!$A$7,100,0) -> 0
A26: ='Translation '!A406 -> Do you have end use application requiring high quality air that determines the air quality for entire plant? | K26: =IF(H26=List!$A$7,-100,0) -> 0
A27: ='Translation '!A407 -> Have you investigated ways to serve these high air quality applications with point-of-use solutions? | K27: =IF(H27=List!$A$7,100,0) -> 0
A28: ='Translation '!A408 -> Are you using any of the following to supply the intermittent, high volume applications? | H28: ='Translation '!A421 -> Secondary Storage Receiver | K28: =IF(I28=List!$A$7,100,0) -> 0
H29: ='Translation '!A422 -> Separate Compressor, booster or amplifier | K29: =IF(I29=List!$A$7,100,0) -> 0
A30: ='Translation '!A409 -> Have you analyzed your end uses to make sure they could not be more efficiently using alternative energy sources? | K30: =IF(H30=List!$A$7,100,0) -> 0
A31: ='Translation '!A410 -> Is compressed air sent to abandoned equipment? | K31: =IF(H31=List!$A$8,-300,IF(H31=List!$A$7,-30,0)) -> 0
A32: ='Translation '!A411 -> Have you estimated the leak in your system? | K32: =IF(H32=List!$A$7,100,0) -> 0
A33: ='Translation '!A412 -> Do you have the equipment to detect leaks (e.g., ultrasonic leak detector) or do you outsource leak detection? | K33: =IF(H33=List!$A$7,100,0) -> 0
A34: ='Translation '!A413 -> Do you have an ongoing leak management program? | K34: =IF(H34=List!$A$7,200,0) -> 0
A35: ='Translation '!A414 -> Does your plant have a demand for space heating or hot water? | K35: =IF(H35=List!$A$7,100,0) -> 0
A36: ='Translation '!A415 -> Are you using heat recovery on your compressed air system? | K36: =IF(H36=List!$A$7,100,0) -> 0
A37: ='Translation '!A416 -> How many different locations are compressors installed at your facility? | K37: 0
A38: ='Translation '!A417 -> Please identify the quantity and type of each air compressor in your facility: | H38: ='Translation '!A423 -> Double acting reciprocating compressor(s) | K38: 0
H39: ='Translation '!A424 -> Lubricant injected rotary screw compressor(s) | K39: 0
H40: ='Translation '!A425 -> Centrifugal air compressor(s) | K40: 0
H41: ='Translation '!A426 -> Other or unknown type of compressor(s) | K41: 0
A42: ='Translation '!A418 -> Select the option which best describes your production rate: | H42: ='Translation '!A427 -> Constant throughout the year | K42: 0
H43: ='Translation '!A428 -> Varies seasonally, | K43: 0
H44: ='Translation '!A429 -> Varies throughout the day. | K44: 0
A45: ='Translation '!A419 -> Please review the following list of potential compressed air system operational issues. Please select Yes/ No from the drop down list | H45: ='Translation '!A430 -> The reliability of the compressed air system in supporting manufacturing operations needs improvement. | K45: 0
H46: ='Translation '!A431 -> Production interruptions occur which are a result of poor compressed air system performance; we need to minimize production downtime. Product quality is affected by poor compressed air system performance: we need to prevent product spoilage. | K46: 0
H47: ='Translation '!A432 -> The automated equipment which is operated by compressed air will not achieve its full capacity throughput; we need to know if the compressed air supply is slowing down our production rate. | K47: 0
H48: ='Translation '!A433 -> We need to reduce air demand and lower energy cost of operating our compressed air system. | K48: 0
H49: ='Translation '!A434 -> Low pressure, impacting production occurs on a system wide and/or localized basis (at the point of use). We are unable to maintain acceptable pressure. Pressure fluctuations frequently occur; we need to maintain more stable air pressure. | K49: 0
H50: ='Translation '!A435 -> Water and/or oil contamination in the compressed air affects production; we need to maintain acceptable compressed air quality delivered to our end uses. | K50: 0
K51: =SUM(K10:K50) -> 0
A52: ='Translation '!A420 -> Other comments or information related to compressed air equipment, energy use, operations etc.

Sheet Process Cooling & Refrigeration (hidden)
A1: ='Translation '!A478 -> Process Cooling and Refrigeration (Scorecard)
A2: ='Translation '!A80 -> Instructions:
A3: ='Translation '!A479 -> Please respond to the following questions on Process Cooling and Refrigeration
A4: ='Translation '!A480 -> Includes chillers, refrigeration equipment, cooling towers and any other devices used for refrigeration and process cooling
A5: ='Translation '!A83 -> Input values in cells colored in green
A6: ='Translation '!A84 -> Select from the drop down menu in the cells colored in pink
A7: ='Translation '!A314 -> Please select Not Applicable (N/A) to the questions which are not applicable for the system in your plant.
A9: ='Translation '!A325 -> Questions: | H9: ='Translation '!A326 -> Please select the answer from the drop down list
A10: ='Translation '!A481 -> How old is your refrigeration system? | H10: ='Translation '!A521 -> <10 Years | K10: 0
H11: ='Translation '!A522 -> 10- 20 years | K11: 0
H12: ='Translation '!A523 -> >20 Years | K12: 0
A13: ='Translation '!A482 -> When was the last time your refrigerator system was audited? | H13: ='Translation '!A524 -> 1 year or less | K13: =IF(I13=List!$A$7,12,0) -> 0
H14: ='Translation '!A525 -> >2 years ago | K14: =IF(I14=List!$A$7,6,0) -> 0
H15: ='Translation '!A526 -> >5 years ago | K15: =IF(I15=List!$A$7,0,0) -> 0
A16: ='Translation '!A483 -> How often do you monitor refrigeration costs? | K16: =IF(OR(H16=List!$A$43,H16=List!$A$44),8,IF(H16=List!$A$45,4,IF(OR(H16=List!$A$46,H16=List!$A$47),2,0))) -> 0
A17: ='Translation '!A484 -> Do you monitor compressor efficiencies? | K17: =IF(H17=List!$A$7,4,0) -> 0
A18: ='Translation '!A485 -> Do you have regular maintenance program | K18: =IF(H18=List!$A$7,8,0) -> 0
A19: ='Translation '!A486 -> How often do you inspect the refrigerant charge level | K19: =IF(H19=List!$A$7,2,0) -> 0
A20: ='Translation '!A487 -> How often do you inspect the compressor? | K20: =IF(H20=List!$A$7,1,0) -> 0
A21: ='Translation '!A488 -> How often do you inspect the condensers and evaporators for fouling? | K21: =IF(H21=List!$A$7,1,0) -> 0
A22: ='Translation '!A489 -> What is the average refrigeration compressor load factor versus design (typical/ estimated)? | H22: ='Translation '!A527 -> >=100% | K22: =IF(I22=List!$A$7,8,0) -> 0
H23: ='Translation '!A528 -> >50% | K23: =IF(I23=List!$A$7,4,0) -> 0
H24: ='Translation '!A529 -> Don’t know | K24: =IF(I24=List!$A$7,0,0) -> 0
A25: ='Translation '!A490 -> What % of operating time do you spend at less than 50% load? | H25: ='Translation '!A530 -> 30% or less | K25: =IF(I25=List!$A$7,4,0) -> 0
H26: ='Translation '!A531 -> 60% or more | K26: =IF(I26=List!$A$7,2,0) -> 0
H27: ='Translation '!A532 -> Don’t know | K27: =IF(I27=List!$A$7,0,0) -> 0
A28: ='Translation '!A491 -> Select the method used to unload compressor | H28: ='Translation '!A533 -> Variable speed drives | K28: =IF(I28=List!$A$7,8,0) -> 0
H29: ='Translation '!A534 -> Cylinder unloading (reciprocating)/ Slide valves (screw)/ Variable inlet guide vanes (centrifugal) | K29: =IF(I29=List!$A$7,6,0) -> 0
H30: ='Translation '!A535 -> Automated compressor on/off control | K30: =IF(I30=List!$A$7,4,0) -> 0
H31: ='Translation '!A536 -> Manual Compressor on/ off Control | K31: =IF(I31=List!$A$7,3,0) -> 0
H32: ='Translation '!A537 -> Suction Throttling | K32: =IF(I32=List!$A$7,2,0) -> 0
H33: ='Translation '!A538 -> Hot gas bypass | K33: =IF(I33=List!$A$7,0,0) -> 0
A34: ='Translation '!A492 -> What is the typical Suction Pressure? | H34: ='Translation '!A539 -> Near design pressure | K34: =IF(I34=List!$A$7,5,0) -> 0
H35: ='Translation '!A540 -> < design pressure by more than 15% | K35: =IF(I35=List!$A$7,2,0) -> 0
H36: ='Translation '!A541 -> Don’t know | K36: =IF(I36=List!$A$7,0,0) -> 0
A37: ='Translation '!A493 -> What is the typical Discharge Pressure? | H37: ='Translation '!A542 -> Near design pressure | K37: =IF(I37=List!$A$7,4,0) -> 0
H38: ='Translation '!A543 -> > design pressure by more than 10% | K38: =IF(I38=List!$A$7,2,0) -> 0
H39: ='Translation '!A544 -> Don’t know | K39: =IF(I39=List!$A$7,0,0) -> 0
A40: ='Translation '!A494 -> What is the typical Temperature Difference between evaporator refrigerant and process steam outlet? | H40: ='Translation '!A545 -> Within 5 °F of design | K40: =IF(I40=List!$A$7,4,0) -> 0
H41: ='Translation '!A546 -> > 5 °F of design | K41: =IF(I41=List!$A$7,2,0) -> 0
H42: ='Translation '!A547 -> Don’t know | K42: =IF(I42=List!$A$7,0,0) -> 0
A43: ='Translation '!A495 -> Do you have condenser performance problem? | H43: ='Translation '!A548 -> Not at all | K43: =IF(I43=List!$A$7,2,0) -> 0
H44: ='Translation '!A549 -> Only periodically in summer months | K44: =IF(I44=List!$A$7,1,0) -> 0
H45: ='Translation '!A550 -> Throughout summer | K45: =IF(I45=List!$A$7,1,0) -> 0
H46: ='Translation '!A551 -> Continuously | K46: =IF(I46=List!$A$7,0,0) -> 0
A47: ='Translation '!A496 -> How old is your refrigeration system? | H47: ='Translation '!A521 -> <10 Years | K47: =IF(I47=List!$A$7,2,0) -> 0
H48: ='Translation '!A522 -> 10- 20 years | K48: =IF(I48=List!$A$7,1,0) -> 0
H49: ='Translation '!A523 -> >20 Years | K49: =IF(I49=List!$A$7,0,0) -> 0
A50: ='Translation '!A497 -> Have you ever performed Pinch analysis to check if refrigeration loads have been minimized? | K50: =IF(H50=List!$A$7,8,0) -> 0
A51: ='Translation '!A498 -> Please input the following information :
A52: ='Translation '!A499 -> What % of your refrigeration compressor HP is delivered via the following drive types? (Total must be less than or equal to 100%) | H52: ='Translation '!A552 -> Backpressure (extraction ) steam turbines | K52: =I52*11/100 -> 0
H53: ='Translation '!A553 -> Variable Speed Electric Motor | K53: =I53*5/100 -> 0
H54: ='Translation '!A554 -> Electric motor w/o variable speed drives | K54: =I54*3/100 -> 0
H55: ='Translation '!A555 -> Condensing steam turbines | K55: =I55*0/100 -> 0
A56: ='Translation '!A500 -> How are cooling tower fans controlled? | H56: ='Translation '!A556 -> Always on | K56: =IF(I56=List!$A$7,0,0) -> 0
H57: ='Translation '!A557 -> Manual on/off control | K57: =IF(I57=List!$A$7,3,0) -> 0
H58: ='Translation '!A558 -> Fan pitch control | K58: =IF(I58=List!$A$7,5,0) -> 0
H59: ='Translation '!A559 -> Automated on / off control | K59: =IF(I59=List!$A$7,7,0) -> 0
H60: ='Translation '!A560 -> Combination of above | K60: =IF(I60=List!$A$7,4,0) -> 0
A61: ='Translation '!A501 -> How is Blow down controlled? | H61: ='Translation '!A561 -> Automatically | K61: =IF(I61=List!$A$7,7,0) -> 0
H62: ='Translation '!A562 -> Manually | K62: =IF(I62=List!$A$7,0,0) -> 0
H63: ='Translation '!A563 -> Combination of above | K63: =IF(I63=List!$A$7,4,0) -> 0
A64: ='Translation '!A502 -> Select one or more what is continuously monitored | H64: ='Translation '!A564 -> Ambient air temperature profile for the year | K64: =IF(I64=List!$A$7,1,0) -> 0
H65: ='Translation '!A565 -> Ambient air wet bulb temperature profile for year | K65: =IF(I65=List!$A$7,1,0) -> 0
H66: ='Translation '!A566 -> Cooling tower blowdown cycle | K66: =IF(I66=List!$A$7,1,0) -> 0
H67: ='Translation '!A567 -> Cooling water flow demand | K67: =IF(I67=List!$A$7,1,0) -> 0
H68: ='Translation '!A568 -> Delta T across towers | K68: =IF(I68=List!$A$7,1,0) -> 0
H69: ='Translation '!A569 -> Cycles of concentration | K69: =IF(I69=List!$A$7,1,0) -> 0
A70: ='Translation '!A503 -> Are all over cooling water flow rates above or below design? | H70: ='Translation '!A570 -> Above | K70: =IF(I70=List!$A$7,0,0) -> 0
H71: ='Translation '!A571 -> Below | K71: =IF(I71=List!$A$7,4,0) -> 0
A72: ='Translation '!A504 -> Do you have uneven water distribution problem in cooling towers? | K72: =IF(H72=List!$A$8,7,0) -> 0
A73: ='Translation '!A505 -> How close are basin temperature approaches to wet bulb temp? | H73: ='Translation '!A572 -> Around 5°F | K73: =IF(I73=List!$A$7,3,0) -> 0
H74: ='Translation '!A573 -> >5° F | K74: =IF(I74=List!$A$7,0,0) -> 0
A75: ='Translation '!A506 -> Do you have any of the following discharge pressure problem? | H75: ='Translation '!A574 -> Distribution piping fouling | K75: =IF(I75=List!$A$8,1,0) -> 0
H76: ='Translation '!A575 -> Cooling water exchanger fouling | K76: =IF(I76=List!$A$8,2,0) -> 0
H77: ='Translation '!A576 -> Higher than design cooling loads | K77: =IF(I77=List!$A$8,1,0) -> 0
A78: ='Translation '!A507 -> Do you monitor cooling water exchanger fouling rates and/or pressure drop? | K78: =IF(H78=List!$A$7,7,0) -> 0
A79: ='Translation '!A508 -> Do you have the following cooling water distribution problems in the process units? | H79: ='Translation '!A577 -> Capacity Problem | K79: =IF(I79=List!$A$7,2,0) -> 0
H80: ='Translation '!A578 -> Starving some user | K80: =IF(I80=List!$A$7,2,0) -> 0
A81: ='Translation '!A509 -> Do you have sludge or sediment problems in cooling tower basins? | K81: =IF(H81=List!$A$8,4,0) -> 0
A82: ='Translation '!A510 -> Have you optimized water vs air cooling loads? | K82: =IF(H82=List!$A$7,3,0) -> 0
A83: ='Translation '!A511 -> % of Cooling load supplied by the following (Total must be less than or equal to 100%) | H83: ='Translation '!A579 -> Mechanical Draft Towers | K83: =4*I83/100 -> 0
H84: ='Translation '!A580 -> Natural Draft Towers | K84: =2*I84/100 -> 0
H85: ='Translation '!A581 -> Cooling ponds | K85: =1*I85/100 -> 0
H86: ='Translation '!A582 -> Spray Ponds | K86: =0*I86/100 -> 0
A87: ='Translation '!A512 -> Estimate the percentage of cooling water distribution pump HP delivered by the following (Total must be less than or equal to 100%) | H87: ='Translation '!A583 -> Backpressure turbine drives | K87: =5*I87/100 -> 0
H88: ='Translation '!A584 -> Variable speed drives | K88: =3*I88/100 -> 0
H89: ='Translation '!A585 -> Motor drives | K89: =2*I89/100 -> 0
H90: ='Translation '!A586 -> Condensing turbine drives | K90: =0*I90/100 -> 0
A91: ='Translation '!A513 -> How many pumps used for cooling and refrigeration process? | K91: =0*I91/100 -> 0
A92: ='Translation '!A514 -> Are you running the minimum number of pumps? | K92: =IF(H92=List!$A$7,3,0) -> 0
A93: ='Translation '!A515 -> If not Select why | H93: ='Translation '!A587 -> Emergency on-line backup supply criteria | K93: =IF(I93=List!$A$7,0,0) -> 0
H94: ='Translation '!A588 -> System capacity (High discharge pressure) | K94: =IF(I94=List!$A$7,0,0) -> 0
H95: ='Translation '!A589 -> Ease of operation | K95: =IF(I95=List!$A$7,0,0) -> 0
H96: ='Translation '!A590 -> N/A | K96: =IF(I96=List!$A$7,0,0) -> 0
A97: ='Translation '!A516 -> Type of cooling | H97: ='Translation '!A591 -> Splash Film | K97: =IF(I97=List!$A$7,0,0) -> 0
H98: ='Translation '!A592 -> Film Fill | K98: =IF(I98=List!$A$7,1,0) -> 0
A99: ='Translation '!A517 -> Do the cooling tower fans have adjustable pitch blades? | H99: ='Translation '!A593 -> All | K99: =IF(I99=List!$A$7,4,0) -> 0
H100: ='Translation '!A594 -> Some | K100: =IF(I100=List!$A$7,2,0) -> 0
H101: ='Translation '!A595 -> None | K101: =IF(I101=List!$A$7,0,0) -> 0
A102: ='Translation '!A518 -> Does the cooling tower have adjustable speed drive? | H102: ='Translation '!A596 -> All | K102: =IF(I102=List!$A$7,6,0) -> 0
H103: ='Translation '!A597 -> Some | K103: =IF(I103=List!$A$7,4,0) -> 0
H104: ='Translation '!A598 -> None | K104: =IF(I104=List!$A$7,0,0) -> 0
A105: ='Translation '!A519 -> Condition of cooling Towers | H105: ='Translation '!A599 -> Excellent | K105: =IF(I105=List!$A$7,10,0) -> 0
H106: ='Translation '!A600 -> Adequate | K106: =IF(I106=List!$A$7,5,0) -> 0
H107: ='Translation '!A601 -> In need of replacement | K107: =IF(I107=List!$A$7,0,0) -> 0
A108: ='Translation '!A520 -> Other comments or information related to Process Cooling and Refrigeration , operations etc. | K108: =SUM(K10:K107) -> 0

Sheet Process Heating (hidden)
A1: ='Translation '!A436 -> Process Heating (Scorecard)
A2: ='Translation '!A80 -> Instructions:
A3: ='Translation '!A437 -> Please respond to the following questions on process heating.
A4: ='Translation '!A438 -> Process heating equipment include furnaces used for melting or heating of various materials, fuel fired chemical reactions, kilns, ovens, dryers, heaters, electrically heated process equipment etc.
A5: ='Translation '!A83 -> Input values in cells colored in green
A6: ='Translation '!A84 -> Select from the drop down menu in the cells colored in pink
A7: ='Translation '!A314 -> Please select Not Applicable (N/A) to the questions which are not applicable for the system in your plant.
A9: ='Translation '!A325 -> Questions: | C9: ='Translation '!A326 -> Please select the answer from the drop down list
A10: ='Translation '!A439 -> Have you conducted a detail energy assessment for your heating equipment using tools such as Process Heating Survey and Assessment Tool (PHAST) to identify energy saving opportunities? | F10: =IF(C10=List!$A$7,150,0) -> 0
A11: ='Translation '!A440 -> Types of Processes for which process heating equipment is used in the Enterprise | C11: ='Translation '!A460 -> Calcining | F11: 0
C12: ='Translation '!A461 -> Metal Melting | F12: 0
C13: ='Translation '!A462 -> Non-metal (i.e. glass) melting | F13: 0
C14: ='Translation '!A463 -> Drying (food, wood, ceramic, etc.) | F14: 0
C15: ='Translation '!A464 -> Curing (rubber, plastic, paint, etc.) | F15: 0
C16: ='Translation '!A465 -> Metal heat treating | F16: 0
C17: ='Translation '!A466 -> Fluid heating (liquid, crude oil, etc.) | F17: 0
C18: ='Translation '!A467 -> Non-metal heating (ceramics, glass, etc.) | F18: 0
C19: ='Translation '!A468 -> Incineration - thermal oxidizing | F19: 0
C20: ='Translation '!A469 -> Other, please specify: | F20: 0
F21: 0
A22: ='Translation '!A441 -> Type of fuel(s) used for Process Heating Equipment | C22: ='Translation '!A470 -> Coal | F22: 0
C23: ='Translation '!A471 -> Fuel Oil | F23: 0
C24: ='Translation '!A472 -> Natural Gas | F24: 0
C25: ='Translation '!A473 -> Electricity | F25: 0
C26: ='Translation '!A474 -> Other, please specify: | F26: 0
A27: ='Translation '!A442 -> Do you have co-generation or power generation equipment? | F27: 0
A28: ='Translation '!A443 -> If yes, give size (MW) capacity: | E28: MW | F28: 0
A29: ='Translation '!A444 -> Do you use steam in heating equipment | F29: 0
A30: ='Translation '!A445 -> Do you use electrically heated equipment such as induction, electric arc or electric resistance heating type furnaces? | F30: 0
F31: 0
A32: ='Translation '!A446 -> Do you measure oxygen (O2) and Carbon Monoxide CO or combustible in flue gases and "tune" the burners periodically to maintain low values for O2 and combustibles in the furnace flue gases | F32: =IF(C32=List!$A$7,100,0) -> 0
A33: ='Translation '!A447 -> Have you sealed openings in furnaces and repaired cracks, and damaged insulation in furnace walls, doors etc.? | F33: =IF(C33=List!$A$7,50,0) -> 0
A34: ='Translation '!A448 -> Do you regularly clean heat transfer surfaces to avoid build up of soot, scale or other material? | F34: =IF(C34=List!$A$7,25,0) -> 0
A35: ='Translation '!A449 -> Do you have a program for calibration/adjustment of sensors (i.e. thermocouples), controllers, valve operators etc.? | F35: =IF(C35=List!$A$7,25,0) -> 0
A36: ='Translation '!A450 -> Do you operate the furnace at or close to design load by proper furnace scheduling and loading, and avoid delays, waits between production? | F36: =IF(C36=List!$A$7,25,0) -> 0
A37: ='Translation '!A451 -> Do you maintain proper (balanced or slightly positive) pressure in furnaces to avoid air leakage in the furnace? | F37: =IF(C37=List!$A$7,50,0) -> 0
A38: ='Translation '!A452 -> Do you have heat recovery system? | F38: 0
A39: ='Translation '!A453 -> If yes : | C39: ='Translation '!A475 -> Heat of flue gases from the furnace or air preheater is used to heat charge material, fixtures etc. | F39: =IF(OR(D39=List!A7,D41=List!A7),25,0) -> 0
C40: ='Translation '!A476 -> A heat recovery system (i.e. recuperator, regenerator, water or heating etc.) is used to recover heat from the furnace flue gases. | F40: =IF(D40=List!$A$7,100,0) -> 0
C41: ='Translation '!A477 -> Heat of flue gases from the furnace or air preheater is used for lower temperature processes such as steam generation, water heating or air heating for the plant or other application | F41: =IF(AND(D40=List!A7,OR(D39=List!A7,D41=List!A7)),67,0) -> 0
A42: ='Translation '!A454 -> Do you use design of fixtures, trays and other material handling system components with minimum weight and proper material? | F42: =IF(C42=List!$A$7,50,0) -> 0
A43: ='Translation '!A455 -> Do you use proper insulation for (or minimize use of) water or air cooled parts such as rolls, load supports etc. used in furnace? | F43: =IF(C43=List!$A$7,50,0) -> 0
A44: ='Translation '!A456 -> Are you using oxygen enriched air or oxy-fuel fired burners for high temperature processes? | F44: =IF(C44=List!$A$7,100,0) -> 0
A45: ='Translation '!A457 -> Are you using the most cost effective source of heat for processes where it is possible use alternate energy sources (i.e. steam vs. electricity vs. fuel firing) where applicable? | F45: =IF(C45=List!$A$7,50,0) -> 0
A46: ='Translation '!A458 -> Do your heating equipment and other heated parts use cost effective type and thickness of insulation? | F46: =IF(C46=List!$A$7,25,0) -> 0
A47: ='Translation '!A459 -> Other comments or information related to Process Heating, energy use, operations etc. | F47: =SUM(F10:F46) -> 0

Sheet Pumps (hidden)
A1: ='Translation '!A602 -> Pumps (Scorecard)
A2: ='Translation '!A80 -> Instructions:
A3: ='Translation '!A603 -> Please respond to the following questions on pumps
A4: ='Translation '!A604 -> Pumps include machine-driven pump systems
A5: ='Translation '!A83 -> Input values in cells colored in green
A6: ='Translation '!A84 -> Select from the drop down menu in the cells colored in pink
A7: ='Translation '!A314 -> Please select Not Applicable (N/A) to the questions which are not applicable for the system in your plant.
A9: ='Translation '!A325 -> Questions: | K9: ='Translation '!A326 -> Please select the answer from the drop down list
A10: ='Translation '!A605 -> For system in which flow is controlled or regulated, estimate the percentage that are controlled by: (Total must be less than or equal to 100%) | K10: ='Translation '!A615 -> Valve throttling or bypass flow regulation | O10: =L10*0/100 -> 0
K11: ='Translation '!A616 -> Turning pumps on and off to match speed | O11: =L11*35/100 -> 0
K12: ='Translation '!A617 -> Constant Load-Pump matched to meet need at pump best efficiency point | O12: =L12*50/100 -> 0
K13: ='Translation '!A618 -> Adjustable speed drives | O13: =L13*45/100 -> 0
K14: ='Translation '!A619 -> Combination of above or don’t know | O14: =L14*20/100 -> 0
A15: ='Translation '!A606 -> Estimate the percentage of pumping systems for which the answer to the following questions is YES. | K15: ='Translation '!A620 -> Are the pump performance curve readily available? | O15: =M15*3.75/100 -> 0
K16: ='Translation '!A621 -> Are the Systems head-capacity curves well understood? | O16: =M16*3.75/100 -> 0
K17: ='Translation '!A622 -> Are the pumps tested at installation to compare performance with manufacture's curve? | O17: =M17*3.75/100 -> 0
K18: ='Translation '!A623 -> Is motor power or current measurement and pump efficiency estimated as part of installation test? | O18: =M18*2.5/100 -> 0
K19: ='Translation '!A624 -> Are pumps periodically tested or measures trended to check for performance degradation? | O19: =M19*5/100 -> 0
K20: ='Translation '!A625 -> Do you evaluate the potential energy cost savings (compared to optimal commercially available equipment operating at the existing head and flow rates)? | O20: =M20*2.5/100 -> 0
A21: ='Translation '!A607 -> What percentage of your systems have permanently installed flow meters? | O21: =K21*3.75/100 -> 0
A22: ='Translation '!A608 -> Do you purchase energy efficient or premium efficiency motors as standard practice? | O22: =IF(K22=List!$A$7,3.25,0) -> 0
A23: ='Translation '!A609 -> Do you have motor repair/ replacement decision policy in place? | O23: =IF(K23=List!$A$7,2.6,0) -> 0
A24: ='Translation '!A610 -> Do you include energy efficiency guidelines in pump purchase specification? | O24: =IF(K24=List!$A$7,3.25,0) -> 0
A25: ='Translation '!A611 -> Are energy factor a primary consideration when repairing or replacing an existing pump that has failed? | O25: =IF(K25=List!$A$7,3.9,0) -> 0
A26: ='Translation '!A612 -> Percentage of operator that could explain how to read and use a pump head-capacity curve? | O26: =K26*4.8/100 -> 0
A27: ='Translation '!A613 -> % of understanding of the pump performance curves: head, power, efficiency, and NPSHR (Net Positive Suction Head)? | O27: =K27*7.2/100 -> 0
A28: ='Translation '!A614 -> Other comments or information related to Pumps, operations etc. | O28: =SUM(O10:O27) -> 0

Sheet Steam Generation Equipment (hidden)
A1: ='Translation '!A626 -> Steam Generation Equipment (Scorecard)
A2: ='Translation '!A80 -> Instructions:
A3: ='Translation '!A628 -> Please respond to the following questions on steam generation equipment
A4: ='Translation '!A627 -> The complete steam system, including boilers, steam distribution lines, steam traps, and final delivery of steam to the process (e.g., heat exchangers)
A5: ='Translation '!A83 -> Input values in cells colored in green
A6: ='Translation '!A84 -> Select from the drop down menu in the cells colored in pink
A7: ='Translation '!A314 -> Please select Not Applicable (N/A) to the questions which are not applicable for the system in your plant.
A9: ='Translation '!A325 -> Questions: | K9: ='Translation '!A326 -> Please select the answer from the drop down list
A10: ='Translation '!A629 -> Do you monitor your Fuel Cost to generate Steam in terms of ($)/(1000lbs of steam produced) | N10: =IF(K10=List!$A$7,10,0) -> 0
A11: ='Translation '!A630 -> How often do you calculate and trend your fuel cost to generate steam? | N11: =IF(OR(K11=List!$A$43,K11=List!$A$44,K11=List!$A$45),10,IF(OR(K11=List!$A$46,K11=List!$A$47),5,0)) -> 0
A12: ='Translation '!A631 -> Do you measure Steam /Product Benchmark-in terms of (Lbs. of steam needed/ unit of product produced)? | N12: =IF(K12=List!$A$7,10,0) -> 0
A13: ='Translation '!A632 -> How often do you measure Steam /Product Benchmark-in terms of (Lbs. of steam needed/ unit of product produced) | K13: ='Translation '!A660 -> at least quarterly | N13: =IF(L13=List!$A$7,10,0) -> 0
K14: ='Translation '!A661 -> at least annually | N14: =IF(L14=List!$A$7,5,0) -> 0
K15: ='Translation '!A662 -> less than annually | N15: =IF(L15=List!$A$7,0,0) -> 0
A16: ='Translation '!A633 -> Please select the following Critical Energy parameters that are measured | K16: ='Translation '!A663 -> Steam Production rate | N16: =IF(L16=List!$A$7,10,0) -> 0
K17: ='Translation '!A664 -> Fuel flow rate | N17: =IF(L17=List!$A$7,6,0) -> 0
K18: ='Translation '!A665 -> Feed water flow rate | N18: =IF(L18=List!$A$7,6,0) -> 0
K19: ='Translation '!A666 -> Makeup water flow rate | N19: =IF(L19=List!$A$7,4,0) -> 0
K20: ='Translation '!A667 -> Blowdown flow rate | N20: =IF(L20=List!$A$7,2,0) -> 0
K21: ='Translation '!A668 -> Chemical Input flow rate | N21: =IF(L21=List!$A$7,2,0) -> 0
A22: ='Translation '!A634 -> How intensely do you meter your steam flow? | K22: ='Translation '!A669 -> By major equipment | N22: =IF(L22=List!$A$7,20,0) -> 0
K23: ='Translation '!A670 -> By process unit | N23: =IF(L23=List!$A$7,10,0) -> 0
K24: ='Translation '!A671 -> By area or building | N24: =IF(L24=List!$A$7,5,0) -> 0
K25: ='Translation '!A672 -> By plant as a whole(i.e., total boiler output) | N25: =IF(L25=List!$A$7,2,0) -> 0
K26: ='Translation '!A673 -> Not at all | N26: =IF(L26=List!$A$7,0,0) -> 0
A27: ='Translation '!A635 -> Please select if any one of the following Steam Trap maintenance program is carried out | K27: ='Translation '!A674 -> Proper trap selection for application | N27: =IF(L27=List!$A$7,10,0) -> 0
K28: ='Translation '!A675 -> At least Annual testing of all Traps | N28: =IF(L28=List!$A$7,10,0) -> 0
K29: ='Translation '!A676 -> Maintaining a steam Trap database | N29: =IF(L29=List!$A$7,10,0) -> 0
K30: ='Translation '!A677 -> Repair/ replacing defective Traps | N30: =IF(L30=List!$A$7,10,0) -> 0
A31: ='Translation '!A636 -> Please select how often the water chemical treatment system is functioning properly? | K31: ='Translation '!A678 -> at least daily | N31: =IF(L31=List!$A$7,10,0) -> 0
K32: ='Translation '!A679 -> at least weekly | N32: =IF(L32=List!$A$7,5,0) -> 0
K33: ='Translation '!A680 -> less than weekly | N33: =IF(L33=List!$A$7,0,0) -> 0
A34: ='Translation '!A637 -> How often do you measure conductivity ( total dissolved solids) in your boiler and determine what your steam and mud drum blowdown rate (or top and bottom boiler blowdown rate) should be? | K34: ='Translation '!A681 -> Continuously or at least once/ shift | N34: =IF(L34=List!$A$7,10,0) -> 0
K35: ='Translation '!A682 -> Once/day | N35: =IF(L35=List!$A$7,5,0) -> 0
K36: ='Translation '!A683 -> Once/week or less | N36: =IF(L36=List!$A$7,0,0) -> 0
A37: ='Translation '!A638 -> How often do you NEED to clean fireside or waterside deposit in boilers? | K37: ='Translation '!A684 -> every 5-10 years | N37: =IF(L37=List!$A$7,10,0) -> 0
K38: ='Translation '!A685 -> every 1-5 years | N38: =IF(L38=List!$A$7,5,0) -> 0
K39: ='Translation '!A686 -> Once a year or more | N39: =IF(L39=List!$A$7,0,0) -> 0
A40: ='Translation '!A639 -> Is your boiler plant equipment and piping system insulation (refractory, piping, valves, flanges, vessels, etc.) maintained and in good condition? | K40: ='Translation '!A687 -> Excellent | N40: =IF(L40=List!$A$7,10,0) -> 0
K41: ='Translation '!A688 -> Good but can be improved | N41: =IF(L41=List!$A$7,7,0) -> 0
K42: ='Translation '!A689 -> Inadequate | N42: =IF(L42=List!$A$7,0,0) -> 0
A43: ='Translation '!A640 -> Is your steam distribution, end use, and condensate recovery equipment insulation (piping, valves, flanges, heat exchangers, etc.) maintained and in good condition? | K43: ='Translation '!A690 -> Excellent | N43: =IF(L43=List!$A$7,20,0) -> 0
K44: ='Translation '!A691 -> Good but can be improved | N44: =IF(L44=List!$A$7,14,0) -> 0
K45: ='Translation '!A692 -> Inadequate | N45: =IF(L45=List!$A$7,0,0) -> 0
A46: ='Translation '!A641 -> How would you characterize steam leaks in steam system | K46: ='Translation '!A693 -> None | N46: =IF(L46=List!$A$7,10,0) -> 0
K47: ='Translation '!A694 -> Minor | N47: =IF(L47=List!$A$7,8,0) -> 0
K48: ='Translation '!A695 -> Moderate | N48: =IF(L48=List!$A$7,3,0) -> 0
K49: ='Translation '!A696 -> Numerous | N49: =IF(L49=List!$A$7,0,0) -> 0
A50: ='Translation '!A642 -> How often do you detect noticeable water hammer in your steam system and condensate recovery system? | K50: ='Translation '!A697 -> Daily | N50: =IF(L50=List!$A$7,0,0) -> 0
K51: ='Translation '!A698 -> Weekly/ monthly | N51: =IF(L51=List!$A$7,5,0) -> 0
K52: ='Translation '!A699 -> Less than once a month | N52: =IF(L52=List!$A$7,10,0) -> 0
A53: ='Translation '!A643 -> Are the following inspected once a year?
A54: ='Translation '!A644 -> Boiler plant equipment - boiler, deaerator, feed water tank, chemical treatment equipment, blowdown equipment, economizer, combustion air preheater, insulation, etc. | N54: =IF(K54=List!$A$7,5,0) -> 0
A55: ='Translation '!A645 -> Distribution system equipment - piping (including design), steam traps (types, sizes, locations), air vents, valves, pressure reducing stations, insulation, etc. | N55: =IF(K55=List!$A$7,5,0) -> 0
A56: ='Translation '!A646 -> End use system equipment - turbines, piping (including design), heat exchangers, coils, jacketed kettles, steam traps (types, sizes, locations), air vents, vacuum breakers, pressure reducing valves, insulation, etc. | N56: =IF(K56=List!$A$7,5,0) -> 0
A57: ='Translation '!A647 -> Recovery system equipment - piping (including design), valves, fittings, flash tanks, condensate pumps, condensate meters, insulation, etc.? | N57: =IF(K57=List!$A$7,5,0) -> 0
A58: ='Translation '!A648 -> If you have heat recovery system , please select the kind | K58: ='Translation '!A700 -> Feed water economizer and/or combustion air preheater | N58: =IF(L58=List!$A$7,10,0) -> 0
K59: ='Translation '!A701 -> Blowdown heat recovery | N59: =IF(L59=List!$A$7,5,0) -> 0
A60: ='Translation '!A649 -> How often do you check the quality of steam that is output from your boiler to the distribution system, and ensure that you are generating Dry steam? | K60: ='Translation '!B660 -> at least quarterly | N60: =IF(L60=List!$A$7,10,0) -> 0
K61: ='Translation '!B661 -> at least annually | N61: =IF(L61=List!$A$7,5,0) -> 0
K62: ='Translation '!B662 -> less than annually | N62: =IF(L62=List!$A$7,0,0) -> 0
A63: ='Translation '!A650 -> Do you have operational automatic blowdown controller on your boiler? | N63: =IF(K63=List!$A$7,10,0) -> 0
A64: ='Translation '!A651 -> What is the frequency of High Level Alarms(possible indicating boiler undersize ) or Low Alarm(possible indicating boiler oversize) for your boiler? | K64: ='Translation '!A702 -> Less than 1/ month | N64: =IF(L64=List!$A$7,10,0) -> 0
K65: ='Translation '!A703 -> 1-5 per month | N65: =IF(L65=List!$A$7,5,0) -> 0
K66: ='Translation '!A704 -> more than 5 per month | N66: =IF(L66=List!$A$7,0,0) -> 0
A67: ='Translation '!A652 -> How often do you experience steam pressure fluctuation of greater than 10% of your boiler operating pressure? | K67: ='Translation '!A702 -> Less than 1/ month | N67: =IF(L67=List!$A$7,5,0) -> 0
K68: ='Translation '!A703 -> 1-5 per month | N68: =IF(L68=List!$A$7,3,0) -> 0
K69: ='Translation '!A704 -> more than 5 per month | N69: =IF(L69=List!$A$7,0,0) -> 0
A70: ='Translation '!A653 -> Please select a method used to reduce steam pressure in your steam system? | K70: ='Translation '!A705 -> Steam generated at required pressure or PRVs appropriately applied | N70: =IF(L70=List!$A$7,10,0) -> 0
K71: ='Translation '!A706 -> Backpressure turbines used in parallel with PRVs | N71: =IF(L71=List!$A$7,10,0) -> 0
K72: ='Translation '!A707 -> Boiler control used to reduce pressure | N72: =IF(L72=List!$A$7,5,0) -> 0
K73: ='Translation '!A708 -> Excess steam vent | N73: =IF(L73=List!$A$7,0,0) -> 0
A74: ='Translation '!A654 -> How much of your available condensate do you recover and utilize? | N74: =IF(K74=List!$A$57,10,IF(K74=List!$A$58,6,IF(K74=List!$A$59,3,0))) -> 0
A75: ='Translation '!A655 -> If you have flash steam available do you recover and use? | N75: =IF(K75=List!$A$57,10,IF(K75=List!$A$58,6,IF(K75=List!$A$59,3,0))) -> 0
A76: ='Translation '!A656 -> How often do you measure over-all boiler efficiency (Heat absorbed to create Steam/Energy input from fuel) | K76: ='Translation '!A660 -> at least quarterly | N76: =IF(L76=List!$A$7,10,0) -> 0
K77: ='Translation '!A661 -> at least annually | N77: =IF(L77=List!$A$7,5,0) -> 0
K78: ='Translation '!A662 -> less than annually | N78: =IF(L78=List!$A$7,0,0) -> 0
A79: ='Translation '!A657 -> Please select the parameters that are measured | K79: ='Translation '!A709 -> Flue gas temperature | N79: =IF(L79=List!$A$7,5,0) -> 0
K80: ='Translation '!A710 -> Flue gas oxygen content | N80: =IF(L80=List!$A$7,5,0) -> 0
K81: ='Translation '!A711 -> Flue gas CO content | N81: =IF(L81=List!$A$7,5,0) -> 0
A82: ='Translation '!A658 -> How do you control excess air in your boiler to maximize boiler efficiency | K82: ='Translation '!A712 -> Automatically | N82: =IF(L82=List!$A$7,10,0) -> 0
K83: ='Translation '!A713 -> Manually | N83: =IF(L83=List!$A$7,5,0) -> 0
K84: ='Translation '!A714 -> Not at all | N84: =IF(L84=List!$A$7,0,0) -> 0
A85: ='Translation '!A659 -> Other comments or information related to Steam generation Equipment, operations etc. | N85: =SUM(N10:N84) -> 0

Sheet Results
B1: ='Translation '!A717 -> Plant Energy Profiler Results
B2: ='Translation '!A718 -> The Plant Energy Profiler (PEP) tool helps industrial plant managers understand how energy is being purchased and consumed at their plant and identifies potential energy and cost savings. Once the user has entered the basic plant info, energy and production data, energy intensive equipment used in the plant the tools helps to breakdown the energy consumption for the equipment in the plant, the cost of energy associated to operate the equipment, and the potential energy saving that can be achieved. The tool further gives the user a list of next steps or potential projects that might help the plant to reduce energy consumption. PEP is an excellent “first step” that industrial companies can use to identify opportunities for savings, improve their energy consumption , and help reduce the environmental emissions associated with energy production and use. Table 1 shows plant's contact information and industry type.
B5: ='Translation '!A719 -> Table 1: Plant Contact Information
B6: ='Translation '!A48 -> Corporation Name: | D6: =IF('Basic Info '!B3>0,'Basic Info '!B3,"") ->  | H6: `
B7: ='Translation '!A49 -> Plant Name: | D7: =IF('Basic Info '!B4>0,'Basic Info '!B4,"") -> 
B8: ='Translation '!A50 -> Primary Product: | D8: =IF('Basic Info '!B5>0,'Basic Info '!B5,"") -> 
B9: ='Translation '!A51 -> Industry Type: | D9: =IF('Basic Info '!B6>0,'Basic Info '!B6,"") -> 
B10: ='Translation '!A52 -> NAICS Code | D10: =IF('Basic Info '!B7>0,'Basic Info '!B7,"") -> 
B11: ='Translation '!A57 -> Primary Contact for Assessment: | D11: =IF('Basic Info '!H4>0,'Basic Info '!H4,"") -> 
B12: ='Translation '!A61 -> E-mail: | D12: =IF('Basic Info '!H8>0,'Basic Info '!H8,"") -> 
B13: ='Translation '!A720 -> Table 2 shows the annual purchased (site) electricity , natural gas, steam, and other fuels consumption data; the cost of each energy stream and their source power consumption for the baseline year.
B16: ='Translation '!A721 -> Table 2: Annual Energy Use Summary
B17: ='Translation '!A120 -> Energy Type | D17: ='Translation '!$A$722 -> Site Energy Use | E17: ='Translation '!$A$724 -> Site Energy Use (0) | F17: ='Translation '!$A$726 -> Source Energy Use (0) | G17: ='Translation '!B723 -> Energy Cost($)
B18: ='Translation '!A129 -> Electricity | D18: ='NAICS Data-Base'!AB76 ->  | E18: =Total_Electricity -> FALSE | F18: ='Energy & Production '!D86 ->  | G18: ='Energy & Production '!F86 -> 
B19: ='Translation '!A130 -> Natural Gas | D19: ='NAICS Data-Base'!AB77 ->  | E19: =Total_NG -> FALSE | F19: =IF('Energy & Production '!D87>0,'Energy & Production '!D87,"") ->  | G19: ='Energy & Production '!F87 -> 
B20: ='Translation '!A131 -> Steam | D20: ='NAICS Data-Base'!AB78 ->  | E20: =Total_Steam -> FALSE | F20: =IF('Energy & Production '!D88>0,'Energy & Production '!D88,"") ->  | G20: ='Energy & Production '!F88 -> 
B21: =IF('Energy & Production '!F10>0,'Energy & Production '!F10,"-") -> - | D21: ='NAICS Data-Base'!AB79 ->  | E21: =Total_OF -> FALSE | F21: =IF('Energy & Production '!D89>0,'Energy & Production '!D89,"") ->  | G21: ='Energy & Production '!F89 -> 
B22: ='Translation '!A861 -> Grand Total | E22: =ROUND(SUM(E18:E21),0) -> 0 | F22: =IF(SUM(F18:F21)>0,ROUND(SUM(F18:F21),0),"") ->  | G22: =SUM(G18:G21) -> 0
B24: ='Translation '!A728 -> Figures 1a and 1b show the annual site electricity , natural gas, steam, and other fuels consumption in mega joules; and the cost of each energy stream.
B42: ='Translation '!A729 -> Table 3 shows the annual production for the different products that are produced in the plant along with the energy intensity for the baseline year.
B44: ='Translation '!A730 -> Table 3: Production Energy Use
B45: ='Translation '!A731 -> Production Stream | D45: ='Translation '!A732 -> Quantity | E45: ='Translation '!A725 -> Total Site Energy Use (0) | F45: =CONCATENATE(List!C47," ","(",List!G47,"/","Unit",")") -> Energy Use per Unit of Production (0/Unit)
B46: ='Translation '!A735 -> Product 1 | D46: ='Energy & Production '!H86 -> FALSE | E46: =SUM('Energy & Production '!B86:C89) -> 0 | F46: =IFERROR((E46/SUM(D46:D48)),"") -> 
B47: ='Translation '!A736 -> Product 2 | D47: ='Energy & Production '!I86 -> FALSE
B48: ='Translation '!A737 -> Product 3 | D48: ='Energy & Production '!J86 -> FALSE
B50: ='Translation '!A738 -> Fig. 2a shows the distribution of electricity , natural gas, and other fuel.
B53: =CONCATENATE('Translation '!A740," ",TEXT(E22,"###,###")," ",EI_Metric," ",'Translation '!A741:A741," ",TEXT('NAICS Data-Base'!Q145,"#,###")," ",'Energy & Production '!J19) -> Total annual consumption for baseline year was estimated at with annual production of Unit
B78: ='Translation '!A739 -> Fig. 2b shows the monthly energy consumption (electricity, natural gas, steam, and other fuels) of the plant along with their monthly production data.
B107: ='Translation '!A742 -> Figure 2c shows the correlation between Energy Intensity and production.
B130: ='Translation '!A743 -> Figure 3a. shows the different energy type used by each system type present in the plant. This helps the user to understand how much energy each system is using.
B154: ='Translation '!A755 -> Fig 3b. shows the percentage energy consumption per system.
B179: ='Translation '!A744 -> Table 4. summarizes the source energy consumption of each system. The user can see score from the scorecard if they have filled the forms for the system present in the plant. The tool uses the score from the scorecard (if the user has filled the scorecard) or the input from the "Energy saving opportunity" tab to categorize the energy saving opportunity and gives the energy saving that can be achieved.
B183: ='Translation '!A746 -> Note: | C183: ='Translation '!A745 -> The savings shown below correspond with the system and component recommendations shown in the suggested next steps table. The United Nations Industrial Development Organization Motor Systems Efficiency Supply Curves report shows that higher savings may be achievable for each system area.
B186: ='Translation '!A747 -> Table 4: Potential Annual Energy Savings()
B187: ='Translation '!A748 -> System Name | C187: ='Translation '!A749 -> Site Energy Consumption () | D187: ='Translation '!A834 -> Cost per System($) | E187: ='Translation '!A276 -> % Energy Consumption by system | F187: ='Translation '!A752 -> Potential Energy Savings by System (%) | G187: ='Translation '!A753 -> Potential Site Energy Savings() | H187: ='Translation '!A824 -> Potential Cost Saving($) | J187: Savings Oppurtunity
B188: ='Translation '!A161 -> Combined Heat and Power (Cogeneration) | C188: ='NAICS Data-Base'!J88 -> 0 | D188: ='NAICS Data-Base'!M88 -> 0 | E188: =IFERROR('NAICS Data-Base'!H133,0) -> 0 | F188: ='NAICS Data-Base'!F133 -> 0 | G188: ='NAICS Data-Base'!G133 -> 0 | H188: ='NAICS Data-Base'!R88 -> 0 | J188: ='NAICS Data-Base'!E133 -> 0
B189: ='Translation '!A162 -> Compressed Air | C189: ='NAICS Data-Base'!J89 -> 0 | D189: ='NAICS Data-Base'!M89 -> 0 | E189: =IFERROR('NAICS Data-Base'!H134,0) -> 0 | F189: ='NAICS Data-Base'!F134 -> 0 | G189: ='NAICS Data-Base'!G134 -> 0 | H189: ='NAICS Data-Base'!R89 -> 0 | J189: ='NAICS Data-Base'!E134 -> 0
B190: ='Translation '!A163 -> Electrochemical Processes | C190: ='NAICS Data-Base'!J90 -> 0 | D190: ='NAICS Data-Base'!M90 -> 0 | E190: =IFERROR('NAICS Data-Base'!H135,0) -> 0 | F190: ='NAICS Data-Base'!F135 -> 0 | G190: ='NAICS Data-Base'!G135 -> 0 | H190: ='NAICS Data-Base'!R90 -> 0 | J190: ='NAICS Data-Base'!E135 -> 0
B191: ='Translation '!A164 -> Fans and Blowers | C191: ='NAICS Data-Base'!J91 -> 0 | D191: ='NAICS Data-Base'!M91 -> 0 | E191: =IFERROR('NAICS Data-Base'!H136,0) -> 0 | F191: ='NAICS Data-Base'!F136 -> 0 | G191: ='NAICS Data-Base'!G136 -> 0 | H191: ='NAICS Data-Base'!R91 -> 0 | J191: ='NAICS Data-Base'!E136 -> 0
B192: ='Translation '!A165 -> Industrial Facilities (Lighting) | C192: ='NAICS Data-Base'!J92 -> 0 | D192: ='NAICS Data-Base'!M92 -> 0 | E192: =IFERROR('NAICS Data-Base'!H137,0) -> 0 | F192: ='NAICS Data-Base'!F137 -> 0 | G192: ='NAICS Data-Base'!G137 -> 0 | H192: ='NAICS Data-Base'!R92 -> 0 | J192: ='NAICS Data-Base'!E137 -> 0
B193: ='Translation '!A166 -> Industrial Facilities (HVAC) | C193: ='NAICS Data-Base'!J93 -> 0 | D193: ='NAICS Data-Base'!M93 -> 0 | E193: =IFERROR('NAICS Data-Base'!H138,0) -> 0 | F193: ='NAICS Data-Base'!F138 -> 0 | G193: ='NAICS Data-Base'!G138 -> 0 | H193: ='NAICS Data-Base'!R93 -> 0 | J193: ='NAICS Data-Base'!E138 -> 0
B194: ='Translation '!A167 -> Material Handling | C194: ='NAICS Data-Base'!J94 -> 0 | D194: ='NAICS Data-Base'!M94 -> 0 | E194: =IFERROR('NAICS Data-Base'!H139,0) -> 0 | F194: ='NAICS Data-Base'!F139 -> 0 | G194: ='NAICS Data-Base'!G139 -> 0 | H194: ='NAICS Data-Base'!R94 -> 0 | J194: ='NAICS Data-Base'!E139 -> 0
B195: ='Translation '!A168 -> Material Processing | C195: ='NAICS Data-Base'!J95 -> 0 | D195: ='NAICS Data-Base'!M95 -> 0 | E195: =IFERROR('NAICS Data-Base'!H140,0) -> 0 | F195: ='NAICS Data-Base'!F140 -> 0 | G195: ='NAICS Data-Base'!G140 -> 0 | H195: ='NAICS Data-Base'!R95 -> 0 | J195: ='NAICS Data-Base'!E140 -> 0
B196: ='Translation '!A169 -> Process Cooling and Refrigeration | C196: ='NAICS Data-Base'!J96 -> 0 | D196: ='NAICS Data-Base'!M96 -> 0 | E196: =IFERROR('NAICS Data-Base'!H141,0) -> 0 | F196: ='NAICS Data-Base'!F141 -> 0 | G196: ='NAICS Data-Base'!G141 -> 0 | H196: ='NAICS Data-Base'!R96 -> 0 | J196: ='NAICS Data-Base'!E141 -> 0
B197: ='Translation '!A170 -> Process Heating | C197: ='NAICS Data-Base'!J97 -> 0 | D197: ='NAICS Data-Base'!M97 -> 0 | E197: =IFERROR('NAICS Data-Base'!H142,0) -> 0 | F197: ='NAICS Data-Base'!F142 -> 0 | G197: ='NAICS Data-Base'!G142 -> 0 | H197: ='NAICS Data-Base'!R97 -> 0 | J197: ='NAICS Data-Base'!E142 -> 0
B198: ='Translation '!A171 -> Pumps | C198: ='NAICS Data-Base'!J98 -> 0 | D198: ='NAICS Data-Base'!M98 -> 0 | E198: =IFERROR('NAICS Data-Base'!H143,0) -> 0 | F198: ='NAICS Data-Base'!F143 -> 0 | G198: ='NAICS Data-Base'!G143 -> 0 | H198: ='NAICS Data-Base'!R98 -> 0 | J198: ='NAICS Data-Base'!E143 -> 0
B199: ='Translation '!A172 -> Steam Generation Equipment | C199: ='NAICS Data-Base'!J99 -> 0 | D199: ='NAICS Data-Base'!M99 -> 0 | E199: =IFERROR('NAICS Data-Base'!H144,0) -> 0 | F199: ='NAICS Data-Base'!F144 -> 0 | G199: ='NAICS Data-Base'!G144 -> 0 | H199: ='NAICS Data-Base'!R99 -> 0 | J199: ='NAICS Data-Base'!E144 -> 0
B200: ='Translation '!A277 -> Miscellaneous | C200: ='NAICS Data-Base'!Q76 -> 0 | D200: ='NAICS Data-Base'!Q79 -> 0 | E200: =IFERROR('NAICS Data-Base'!H145,0) -> 0
B201: ='Translation '!A754 -> Total | C201: =SUM(C188:C200) -> 0 | D201: =IF(SUM(D188:D200)>0,SUM(D188:D200),"") ->  | E201: =SUM(E188:E200) -> 0 | G201: =SUM(G188:G199) -> 0 | H201: =SUM(H188:H199) -> 0
B205: ='Translation '!A756 -> Fig. 4a shows the annual energy consumption and the potential energy saving for each system.
B233: ='Translation '!A757 -> Fig. 4b shows the annual energy consumption and the potential energy saving for each fuel source.
B252: ='Translation '!A758 -> Figures 5a, 5b , 5c and 5d provide a breakdown of the annual energy consumption and the potential energy saving for each fuel source in its original units.
B276: ='Translation '!A759 -> Electricity Use and Potential Savings by System
B278: ='Translation '!B771 -> Figures 6a presents the breakdown of the annual electricity consumption a by system in a pie chart.
B303: ='Translation '!B775 -> Figures 6b presents the breakdown of the annual electricity consumption and the potential electricity saving by system in a stacked bar chart.
B331: ='Translation '!A760 -> Natural Gas Use and Potential Savings by System
B333: ='Translation '!B772 -> Figures 7a presents the breakdown of the annual natural gas consumptionby system in a pie chart.
B359: ='Translation '!B776 -> Figures 7b presents the breakdown of the annual natural gas consumption and the potential natural gas saving by system in a stacked bar chart.
B388: ='Translation '!A761 -> Steam Use and Potential Savings by System
B390: ='Translation '!B773 -> Figures 8a presents the breakdown of the annual steam consumption by system in a pie chart. The outher pie represents the total steam used while the inner pie represents the potential saings.
B416: ='Translation '!B777 -> Figures 8b presents the breakdown of the annual steam consumption and the potential steam saving by system in a stacked bar chart.
B446: ='Translation '!A762 -> Other Fuel Usage and Potential Savings by System
B448: ='Translation '!B774 -> Figures 9a presents the breakdown of the annual consumption of miscellaneous fuel by system in a pie chart.
B475: ='Translation '!B778 -> Figures 9b presents the breakdown of the annual consumption and the potential electricity saving by system in a stacked bar chart.
B506: Potential Annual CO2 Emissions Savings
B507: ='Translation '!A780 -> Based on the potential energy savings identified above, your plant may be able to reduce emissions of CO2. The following potential annual CO2 emission savings numbers are broad estimates based on industry averages and are not meant to reflect actual realized savings at your plant. Factors such as CHP system or steam generator efficiency and primary fuel source for energy use systems such as furnaces and boilers make a large difference in the actual amount of CO2 emission saved. These numbers are presented as a broad estimate based on estimated savings and industry averages only. NOTE: Actual CO2 savings from fuel/steam energy savings are based on the primary fuel source. The exact breakdown of the individual primary fuels that are used at your plant for process heating, power generation and steam generation is beyond the scope of this tool. The table below shows a range of potential CO2 savings from fuel/steam use in your plant. The low end of the range is based on the use of fuels that contain relatively low amounts of carbon such as natural gas. The high end of the range is based on fuels that have a high amount of carbon such as coal (anthracite, bituminous or lignite). Your actual CO2 emission reduction will depend on the actual primary fuels that are used at your plant.
B518: ='Translation '!A781 -> Potential Annual CO2 from Electricity | F518: =IFERROR('NAICS Data-Base'!I209,0) ->  | G518: ='Translation '!$A$784 -> Metric Ton
B519: ='Translation '!A782 -> Potential Annual CO2 from Natural gas | F519: =IFERROR('NAICS Data-Base'!I208,0) ->  | G519: ='Translation '!$A$784 -> Metric Ton
B520: ='Translation '!A783 -> Potential Annual CO2 from Coal | F520: =IFERROR('NAICS Data-Base'!I210,0) ->  | G520: ='Translation '!$A$784 -> Metric Ton
B543: ='Translation '!A785 -> Implemented Energy Efficiency Projects and Potential Opportunities
B545: ='Translation '!A786 -> Plant's energy management team is actively identifying and implementing energy efficiency projects. The plant has implemented the following energy efficiency projects and initiatives recently.
B546: ='Translation '!A790 -> Name of the Project | D546: ='Translation '!A791 -> Description of the project
B547: ='Energy Saving Opportunities'!A32 -> 0 | D547: ='Energy Saving Opportunities'!D32:J32 -> 0
B548: ='Energy Saving Opportunities'!A33 -> 0 | D548: ='Energy Saving Opportunities'!D33:J33 -> 0
B549: ='Energy Saving Opportunities'!A34 -> 0 | D549: ='Energy Saving Opportunities'!D34:J34 -> 0
B550: ='Energy Saving Opportunities'!A35 -> 0 | D550: ='Energy Saving Opportunities'!D35:J35 -> 0
B551: ='Energy Saving Opportunities'!A36 -> 0 | D551: ='Energy Saving Opportunities'!D36:J36 -> 0
B553: ='Translation '!A792 -> Based on the scores of system specific scorecards and/or the user selection in the 'Energy Saving Opportunity' section a ranking has been given to each system. This ranking helped us to determine the possible next steps the plant can take to further reduce their energy consumption.
B556: ='Translation '!A793 -> Energy Efficiency Projects Identified or Potential Project Opportunities
B557: ='Translation '!A748 -> System Name | C557: ='Translation '!A794 -> Energy Efficiency Projects Identified or Potential Project Opportunities
B558: ='Translation '!A161 -> Combined Heat and Power (Cogeneration) | C558: =IF(OR(J188=List!$A$8,J188=List!$A$9,J188=0),"The system is not present in your plant",VLOOKUP(B558,'NAICS Data-Base'!$B$149:$N$202,MATCH(J188,'NAICS Data-Base'!$B$149:$N$149,0),FALSE)) -> The system is not present in your plant
B559: ='Translation '!A162 -> Compressed Air | C559: =IF(OR(J189=List!$A$8,J189=List!$A$9,J189=0),"The system is not present in your plant",VLOOKUP(B559,'NAICS Data-Base'!$B$149:$N$202,MATCH(J189,'NAICS Data-Base'!$B$149:$N$149,0),FALSE)) -> The system is not present in your plant
B560: ='Translation '!A164 -> Fans and Blowers | C560: =IF(OR(J191=List!$A$8,J191=List!$A$9,J191=0),"The system is not present in your plant",VLOOKUP(B560,'NAICS Data-Base'!$B$149:$N$202,MATCH(J191,'NAICS Data-Base'!$B$149:$N$149,0),FALSE)) -> The system is not present in your plant
B561: ='Translation '!A165 -> Industrial Facilities (Lighting) | C561: =IF(OR(J192=List!$A$8,J192=List!$A$9,J192=0),"The system is not present in your plant",VLOOKUP(B561,'NAICS Data-Base'!$B$149:$N$202,MATCH(J192,'NAICS Data-Base'!$B$149:$N$149,0),FALSE)) -> The system is not present in your plant
B562: ='Translation '!A166 -> Industrial Facilities (HVAC) | C562: =IF(OR(J193=List!$A$8,J193=List!$A$9,J193=0),"The system is not present in your plant",VLOOKUP(B562,'NAICS Data-Base'!$B$149:$N$202,MATCH(J193,'NAICS Data-Base'!$B$149:$N$149,0),FALSE)) -> The system is not present in your plant
B563: ='Translation '!A169 -> Process Cooling and Refrigeration | C563: =IF(OR(J196=List!$A$8,J196=List!$A$9,J196=0),"The system is not present in your plant",VLOOKUP(B563,'NAICS Data-Base'!$B$149:$N$202,MATCH(J196,'NAICS Data-Base'!$B$149:$N$149,0),FALSE)) -> The system is not present in your plant
B564: ='Translation '!A170 -> Process Heating | C564: =IF(OR(J197=List!$A$8,J197=List!$A$9,J197=0),"The system is not present in your plant",VLOOKUP(B564,'NAICS Data-Base'!$B$149:$N$202,MATCH(J197,'NAICS Data-Base'!$B$149:$N$149,0),FALSE)) -> The system is not present in your plant
B565: ='Translation '!A171 -> Pumps | C565: =IF(OR(J198=List!$A$8,J198=List!$A$9,J198=0),"The system is not present in your plant",VLOOKUP(B565,'NAICS Data-Base'!$B$149:$N$202,MATCH(J198,'NAICS Data-Base'!$B$149:$N$149,0),FALSE)) -> The system is not present in your plant
B566: ='Translation '!A172 -> Steam Generation Equipment | C566: =IF(OR(J199=List!$A$8,J199=List!$A$9,J199=0),"The system is not present in your plant",VLOOKUP(B566,'NAICS Data-Base'!$B$149:$N$202,MATCH(J199,'NAICS Data-Base'!$B$149:$N$149,0),FALSE)) -> The system is not present in your plant
B567: ='Translation '!A173 -> Energy Management | C567: ='Energy Management Opportunity'!D4 -> 1.) Put together an energy management plan 2.) Form a cross functional energy team 3.) Construct a formal methodolgy to communicate energy management practices to the emplyees 4.) Make use of life cycle cost analysis to evaluate the energy efficiecy projects 5.) Establish a suitable payback period for energy efficiency projects

Sheet Tutorial (hidden)
C12: This software tool helps plants quickly “diagnose” their energy use and begin identifying opportunities for savings. It does this by providing an overview of the amount of energy that your plant purchases, identifying the major industrial systems that consume that energy, describing your plant’s savings potential, and pointing out specific measures you can take to realize savings. PEPEx is like a road map that directs you to specific, targeted ways to save energy and money.
C17: Using PEPex and information about your particular plant, you can complete a plant profile in about one hour. This tutorial explains the information you’ll need to complete the profile.
C33: Understanding Tool Layout
C35: PHASTEx consist of 7 core excel worksheets. Based on its function the sheets are categorized as introduction sheets, user input sheets and result sheet. The user manually completes the input data sheets and the output graphs and tables are populated accordingly in the “Results” sheet
C56: Step 1: Basic Information
C58: The Basic Information sheet is the first step in PEPex. On this screen you will enter some basic information about your facility.
C88: The only madated field in this sheet is the “Indusrty Type”. PEPEx uses the industry type data to calculate default breakdown of the energy uses per system in Step 3.
C92: The remaining questions which include basic information regarding the plant location, operating schedule and energy management are primarily for book keeping purposes and do not affect the results.
C96: Step 2: Energy and Production Data
C98: The second input sheet in the PEPEx application is “Energy and Production”. You are asked to enter data from utility bills and/or sub meter recordings. Some of the important fields on this sheet are discussed below.
C139: Units of Measurement
C141: PEPEx allows you to input your energy data for each fuel in the unit which is most familiar to you. Only when presenting results for the various energy sources together does PEPEx convert all units to a common output unit. The user further has the option to choose this output unit from a list of optons from the dropdown box in cell I11.
C146: Facility’s Energy and Production
C148: On cell B16, the user can choose to use either annual or monthly data for energy and production inputs. The appropriate tables popup based on the selection. Most of the PEPEx results can be generated with just the annual data some of the graphs/tables need monthly data. These graphs/tables will be hidden from the results if annual data is used.
C153: Site to Source conversion (optional)
C155: The user also has the option to input a source energy factor for each fuel used. Source Energy factor is used to calculate the source energy for each energy stream. Source energy incorporates all transmission, delivery and production losses associated with each energy stream.
C159: The default source factor for each stream is provided , based on those used in Energy Star Portfolio Manager. The user may wish to make appropriate changes to this factor to account for losses associated with transmission, delivery, and production of each energy stream. PEPEx calculates all its results in terms of "site energy" unless explicitily stated.
C163: Step 3: Energy Use Systems
C196: In Step 3, select the energy end use systems that consume energy at your plant from the dropdown in Column C, rows 24 to 35. For each system that is used in the plant it is necessary to choose a primary energy source.
C200: Based on this information PEPEx populates the default energy breakdown based on the industry type, defined in Step 1, in cells F39 – G50. The default percentages are based on data collected by the Manufacturing Energy Consumption Survey (MECS) administered by the U.S. Energy Information Administration in 2010.
C205: The user may override these default values by providing an estimate of the facilities actual percentages in cells F24 – G35. For more accurate results, it is recommended that the user overrides the default values, even if it is with partial information. If you are not sure how much energy is used for each of the breakout categories, you can leave these cells blank and the default percentages will be used. The user may override these default values by providing an estimate of the facilities actual percentages in cells F24 – G35. For more accurate results, it is recommended that the user overrides the default values, even if it is with partial information. If you are not sure how much energy is used for each of the breakout categories, you can leave these cells blank and the default percentages will be used.
C210: Step 4: Energy Savings Opportunities
C212: The fourth and final input sheet in the PEPEx application allows users to define the potential energy savings opportunities for each system. The is done by choosing between High/Medium and Low from the drop down list in rows 17 – 28. A high level guideline to determine the existing potential can be found in the instructions above the table.
C218: User also have the option to use a more rigorous approach to determine energy savings potential associated with a system by making use of the scorecards.
C254: Energy use System Scorecard (Optional)
C256: When you first arrive at the “Energy savings Opportunities” sheet, each of the scorecards will be hidden by default. To “Unhide” a scorecard, click on the arrow in the right corner of the corresponding cell and choose ”Use scorecard”. This will make the scorecard to open so the questions can be viewed.
C261: Scorecards are not available for electrochemical processes, industrial facilities, fans and blowers, materials handling, or materials processing.
C264: You are not required to answer all of the questions in Scorecard, although it is recommended to answer as many questions as possible to help PEPEx more accurately profile your facility.
C267: After completing the scorecard questions, simple go back to the “Energy Savings Opportunities” tab to continue your data input.
C270: Results
C272: The final step in PEPEx is the results screen. The PEPEx results report has tables and graphs that show how much energy you are purchasing (and how much it costs), how you are consuming that energy, and potentially how much energy and money you could save. The graphs and tables in the results page can be broadly categorized into 5 groups listed below.
C277: I. Energy Usage Summary - Tables/ Figures 1 to 3.
C290: II. Total Energy Savings Potential – Tables/ Figures 4.
C307: III. Energy Savings Potential by Energy Source - Tables / Figures 5 to 9.
C327: IV. Potential Emission Reductions
C344: V. Energy Efficiency Opportunity

Sheet Energy Breakdown Calculations (hidden)
B4: ='Energy Use System'!A69 -> System | C4: ='Energy Use System'!B69 -> Quantity | D4: ='Energy Use System'!C69 -> Total Rated Size | E4: ='Energy Use System'!D69 -> Unit for Rated Size | F4: ='Energy Use System'!E69 -> Energy Source | G4: ='Energy Use System'!F69 -> % Load factor | H4: ='Energy Use System'!G69 -> Annual Hours of Operation (hr/year) | I4: ='Energy Use System'!H69 -> % System Efficiency | J4: ='Energy Use System'!I69 -> Annual Consumption(0) | K4: ='Energy Use System'!J69 -> Percent of Energy Source
B5: ='Energy Use System'!A70 -> CHP - Primary | C5: ='Energy Use System'!B70 -> 0 | D5: ='Energy Use System'!C70 -> 0 | E5: ='Energy Use System'!D70 -> 0 | F5: ='Energy Use System'!E70 -> 0 | G5: ='Energy Use System'!F70 -> 0 | H5: ='Energy Use System'!G70 -> 0 | I5: ='Energy Use System'!H70 -> 0 | J5: =IFERROR(C5*D5*G5*H5/I5*C22,"") ->  | K5: =IFERROR(J5/VLOOKUP(F5,$I$22:$J$25,2,FALSE),"") -> 
B6: ='Energy Use System'!A71 -> CHP - Secondary | C6: ='Energy Use System'!B71 -> 0 | D6: ='Energy Use System'!C71 -> 0 | E6: ='Energy Use System'!D71 -> 0 | F6: ='Energy Use System'!E71 -> 0 | G6: ='Energy Use System'!F71 -> 0 | H6: ='Energy Use System'!G71 -> 0 | I6: ='Energy Use System'!H71 -> 0 | J6: =IFERROR(C6*D6*G6*H6/I6*C23,"") ->  | K6: =IFERROR(J6/VLOOKUP(F6,$I$22:$J$25,2,FALSE),"") -> 
B7: ='Energy Use System'!A72 -> Air Compressors | C7: ='Energy Use System'!B72 -> 2 | D7: ='Energy Use System'!C72 -> 50 | E7: ='Energy Use System'!D72 -> HP | F7: ='Energy Use System'!E72 -> 0 | G7: ='Energy Use System'!F72 -> 0.3 | H7: ='Energy Use System'!G72 -> 6000 | I7: ='Energy Use System'!H72 -> 0.75
B8: ='Energy Use System'!A73 -> Electrochemical Processes | C8: ='Energy Use System'!B73 -> 0 | D8: ='Energy Use System'!C73 -> 0 | E8: ='Energy Use System'!D73 -> 0 | F8: ='Energy Use System'!E73 -> 0 | G8: ='Energy Use System'!F73 -> 0 | H8: ='Energy Use System'!G73 -> 0 | I8: ='Energy Use System'!H73 -> 0
B9: ='Energy Use System'!A74 -> Fans and Blowers | C9: ='Energy Use System'!B74 -> 0 | D9: ='Energy Use System'!C74 -> 0 | E9: ='Energy Use System'!D74 -> 0 | F9: ='Energy Use System'!E74 -> 0 | G9: ='Energy Use System'!F74 -> 0 | H9: ='Energy Use System'!G74 -> 0 | I9: ='Energy Use System'!H74 -> 0
B10: ='Energy Use System'!A75 -> Industrial Facilities (Lighting) | C10: ='Energy Use System'!B75 -> 0 | D10: ='Energy Use System'!C75 -> 0 | E10: ='Energy Use System'!D75 -> 0 | F10: ='Energy Use System'!E75 -> 0 | G10: ='Energy Use System'!F75 -> 0 | H10: ='Energy Use System'!G75 -> 0 | I10: ='Energy Use System'!H75 -> 0
B11: ='Energy Use System'!A76 -> Industrial Facilities (HVAC) | C11: ='Energy Use System'!B76 -> 0 | D11: ='Energy Use System'!C76 -> 0 | E11: ='Energy Use System'!D76 -> 0 | F11: ='Energy Use System'!E76 -> 0 | G11: ='Energy Use System'!F76 -> 0 | H11: ='Energy Use System'!G76 -> 0 | I11: ='Energy Use System'!H76 -> 0
B12: ='Energy Use System'!A77 -> Material Handling | C12: ='Energy Use System'!B77 -> 0 | D12: ='Energy Use System'!C77 -> 0 | E12: ='Energy Use System'!D77 -> 0 | F12: ='Energy Use System'!E77 -> 0 | G12: ='Energy Use System'!F77 -> 0 | H12: ='Energy Use System'!G77 -> 0 | I12: ='Energy Use System'!H77 -> 0
B13: ='Energy Use System'!A78 -> Material Processing | C13: ='Energy Use System'!B78 -> 0 | D13: ='Energy Use System'!C78 -> 0 | E13: ='Energy Use System'!D78 -> 0 | F13: ='Energy Use System'!E78 -> 0 | G13: ='Energy Use System'!F78 -> 0 | H13: ='Energy Use System'!G78 -> 0 | I13: ='Energy Use System'!H78 -> 0
B14: ='Energy Use System'!A79 -> Process Cooling and Refrigeration | C14: ='Energy Use System'!B79 -> 0 | D14: ='Energy Use System'!C79 -> 0 | E14: ='Energy Use System'!D79 -> 0 | F14: ='Energy Use System'!E79 -> 0 | G14: ='Energy Use System'!F79 -> 0 | H14: ='Energy Use System'!G79 -> 0 | I14: ='Energy Use System'!H79 -> 0
B15: ='Energy Use System'!A80 -> Process Heating | C15: ='Energy Use System'!B80 -> 0 | D15: ='Energy Use System'!C80 -> 0 | E15: ='Energy Use System'!D80 -> 0 | F15: ='Energy Use System'!E80 -> 0 | G15: ='Energy Use System'!F80 -> 0 | H15: ='Energy Use System'!G80 -> 0 | I15: ='Energy Use System'!H80 -> 0
B16: ='Energy Use System'!A81 -> Pumps | C16: ='Energy Use System'!B81 -> 0 | D16: ='Energy Use System'!C81 -> 0 | E16: ='Energy Use System'!D81 -> 0 | F16: ='Energy Use System'!E81 -> 0 | G16: ='Energy Use System'!F81 -> 0 | H16: ='Energy Use System'!G81 -> 0 | I16: ='Energy Use System'!H81 -> 0
B17: ='Energy Use System'!A82 -> Steam Generation Equipment | C17: ='Energy Use System'!B82 -> 0 | D17: ='Energy Use System'!C82 -> 0 | E17: ='Energy Use System'!D82 -> 0 | F17: ='Energy Use System'!E82 -> 0 | G17: ='Energy Use System'!F82 -> 0 | H17: ='Energy Use System'!G82 -> 0 | I17: ='Energy Use System'!H82 -> 0
B20: Conversion | G20: =EI_Metric -> 0
B21: Unit of Rated Size | C21: =CONCATENATE("Conversion Factor to ",EI_Metric,"/hr") -> Conversion Factor to /hr | F21: MBTU/hr | G21: =C21 -> Conversion Factor to /hr | I21: Energy Source | J21: Total Consumption
B22: =E5 -> 0 | C22: =IFERROR(VLOOKUP(B22,$E$22:$G$26,3,FALSE),"") ->  | E22: =List!I45 -> HP | F22: =2544.43/1000 -> 2.54443 | G22: =HLOOKUP($G$20,Conversions!$F$2:$S$3,2,FALSE)*F22 ->  | I22: ='Translation '!A129 -> Electricity | J22: =Total_Electricity -> FALSE
B23: =E6 -> 0 | C23: =IFERROR(VLOOKUP(B23,$E$22:$G$26,3,FALSE),"") ->  | E23: =List!I46 -> Metric Tons | F23: =12000/1000 -> 12 | G23: =HLOOKUP($G$20,Conversions!$F$2:$S$3,2,FALSE)*F23 ->  | I23: ='Translation '!A130 -> Natural Gas | J23: =Total_NG -> FALSE
B24: HP | E24: =List!I47 -> kJ/ Hr. | F24: =0.947817/1000 -> 0.000947817 | G24: =HLOOKUP($G$20,Conversions!$F$2:$S$3,2,FALSE)*F24 ->  | I24: ='Translation '!A131 -> Steam | J24: =Total_Steam -> FALSE
B25: 0 | E25: =List!I48 -> KW | F25: =3412.14/1000 -> 3.41214 | G25: =HLOOKUP($G$20,Conversions!$F$2:$S$3,2,FALSE)*F25 ->  | I25: ='Translation '!A132 -> Other Fuel | J25: =Total_OF -> FALSE
B26: 0 | E26: =List!I49 -> MMBTU/hr | F26: =10^6/1000 -> 1000 | G26: =HLOOKUP($G$20,Conversions!$F$2:$S$3,2,FALSE)*F26 -> 
B27: 0
B28: 0
B29: 0
B30: 0
B31: 0
B32: 0
B33: 0
B34: 0

Sheet List (hidden)
A1: Units
A2: ='Translation '!A215 -> Units Build
A3: ='Translation '!A216 -> Metric Tons
A6: Yes/No
A7: ='Translation '!A217 -> Yes
A8: ='Translation '!A218 -> No
A9: ='Translation '!A219 -> N/A
A12: =A7 -> Yes
A13: =A8 -> No
A16: Unit
A17: ='Translation '!A220 -> MJ
A18: ='Translation '!A221 -> MWH
A20: Industry | I20: ='Translation '!A198 -> Industry | J20: NAICS CODE
A21: ='Translation '!A199 -> Aluminum and Alumina | I21: ='Translation '!A199 -> Aluminum and Alumina | J21: 3313
A22: ='Translation '!A200 -> Cement | I22: ='Translation '!A200 -> Cement | J22: 327310
A23: ='Translation '!A201 -> Chemical and Allied Products | I23: ='Translation '!A201 -> Chemical and Allied Products | J23: 325
A24: ='Translation '!A202 -> Computer, Electronics and Appliances | I24: ='Translation '!A202 -> Computer, Electronics and Appliances | J24: 334335
A25: ='Translation '!A203 -> Fabricated Metal Products | I25: ='Translation '!A203 -> Fabricated Metal Products | J25: 332
A26: ='Translation '!A204 -> Food, Beverage and Tobacco Products | I26: ='Translation '!A204 -> Food, Beverage and Tobacco Products | J26: 311-312
A27: ='Translation '!A205 -> Foundries | I27: ='Translation '!A205 -> Foundries | J27: 3315
A28: ='Translation '!A206 -> Glass and Glass Products | I28: ='Translation '!A206 -> Glass and Glass Products | J28: 3272327993
A29: ='Translation '!A207 -> Heavy Machinery | I29: ='Translation '!A207 -> Heavy Machinery | J29: 333
A30: ='Translation '!A208 -> Integrated Steel | I30: ='Translation '!A208 -> Integrated Steel | J30: 3311, 3312
A31: ='Translation '!A209 -> Petroleum Refining | I31: ='Translation '!A209 -> Petroleum Refining | J31: 324110
A32: ='Translation '!A210 -> Plastic and Rubber Products | I32: ='Translation '!A210 -> Plastic and Rubber Products | J32: 326
A33: ='Translation '!A211 -> Textile and Apparels and Leather goods | I33: ='Translation '!A211 -> Textile and Apparels and Leather goods | J33: 313316
A34: ='Translation '!A212 -> Transportation Equipment | I34: ='Translation '!A212 -> Transportation Equipment | J34: 336
A35: ='Translation '!A213 -> Wood Produces, Pulp and Paper | I35: ='Translation '!A213 -> Wood Produces, Pulp and Paper | J35: 321322
A36: ='Translation '!A214 -> Others (All Manufacturing) | I36: ='Translation '!A214 -> Others (All Manufacturing) | J36: 31-33
A38: Cost | C38: Titles | D38: Column2 | E38: Column1 | F38: Column12 | G38: Unit
A39: ='Translation '!A222 -> $/kWh | C39: Monthly Site Electricity Consumption | G39: ='Energy & Production '!B10 -> 0
A40: ='Translation '!A223 -> $/Kilo Joules | C40: Monthly Natural Gas Consumption | G40: ='Energy & Production '!B11 -> 0
C41: Monthly Steam Consumption | G41: ='Energy & Production '!B12 -> 0
A42: Time | C42: Monthly Other Fuel Consumption | G42: ='Energy & Production '!F11 -> 0
A43: ='Translation '!A224 -> Weekly | C43: Annual Consumption | G43: ='Energy & Production '!F12 -> 0
A44: ='Translation '!A225 -> Monthly | C44: Site Energy Use | G44: ='Energy & Production '!F12 -> 0 | I44: Rating
A45: ='Translation '!A226 -> Quarterly | C45: Source Energy Use | G45: ='Energy & Production '!$F$12 -> 0 | I45: ='Translation '!A230 -> HP
A46: ='Translation '!A227 -> Semi-annually | C46: Energy Use | G46: ='Energy & Production '!$F$12 -> 0 | I46: ='Translation '!A231 -> Metric Tons
A47: ='Translation '!A228 -> Annually | C47: Energy Use per Unit of Production | G47: ='Energy & Production '!$F$12 -> 0 | I47: ='Translation '!A232 -> kJ/ Hr.
A48: ='Translation '!A229 -> N/A | C48: Total Monthly Electricity Cost | G48: =INDEX(Table16[],MATCH(Disclaimer!$C$3,Table16[Currency],0),2) -> $ | I48: ='Translation '!A233 -> KW
C49: Total Monthly Natural Gas Cost | G49: =INDEX(Table16[],MATCH(Disclaimer!$C$3,Table16[Currency],0),2) -> $ | I49: ='Translation '!A234 -> MMBTU/hr
C50: Total Monthly Steam Consumption Cost | G50: =INDEX(Table16[],MATCH(Disclaimer!$C$3,Table16[Currency],0),2) -> $
C51: Total Monthly Other Fuel Cost | G51: =INDEX(Table16[],MATCH(Disclaimer!$C$3,Table16[Currency],0),2) -> $
C52: Annual Cost of Energy | G52: =INDEX(Table16[],MATCH(Disclaimer!$C$3,Table16[Currency],0),2) -> $
C53: Annual Cost | G53: =INDEX(Table16[],MATCH(Disclaimer!$C$3,Table16[Currency],0),2) -> $
C54: Site Energy Cost | G54: =INDEX(Table16[],MATCH(Disclaimer!$C$3,Table16[Currency],0),2) -> $
C55: =CONCATENATE("Potential Savings","(",Table14[[#This Row],[Unit]],")") -> Potential Savings(0) | G55: =G44 -> 0
A56: Percentage
A57: ='Translation '!A235 -> Greater than 80%
A58: ='Translation '!A236 -> 40% to 80%
A59: ='Translation '!A237 -> 20% to 40%
A60: ='Translation '!A238 -> less than 20%
A62: Level | B62: Column1
A63: ='Translation '!A239 -> Use Scorecard
A64: ='Translation '!A240 -> High | B64: =Table9[[#This Row],[Level ]] -> High
A65: ='Translation '!A241 -> Medium | B65: =Table9[[#This Row],[Level ]] -> Medium
A66: ='Translation '!A242 -> Low | B66: =Table9[[#This Row],[Level ]] -> Low
A67: ='Translation '!A243 -> N/A | B67: =Table9[[#This Row],[Level ]] -> N/A
A68: NAICS
A69: ='Translation '!A244 -> Electricity
A70: ='Translation '!A245 -> Natural Gas
A71: ='Translation '!A246 -> Steam
A72: ='Translation '!A247 -> Other Fuel
A74: Cost Unit
A75: ='Translation '!A248 -> $/kWh
A76: ='Translation '!A249 -> $/MWh
A77: ='Translation '!A250 -> $/MJ
A78: ='Translation '!A251 -> $/cu.ft
A79: ='Translation '!A252 -> $/gallon
A80: ='Translation '!A253 -> $/metric ton
A82: Level
A83: ='Translation '!A240 -> High
A84: ='Translation '!A241 -> Medium
A85: ='Translation '!A242 -> Low
A86: ='Translation '!A243 -> N/A
A88: Language
A89: English
A90: Russian
A91: Ukrainian
A93: Currency | B93: Symbol
A94: USD($) | B94: $
A95: GBP(₤) | B95: ₤
A96: Ruble (₽) | B96: ₽
A97: Chinese Yuan(¥) | B97: ¥

Sheet Named List (hidden)
A13: Propane | B13: Пропан | C13: SCF | D13: CCF | E13: MCF | F13: M^3 | G13: Gallon | H13: BBL | I13: MBTU | J13: MMBTU | K13: kJ | L13: MJ | M13: GJ | N13: TJ | O13: Therms | P13: DTh | Q13: kCal | R13: Gcal | S13: Tonne of Oil Equivalent
A14: Butane | B14: Бутан | C14: SCF | D14: CCF | E14: MCF | F14: M^4 | G14: Gallon | H14: BBL | I14: MBTU | J14: MMBTU | K14: kJ | L14: MJ | M14: GJ | N14: TJ | O14: Therms | P14: DTh | Q14: kCal | R14: Gcal | S14: Tonne of Oil Equivalent
A15: LNG | B15: СПГ | C15: Gallon | D15: BBL
A16: Fuel_Oil_1 | B16: Горючее_1 | C16: Gallon | D16: BBL
A17: Fuel_Oil_2 | B17: Горючее_2 | C17: Gallon | D17: BBL
A18: Fuel_Oil_4 | B18: Горючее_4 | C18: Gallon | D18: BBL
A19: Fuel_Oil_5 | B19: Горючее_5 | C19: Gallon | D19: BBL
A20: Fuel_Oil_6_low sulfer | B20: Горючее_6 | C20: Gallon | D20: BBL
A21: Fuel_Oil_6_high_sulfer | B21: Горючее_6_высокая Сера | C21: Gallon | D21: BBL
A22: Gasoline | B22: бензин | C22: Gallon | D22: BBL
A23: Kerosene | B23: керосин | C23: Gallon | D23: BBL
A24: Coal | B24: Каменный уголь | C24: Lb | D24: Short Ton | E24: Long Ton | F24: kg | G24: Metric Ton
A25: Coke | B25: коксовый | C25: Lb | D25: Short Ton | E25: Long Ton | F25: kg | G25: Metric Ton
A26: Wood | B26: Дерево | C26: Lb | D26: Short Ton | E26: Long Ton | F26: kg | G26: Metric Ton
A27: Fuel_Oil_1 | B27: Мазут_1 | C27: Gallon | D27: BBL
A28: Fuel_Oil_2 | B28: Мазут_2 | C28: Gallon | D28: BBL
A29: Fuel_Oil_4 | B29: Мазут_4 | C29: Gallon | D29: BBL
A30: Fuel_Oil_5 | B30: Мазут_5 | C30: Gallon | D30: BBL
A31: Fuel_Oil_6_low sulfer | B31: Мазут_6 | C31: Gallon | D31: BBL
A32: Fuel_Oil_6_high_sulfer | B32: Мазут_6_висока Сірка | C32: Gallon | D32: BBL
A33: Gasoline | B33: бензин | C33: Gallon | D33: BBL
A34: Kerosene | B34: гас | C34: Gallon | D34: BBL
A35: Coal | B35: вугілля | C35: Lb | D35: Short Ton | E35: Long Ton | F35: kg | G35: Metric Ton
A36: Coke | B36: коксовий | C36: Lb | D36: Short Ton | E36: Long Ton | F36: kg | G36: Metric Ton
A37: Wood | B37: дерево | C37: Lb | D37: Short Ton | E37: Long Ton | F37: kg | G37: Metric Ton

Sheet Energy Management Opportunity (hidden)
B4: Energy Management Opputunity | C4: =E5*E6*E7*E8*E9 -> 1 | D4: =VLOOKUP(C4,F4:G35,2,FALSE) -> 1.) Put together an energy management plan 2.) Form a cross functional energy team 3.) Construct a formal methodolgy to communicate energy management practices to the emplyees 4.) Make use of life cycle cost analysis to evaluate the energy efficiecy projects 5.) Establish a suitable payback period for energy efficiency projects | F4: 1 | G4: =CONCATENATE("1.) ",D5,CHAR(10),CHAR(10),"2.) ",D6,CHAR(10),CHAR(10),"3.) ",D7,CHAR(10),CHAR(10),"4.) ",D8,CHAR(10),CHAR(10),"5.) ",D9) -> 1.) Put together an energy management plan 2.) Form a cross functional energy team 3.) Construct a formal methodolgy to communicate energy management practices to the emplyees 4.) Make use of life cycle cost analysis to evaluate the energy efficiecy projects 5.) Establish a suitable payback period for energy efficiency projects
C5: ='Basic Info '!H26 -> 0 | D5: ='Translation '!B879 -> Put together an energy management plan | E5: =IF('Basic Info '!H26=List!$A$7,2,1) -> 1 | F5: 2 | G5: =CONCATENATE("1.) ",D6,CHAR(10),CHAR(10),"2.) ",D7,CHAR(10),CHAR(10),"3.) ",D8,CHAR(10),CHAR(10),"4.) ",D9) -> 1.) Form a cross functional energy team 2.) Construct a formal methodolgy to communicate energy management practices to the emplyees 3.) Make use of life cycle cost analysis to evaluate the energy efficiecy projects 4.) Establish a suitable payback period for energy efficiency projects
C6: ='Basic Info '!H27 -> 0 | D6: ='Translation '!B880 -> Form a cross functional energy team | E6: =IF('Basic Info '!H27=List!$A$7,3,1) -> 1 | F6: 3 | G6: =CONCATENATE("1.) ",D5,CHAR(10),CHAR(10),"2.) ",D7,CHAR(10),CHAR(10),"3.) ",D8,CHAR(10),CHAR(10),"4.) ",D9) -> 1.) Put together an energy management plan 2.) Construct a formal methodolgy to communicate energy management practices to the emplyees 3.) Make use of life cycle cost analysis to evaluate the energy efficiecy projects 4.) Establish a suitable payback period for energy efficiency projects
C7: ='Basic Info '!H28 -> 0 | D7: ='Translation '!B881 -> Construct a formal methodolgy to communicate energy management practices to the emplyees | E7: =IF('Basic Info '!H28=List!$A$7,5,1) -> 1 | F7: 5 | G7: =CONCATENATE("1.) ",D5,CHAR(10),CHAR(10),"2.) ",D6,CHAR(10),CHAR(10),"3.) ",D8,CHAR(10),CHAR(10),"4.) ",D9) -> 1.) Put together an energy management plan 2.) Form a cross functional energy team 3.) Make use of life cycle cost analysis to evaluate the energy efficiecy projects 4.) Establish a suitable payback period for energy efficiency projects
C8: ='Basic Info '!H29 -> 0 | D8: ='Translation '!B882 -> Make use of life cycle cost analysis to evaluate the energy efficiecy projects | E8: =IF('Basic Info '!H29=List!$A$7,7,1) -> 1 | F8: 7 | G8: =CONCATENATE("1.) ",D5,CHAR(10),CHAR(10),"2.) ",D6,CHAR(10),CHAR(10),"3.) ",D7,CHAR(10),CHAR(10),"4.) ",D9) -> 1.) Put together an energy management plan 2.) Form a cross functional energy team 3.) Construct a formal methodolgy to communicate energy management practices to the emplyees 4.) Establish a suitable payback period for energy efficiency projects
C9: ='Basic Info '!H30 -> 0 | D9: ='Translation '!B883 -> Establish a suitable payback period for energy efficiency projects | E9: =IF('Basic Info '!H30=List!$A$7,11,1) -> 1 | F9: 11 | G9: =CONCATENATE("1.) ",D5,CHAR(10),CHAR(10),"2.) ",D6,CHAR(10),CHAR(10),"3.) ",D7,CHAR(10),CHAR(10),"4.) ",D8) -> 1.) Put together an energy management plan 2.) Form a cross functional energy team 3.) Construct a formal methodolgy to communicate energy management practices to the emplyees 4.) Make use of life cycle cost analysis to evaluate the energy efficiecy projects
F10: =F5*F6 -> 6 | G10: =CONCATENATE("1.) ",D7,CHAR(10),CHAR(10),"2.) ",D8,CHAR(10),CHAR(10),"3.) ",D9) -> 1.) Construct a formal methodolgy to communicate energy management practices to the emplyees 2.) Make use of life cycle cost analysis to evaluate the energy efficiecy projects 3.) Establish a suitable payback period for energy efficiency projects
F11: =F5*F7 -> 10 | G11: =CONCATENATE("1.) ",D6,CHAR(10),CHAR(10),"2.) ",D8,CHAR(10),CHAR(10),"3.) ",D9) -> 1.) Form a cross functional energy team 2.) Make use of life cycle cost analysis to evaluate the energy efficiecy projects 3.) Establish a suitable payback period for energy efficiency projects
F12: =F5*F8 -> 14 | G12: =CONCATENATE("1.) ",D6,CHAR(10),CHAR(10),"2.) ",D7,CHAR(10),CHAR(10),"3.) ",D9) -> 1.) Form a cross functional energy team 2.) Construct a formal methodolgy to communicate energy management practices to the emplyees 3.) Establish a suitable payback period for energy efficiency projects
D13: =2^5 -> 32 | F13: =F5*F9 -> 22 | G13: =CONCATENATE("1.) ",D6,CHAR(10),CHAR(10),"2.) ",D7,CHAR(10),CHAR(10),"3.) ",D8) -> 1.) Form a cross functional energy team 2.) Construct a formal methodolgy to communicate energy management practices to the emplyees 3.) Make use of life cycle cost analysis to evaluate the energy efficiecy projects
F14: =F6*F7 -> 15 | G14: =CONCATENATE("1.) ",D5,CHAR(10),CHAR(10),"2.) ",D8,CHAR(10),CHAR(10),"3.) ",D9) -> 1.) Put together an energy management plan 2.) Make use of life cycle cost analysis to evaluate the energy efficiecy projects 3.) Establish a suitable payback period for energy efficiency projects
F15: =F6*F8 -> 21 | G15: =CONCATENATE("1.) ",D5,CHAR(10),CHAR(10),"2.) ",D7,CHAR(10),CHAR(10),"3.) ",D9) -> 1.) Put together an energy management plan 2.) Construct a formal methodolgy to communicate energy management practices to the emplyees 3.) Establish a suitable payback period for energy efficiency projects
F16: =F6*F9 -> 33 | G16: =CONCATENATE("1.) ",D5,CHAR(10),CHAR(10),"2.) ",D7,CHAR(10),CHAR(10),"3.) ",D8) -> 1.) Put together an energy management plan 2.) Construct a formal methodolgy to communicate energy management practices to the emplyees 3.) Make use of life cycle cost analysis to evaluate the energy efficiecy projects
F17: =F7*F8 -> 35 | G17: =CONCATENATE("1.) ",D5,CHAR(10),CHAR(10),"2.) ",D6,CHAR(10),CHAR(10),"3.) ",D9) -> 1.) Put together an energy management plan 2.) Form a cross functional energy team 3.) Establish a suitable payback period for energy efficiency projects
F18: =F7*F9 -> 55 | G18: =CONCATENATE("1.) ",D5,CHAR(10),CHAR(10),"2.) ",D6,CHAR(10),CHAR(10),"3.) ",D8) -> 1.) Put together an energy management plan 2.) Form a cross functional energy team 3.) Make use of life cycle cost analysis to evaluate the energy efficiecy projects
F19: =F8*F9 -> 77 | G19: =CONCATENATE("1.) ",D5,CHAR(10),CHAR(10),"2.) ",D6,CHAR(10),CHAR(10),"3.) ",D7) -> 1.) Put together an energy management plan 2.) Form a cross functional energy team 3.) Construct a formal methodolgy to communicate energy management practices to the emplyees
F20: =F5*F6*F7 -> 30 | G20: =CONCATENATE("1.) ",D8,CHAR(10),CHAR(10),"2.) ",D9) -> 1.) Make use of life cycle cost analysis to evaluate the energy efficiecy projects 2.) Establish a suitable payback period for energy efficiency projects
F21: =F5*F6*F8 -> 42 | G21: =CONCATENATE("1.) ",D7,CHAR(10),CHAR(10),"2.) ",D9) -> 1.) Construct a formal methodolgy to communicate energy management practices to the emplyees 2.) Establish a suitable payback period for energy efficiency projects
F22: =F5*F6*F9 -> 66 | G22: =CONCATENATE("1.) ",D7,CHAR(10),CHAR(10),"2.) ",D8) -> 1.) Construct a formal methodolgy to communicate energy management practices to the emplyees 2.) Make use of life cycle cost analysis to evaluate the energy efficiecy projects
F23: =F5*F7*F8 -> 70 | G23: =CONCATENATE("1.) ",D6,CHAR(10),CHAR(10),"2.) ",D9) -> 1.) Form a cross functional energy team 2.) Establish a suitable payback period for energy efficiency projects
F24: =F5*F7*F9 -> 110 | G24: =CONCATENATE("1.) ",D6,CHAR(10),CHAR(10),"2.) ",D8) -> 1.) Form a cross functional energy team 2.) Make use of life cycle cost analysis to evaluate the energy efficiecy projects
F25: =F5*F8*F9 -> 154 | G25: =CONCATENATE("1.) ",D6,CHAR(10),CHAR(10),"2.) ",D7) -> 1.) Form a cross functional energy team 2.) Construct a formal methodolgy to communicate energy management practices to the emplyees
F26: =F6*F7*F8 -> 105 | G26: =CONCATENATE("1.) ",D5,CHAR(10),CHAR(10),"2.) ",D9) -> 1.) Put together an energy management plan 2.) Establish a suitable payback period for energy efficiency projects
F27: =F6*F7*F9 -> 165 | G27: =CONCATENATE("1.) ",D5,CHAR(10),CHAR(10),"2.) ",D8) -> 1.) Put together an energy management plan 2.) Make use of life cycle cost analysis to evaluate the energy efficiecy projects
F28: =F6*F8*F9 -> 231 | G28: =CONCATENATE("1.) ",D5,CHAR(10),CHAR(10),"2.) ",D7) -> 1.) Put together an energy management plan 2.) Construct a formal methodolgy to communicate energy management practices to the emplyees
F29: =F7*F8*F9 -> 385 | G29: =CONCATENATE("1.) ",D5,CHAR(10),CHAR(10),"2.) ",D6) -> 1.) Put together an energy management plan 2.) Form a cross functional energy team
F30: =F5*F7*F8*F9 -> 770 | G30: =CONCATENATE("1.) ",D6) -> 1.) Form a cross functional energy team
F31: =F5*F6*F8*F9 -> 462 | G31: =CONCATENATE("1.) ",D7) -> 1.) Construct a formal methodolgy to communicate energy management practices to the emplyees
F32: =F5*F6*F7*F9 -> 330 | G32: 1.) Make use of life cycle cost analysis to evaluate the energy efficiecy projects
F33: =F5*F6*F7*F8 -> 210 | G33: 1.) Establish a suitable payback period for energy efficiency projects
F34: =F6*F7*F8*F9 -> 1155 | G34: =CONCATENATE("1.) ",D5) -> 1.) Put together an energy management plan
F35: =F5*F6*F8*F7*F9 -> 2310 | G35: 1.) Look into ISO 50001 Certification for your facility

Sheet NAICS Data-Base (hidden)
A1: ='Translation '!A309 -> Default Energy Distribution Values by System and Fuel Type for Different Industries
B3: ='Translation '!A244 -> Electricity | C3: ='Translation '!A214 -> Others (All Manufacturing) | D3: ='Translation '!A199 -> Aluminum and Alumina | E3: ='Translation '!A200 -> Cement | F3: ='Translation '!A201 -> Chemical and Allied Products | G3: ='Translation '!B202 -> Computer, Electronics and Appliances | H3: ='Translation '!B204 -> Food, Beverage and Tobacco Products | I3: ='Translation '!B213 -> Wood Produces, Pulp and Paper | J3: ='Translation '!B205 -> Foundries | K3: ='Translation '!B206 -> Glass and Glass Products | L3: ='Translation '!B207 -> Heavy Machinery | M3: ='Translation '!B203 -> Fabricated Metal Products | N3: ='Translation '!B209 -> Petroleum Refining | O3: ='Translation '!B210 -> Plastic and Rubber Products | P3: ='Translation '!B208 -> Integrated Steel | Q3: ='Translation '!B211 -> Textile and Apparels and Leather goods | R3: ='Translation '!B212 -> Transportation Equipment
B4: ='Translation '!A172 -> Steam Generation Equipment | C4: 0.03 | D4: 0 | E4: 0 | F4: 0.04 | G4: 0.01 | H4: 0.02 | I4: 0.06 | J4: 0 | K4: 0 | L4: 0.01 | M4: 0.01 | N4: 0.01 | O4: 0.01 | P4: 0 | Q4: 0.01 | R4: 0.01
B5: ='Translation '!A161 -> Combined Heat and Power (Cogeneration) | C5: 0 | D5: 0 | E5: 0 | F5: 0 | G5: 0 | H5: 0 | I5: 0 | J5: 0 | K5: 0 | L5: 0 | M5: 0 | N5: 0 | O5: 0 | P5: 0 | Q5: 0 | R5: 0
B6: ='Translation '!A254 -> Other Electricity Generation | C6: 0 | D6: 0 | E6: 0 | F6: 0 | G6: 0 | H6: 0 | I6: 0 | J6: 0 | K6: 0 | L6: 0 | M6: 0 | N6: 0 | O6: 0 | P6: 0 | Q6: 0 | R6: 0
B7: ='Translation '!A170 -> Process Heating | C7: 0.11 | D7: 0.05 | E7: 0.09 | F7: 0.05 | G7: 0.15 | H7: 0.06 | I7: 0.05 | J7: 0.46 | K7: 0.37 | L7: 0.07 | M7: 0.2 | N7: 0.03 | O7: 0.15 | P7: 0.41 | Q7: 0.1 | R7: 0.14
B8: ='Translation '!A169 -> Process Cooling and Refrigeration | C8: 0.07 | D8: 0.01 | E8: 0 | F8: 0.08 | G8: 0.09 | H8: 0.26 | I8: 0.02 | J8: 0.02 | K8: 0.03 | L8: 0.03 | M8: 0.03 | N8: 0.06 | O8: 0.09 | P8: 0 | Q8: 0.12 | R8: 0.06
B9: ='Translation '!A163 -> Electrochemical Processes | C9: 0.08 | D9: 0.78 | E9: 0 | F9: 0.14 | G9: 0.01 | H9: 0 | I9: 0.01 | J9: 0.04 | K9: 0 | L9: 0 | M9: 0.02 | N9: 0 | O9: 0 | P9: 0.04 | Q9: 0 | R9: 0.01
B10: ='Translation '!A171 -> Pumps | C10: 0.14 | D10: 0.01 | E10: 0.06 | F10: 0.16 | G10: 0.05 | H10: 0.11 | I10: 0.24 | J10: 0.03 | K10: 0.09 | L10: 0.09 | M10: 0.1 | N10: 0.5 | O10: 0.13 | P10: 0.04 | Q10: 0.1 | R10: 0.08
B11: ='Translation '!A164 -> Fans and Blowers | C11: 0.08 | D11: 0.02 | E11: 0.11 | F11: 0.07 | G11: 0.03 | H11: 0.05 | I11: 0.15 | J11: 0.05 | K11: 0.07 | L11: 0.07 | M11: 0.07 | N11: 0.08 | O11: 0.07 | P11: 0.07 | Q11: 0.07 | R11: 0.05
B12: ='Translation '!A162 -> Compressed Air | C12: 0.09 | D12: 0.02 | E12: 0.11 | F12: 0.17 | G12: 0.04 | H12: 0.05 | I12: 0.04 | J12: 0.05 | K12: 0.07 | L12: 0.07 | M12: 0.08 | N12: 0.13 | O12: 0.09 | P12: 0.07 | Q12: 0.08 | R12: 0.06
B13: ='Translation '!A167 -> Material Handling | C13: 0.07 | D13: 0.06 | E13: 0.36 | F13: 0.01 | G13: 0.02 | H13: 0.04 | I13: 0.06 | J13: 0.14 | K13: 0.04 | L13: 0.05 | M13: 0.06 | N13: 0.02 | O13: 0.07 | P13: 0.22 | Q13: 0.06 | R13: 0.04
B14: ='Translation '!A168 -> Material Processing | C14: 0.13 | D14: 0.02 | E14: 0.1 | F14: 0.14 | G14: 0.07 | H14: 0.17 | I14: 0.16 | J14: 0.03 | K14: 0.15 | L14: 0.15 | M14: 0.17 | N14: 0.09 | O14: 0.12 | P14: 0.06 | Q14: 0.17 | R14: 0.12
B15: ='Translation '!A255 -> Other Machine Driven Systems | C15: 0.02 | D15: 0 | E15: 0.01 | F15: 0.01 | G15: 0.05 | H15: 0.04 | I15: 0.11 | J15: 0 | K15: 0.02 | L15: 0.02 | M15: 0.02 | N15: 0.02 | O15: 0.03 | P15: 0.01 | Q15: 0.02 | R15: 0.02
B16: ='Translation '!A256 -> Other Process Uses | C16: 0.01 | D16: 0 | E16: 0.02 | F16: 0.01 | G16: 0.06 | H16: 0.01 | I16: 0.01 | J16: 0.02 | K16: 0.05 | L16: 0.02 | M16: 0.03 | N16: 0 | O16: 0.02 | P16: 0 | Q16: 0.01 | R16: 0.03
B17: ='Translation '!A166 -> Industrial Facilities (HVAC) | C17: 0.09 | D17: 0.01 | E17: 0.07 | F17: 0.06 | G17: 0.24 | H17: 0.09 | I17: 0.05 | J17: 0.09 | K17: 0.05 | L17: 0.23 | M17: 0.1 | N17: 0.03 | O17: 0.11 | P17: 0.03 | Q17: 0.14 | R17: 0.19
B18: ='Translation '!A165 -> Industrial Facilities (Lighting) | C18: 0.07 | D18: 0.02 | E18: 0.04 | F18: 0.04 | G18: 0.12 | H18: 0.07 | I18: 0.05 | J18: 0.05 | K18: 0.06 | L18: 0.15 | M18: 0.1 | N18: 0.02 | O18: 0.09 | P18: 0.04 | Q18: 0.1 | R18: 0.15
B19: ='Translation '!A257 -> Other Facility Support | C19: 0.02 | D19: 0.01 | E19: 0.02 | F19: 0.01 | G19: 0.06 | H19: 0.02 | I19: 0.01 | J19: 0.02 | K19: 0 | L19: 0.03 | M19: 0.02 | N19: 0.01 | O19: 0.03 | P19: 0 | Q19: 0.02 | R19: 0.04
B20: ='Translation '!A258 -> Onsite Transportation | C20: 0 | D20: 0 | E20: 0 | F20: 0 | G20: 0 | H20: 0 | I20: 0 | J20: 0 | K20: 0 | L20: 0.01 | M20: 0 | N20: 0 | O20: 0.01 | P20: 0 | Q20: 0 | R20: 0.01
B21: ='Translation '!A259 -> Other Nonprocess Uses | C21: 0 | D21: 0 | E21: 0 | F21: 0 | G21: 0.01 | H21: 0 | I21: 0 | J21: 0 | K21: 0 | L21: 0.01 | M21: 0 | N21: 0 | O21: 0 | P21: 0 | Q21: 0 | R21: 0.01
B23: ='Translation '!A247 -> Other Fuel | C23: ='Translation '!A214 -> Others (All Manufacturing) | D23: ='Translation '!A199 -> Aluminum and Alumina | E23: ='Translation '!A200 -> Cement | F23: ='Translation '!A201 -> Chemical and Allied Products | G23: ='Translation '!B202 -> Computer, Electronics and Appliances | H23: ='Translation '!B204 -> Food, Beverage and Tobacco Products | I23: ='Translation '!B213 -> Wood Produces, Pulp and Paper | J23: ='Translation '!B205 -> Foundries | K23: ='Translation '!B206 -> Glass and Glass Products | L23: ='Translation '!B207 -> Heavy Machinery | M23: ='Translation '!B203 -> Fabricated Metal Products | N23: ='Translation '!B209 -> Petroleum Refining | O23: ='Translation '!B210 -> Plastic and Rubber Products | P23: ='Translation '!B208 -> Integrated Steel | Q23: ='Translation '!B211 -> Textile and Apparels and Leather goods | R23: ='Translation '!B212 -> Transportation Equipment
B24: ='Translation '!A172 -> Steam Generation Equipment | C24: 0.17 | D24: 0.03 | E24: 0 | F24: 0.25 | G24: 0.31 | H24: 0.48 | I24: 0.08 | J24: 0.03 | K24: 0.09 | L24: 0.19 | M24: 0.15 | N24: 0.15 | O24: 0.52 | P24: 0.1 | Q24: 0.48 | R24: 0.17
B25: ='Translation '!A161 -> Combined Heat and Power (Cogeneration) | C25: 0.32 | D25: 0.12 | E25: 0.11 | F25: 0.44 | G25: 0 | H25: 0.18 | I25: 0.79 | J25: 0 | K25: 0 | L25: 0.08 | M25: 0.02 | N25: 0.16 | O25: 0 | P25: 0.14 | Q25: 0.11 | R25: 0.06
B26: ='Translation '!A254 -> Other Electricity Generation | C26: 0 | D26: 0 | E26: 0 | F26: 0 | G26: 0 | H26: 0 | I26: 0 | J26: 0 | K26: 0 | L26: 0 | M26: 0 | N26: 0 | O26: 0 | P26: 0.01 | Q26: 0 | R26: 0
B27: ='Translation '!A170 -> Process Heating | C27: 0.42 | D27: 0.76 | E27: 0.88 | F27: 0.22 | G27: 0.31 | H27: 0.25 | I27: 0.1 | J27: 0.79 | K27: 0.86 | L27: 0.27 | M27: 0.65 | N27: 0.65 | O27: 0.24 | P27: 0.7 | Q27: 0.3 | R27: 0.28
B28: ='Translation '!A169 -> Process Cooling and Refrigeration | C28: 0 | D28: 0.02 | E28: 0 | F28: 0.01 | G28: 0.01 | H28: 0 | I28: 0 | J28: 0 | K28: 0 | L28: 0 | M28: 0 | N28: 0 | O28: 0 | P28: 0 | Q28: 0 | R28: 0.01
B29: ='Translation '!A163 -> Electrochemical Processes | C29: 0 | D29: 0 | E29: 0 | F29: 0 | G29: 0 | H29: 0 | I29: 0 | J29: 0 | K29: 0 | L29: 0 | M29: 0 | N29: 0 | O29: 0 | P29: 0 | Q29: 0 | R29: 0
B30: ='Translation '!A171 -> Pumps | C30: 0.01 | D30: 0.01 | E30: 0.01 | F30: 0.02 | G30: 0 | H30: 0.01 | I30: 0.01 | J30: 0.01 | K30: 0 | L30: 0 | M30: 0 | N30: 0.01 | O30: 0.01 | P30: 0 | Q30: 0.01 | R30: 0.01
B31: ='Translation '!A164 -> Fans and Blowers | C31: 0.01 | D31: 0 | E31: 0 | F31: 0.01 | G31: 0 | H31: 0 | I31: 0 | J31: 0 | K31: 0 | L31: 0 | M31: 0 | N31: 0 | O31: 0.01 | P31: 0 | Q31: 0.01 | R31: 0
B32: ='Translation '!A162 -> Compressed Air | C32: 0 | D32: 0 | E32: 0 | F32: 0 | G32: 0 | H32: 0 | I32: 0 | J32: 0 | K32: 0 | L32: 0 | M32: 0 | N32: 0 | O32: 0 | P32: 0 | Q32: 0 | R32: 0
B33: ='Translation '!A167 -> Material Handling | C33: 0 | D33: 0 | E33: 0 | F33: 0 | G33: 0 | H33: 0 | I33: 0 | J33: 0 | K33: 0 | L33: 0 | M33: 0 | N33: 0 | O33: 0 | P33: 0 | Q33: 0 | R33: 0
B34: ='Translation '!A168 -> Material Processing | C34: 0 | D34: 0 | E34: 0 | F34: 0 | G34: 0 | H34: 0 | I34: 0 | J34: 0 | K34: 0 | L34: 0 | M34: 0 | N34: 0 | O34: 0 | P34: 0 | Q34: 0 | R34: 0
B35: ='Translation '!A255 -> Other Machine Driven Systems | C35: 0 | D35: 0 | E35: 0 | F35: 0 | G35: 0 | H35: 0 | I35: 0 | J35: 0 | K35: 0 | L35: 0 | M35: 0 | N35: 0 | O35: 0 | P35: 0 | Q35: 0 | R35: 0
B36: ='Translation '!A256 -> Other Process Uses | C36: 0.02 | D36: 0.01 | E36: 0 | F36: 0.02 | G36: 0.02 | H36: 0.02 | I36: 0 | J36: 0.01 | K36: 0 | L36: 0.04 | M36: 0 | N36: 0.02 | O36: 0.02 | P36: 0.02 | Q36: 0.01 | R36: 0.12
B37: ='Translation '!A166 -> Industrial Facilities (HVAC) | C37: 0.04 | D37: 0.03 | E37: 0 | F37: 0.01 | G37: 0.3 | H37: 0.04 | I37: 0.01 | J37: 0.13 | K37: 0.05 | L37: 0.36 | M37: 0.15 | N37: 0 | O37: 0.18 | P37: 0.02 | Q37: 0.07 | R37: 0.32
B38: ='Translation '!A165 -> Industrial Facilities (Lighting) | C38: 0 | D38: 0 | E38: 0 | F38: 0 | G38: 0 | H38: 0 | I38: 0 | J38: 0 | K38: 0 | L38: 0 | M38: 0 | N38: 0 | O38: 0 | P38: 0 | Q38: 0 | R38: 0
B39: ='Translation '!A257 -> Other Facility Support | C39: 0 | D39: 0.01 | E39: 0 | F39: 0 | G39: 0 | H39: 0.01 | I39: 0 | J39: 0.01 | K39: 0 | L39: 0.02 | M39: 0.01 | N39: 0 | O39: 0.01 | P39: 0 | Q39: 0 | R39: 0.01
B40: ='Translation '!A258 -> Onsite Transportation | C40: 0.01 | D40: 0.01 | E40: 0.01 | F40: 0 | G40: 0.03 | H40: 0 | I40: 0.01 | J40: 0.01 | K40: 0 | L40: 0.01 | M40: 0.01 | N40: 0 | O40: 0.01 | P40: 0 | Q40: 0.01 | R40: 0.01
B41: ='Translation '!A259 -> Other Nonprocess Uses | C41: 0 | D41: 0 | E41: 0 | F41: 0 | G41: 0.01 | H41: 0 | I41: 0 | J41: 0 | K41: 0 | L41: 0.02 | M41: 0 | N41: 0 | O41: 0 | P41: 0 | Q41: 0 | R41: 0
B43: ='Translation '!A246 -> Steam | C43: ='Translation '!A214 -> Others (All Manufacturing) | D43: ='Translation '!A199 -> Aluminum and Alumina | E43: ='Translation '!A200 -> Cement | F43: ='Translation '!A201 -> Chemical and Allied Products | G43: ='Translation '!B202 -> Computer, Electronics and Appliances | H43: ='Translation '!B204 -> Food, Beverage and Tobacco Products | I43: ='Translation '!B213 -> Wood Produces, Pulp and Paper | J43: ='Translation '!B205 -> Foundries | K43: ='Translation '!B206 -> Glass and Glass Products | L43: ='Translation '!B207 -> Heavy Machinery | M43: ='Translation '!B203 -> Fabricated Metal Products | N43: ='Translation '!B209 -> Petroleum Refining | O43: ='Translation '!B210 -> Plastic and Rubber Products | P43: ='Translation '!B208 -> Integrated Steel | Q43: ='Translation '!B211 -> Textile and Apparels and Leather goods | R43: ='Translation '!B212 -> Transportation Equipment
B44: ='Translation '!A172 -> Steam Generation Equipment | C44: 0 | D44: 0 | E44: 0 | F44: 0 | G44: 0 | H44: 0 | I44: 0 | J44: 0 | K44: 0 | L44: 0 | M44: 0 | N44: 0 | O44: 0 | P44: 0 | Q44: 0 | R44: 0
B45: ='Translation '!A161 -> Combined Heat and Power (Cogeneration) | C45: 0 | D45: 0 | E45: 0 | F45: 0 | G45: 0 | H45: 0 | I45: 0 | J45: 0 | K45: 0 | L45: 0 | M45: 0 | N45: 0 | O45: 0 | P45: 0 | Q45: 0 | R45: 0
B46: ='Translation '!A254 -> Other Electricity Generation | C46: 0 | D46: 0 | E46: 0 | F46: 0 | G46: 0 | H46: 0 | I46: 0 | J46: 0 | K46: 0 | L46: 0 | M46: 0 | N46: 0 | O46: 0 | P46: 0 | Q46: 0 | R46: 0
B47: ='Translation '!A170 -> Process Heating | C47: 0.8 | D47: 0.04 | E47: 0.04 | F47: 0.86 | G47: 0.15 | H47: 0.78 | I47: 0.85 | J47: 0.04 | K47: 0.04 | L47: 0.35 | M47: 0.35 | N47: 0.97 | O47: 0.59 | P47: 0.04 | Q47: 0.77 | R47: 0
B48: ='Translation '!A169 -> Process Cooling and Refrigeration | C48: 0 | D48: 0 | E48: 0 | F48: 0 | G48: 0 | H48: 0 | I48: 0 | J48: 0 | K48: 0 | L48: 0 | M48: 0 | N48: 0 | O48: 0 | P48: 0 | Q48: 0 | R48: 0
B49: ='Translation '!A163 -> Electrochemical Processes | C49: 0 | D49: 0 | E49: 0 | F49: 0 | G49: 0 | H49: 0 | I49: 0 | J49: 0 | K49: 0 | L49: 0 | M49: 0 | N49: 0 | O49: 0 | P49: 0 | Q49: 0 | R49: 0
B50: ='Translation '!A171 -> Pumps | C50: 0.07 | D50: 0.59 | E50: 0.59 | F50: 0.07 | G50: 0.01 | H50: 0.03 | I50: 0.05 | J50: 0.59 | K50: 0.59 | L50: 0.01 | M50: 0.01 | N50: 0.01 | O50: 0.03 | P50: 0.59 | Q50: 0.03 | R50: 0.05
B51: ='Translation '!A164 -> Fans and Blowers | C51: 0.03 | D51: 0.23 | F51: 0.03 | G51: 0 | H51: 0.01 | I51: 0.02 | J51: 0.23 | K51: 0.23 | L51: 0 | M51: 0 | N51: 0.01 | O51: 0.01 | P51: 0.23 | Q51: 0.01 | R51: 0.02
B52: ='Translation '!A162 -> Compressed Air | C52: 0 | D52: 0 | E52: 0 | F52: 0 | G52: 0 | H52: 0 | I52: 0 | J52: 0 | K52: 0 | L52: 0 | M52: 0 | N52: 0 | O52: 0 | P52: 0 | Q52: 0 | R52: 0
B53: ='Translation '!A167 -> Material Handling | C53: 0 | D53: 0 | E53: 0 | F53: 0 | G53: 0 | H53: 0 | I53: 0 | J53: 0 | K53: 0 | L53: 0 | M53: 0 | N53: 0 | O53: 0 | P53: 0 | Q53: 0 | R53: 0
B54: ='Translation '!A168 -> Material Processing | C54: 0 | D54: 0 | E54: 0 | F54: 0 | G54: 0 | H54: 0 | I54: 0 | J54: 0 | K54: 0 | L54: 0 | M54: 0 | N54: 0 | O54: 0 | P54: 0 | Q54: 0 | R54: 0
B55: ='Translation '!A255 -> Other Machine Driven Systems | C55: 0.01 | D55: 0.09 | E55: 0.09 | F55: 0.01 | G55: 0 | H55: 0.01 | I55: 0.01 | J55: 0.09 | K55: 0.09 | L55: 0 | M55: 0 | N55: 0 | O55: 0 | P55: 0.09 | Q55: 0.01 | R55: 0.01
B56: ='Translation '!A256 -> Other Process Uses | C56: 0.01 | D56: 0 | E56: 0 | F56: 0 | G56: 0 | H56: 0 | I56: 0 | J56: 0 | K56: 0 | L56: 0 | M56: 0 | N56: 0 | O56: 0 | P56: 0 | Q56: 0 | R56: 0.7
B57: ='Translation '!A166 -> Industrial Facilities (HVAC) | C57: 0.08 | D57: 0.06 | E57: 0.06 | F57: 0.04 | G57: 0.84 | H57: 0.16 | I57: 0.08 | J57: 0.06 | K57: 0.06 | L57: 0.64 | M57: 0.64 | N57: 0.01 | O57: 0.37 | P57: 0.06 | Q57: 0.18 | R57: 0.23
B58: ='Translation '!A165 -> Industrial Facilities (Lighting) | C58: 0 | D58: 0 | E58: 0 | F58: 0 | G58: 0 | H58: 0 | I58: 0 | J58: 0 | K58: 0 | L58: 0 | M58: 0 | N58: 0 | O58: 0 | P58: 0 | Q58: 0 | R58: 0
B59: ='Translation '!A257 -> Other Facility Support | C59: 0 | D59: 0 | E59: 0 | F59: 0 | G59: 0 | H59: 0 | I59: 0 | J59: 0 | K59: 0 | L59: 0 | M59: 0 | N59: 0 | O59: 0 | P59: 0 | Q59: 0 | R59: 0
B60: ='Translation '!A258 -> Onsite Transportation | C60: 0 | D60: 0 | E60: 0 | F60: 0 | G60: 0 | H60: 0 | I60: 0 | J60: 0 | K60: 0 | L60: 0 | M60: 0 | N60: 0 | O60: 0 | P60: 0 | Q60: 0 | R60: 0
B61: ='Translation '!A259 -> Other Nonprocess Uses | C61: 0 | D61: 0 | E61: 0 | F61: 0 | G61: 0 | H61: 0 | I61: 0 | J61: 0 | K61: 0 | L61: 0 | M61: 0 | N61: 0 | O61: 0 | P61: 0 | Q61: 0 | R61: 0
B63: Energy Conversion Factors | C63: Input | D63: Type of Input Unit | E63: Output | F63: Concate | G63: Conversion Factor | I63: Energy Unit
B64: Electricity | C64: ='Energy & Production '!B10 -> 0 | D64: =VLOOKUP(C64,Conversions!U29:V53,2,FALSE) ->  | E64: ='Energy & Production '!$F$12 -> 0 | F64: =IF('NAICS Data-Base'!D64='NAICS Data-Base'!$I$63,CONCATENATE(D64,C64),CONCATENATE(D64,B64,C64)) ->  | G64: =IFERROR(INDEX(Conversions!$F$3:$S$65,MATCH('NAICS Data-Base'!F64,Conversions!$E$3:$E$65,0),MATCH(E64,Conversions!$D$3:$D$16,0)),0) -> 0
B65: Natural Gas | C65: ='Energy & Production '!B11 -> 0 | D65: =VLOOKUP(C65,Conversions!U29:V54,2,FALSE) ->  | E65: ='Energy & Production '!$F$12 -> 0 | F65: =IF('NAICS Data-Base'!D65='NAICS Data-Base'!$I$63,CONCATENATE(D65,C65),CONCATENATE(D65,B65,C65)) ->  | G65: =IFERROR(INDEX(Conversions!$F$3:$S$65,MATCH('NAICS Data-Base'!F65,Conversions!$E$3:$E$65,0),MATCH(E65,Conversions!$D$3:$D$16,0)),0) -> 0
B66: Steam | C66: ='Energy & Production '!B12 -> 0 | D66: =IFERROR(VLOOKUP(C66,Conversions!U29:V55,2,FALSE),0) -> 0 | E66: ='Energy & Production '!$F$12 -> 0 | F66: =IF('NAICS Data-Base'!D66='NAICS Data-Base'!$I$63,CONCATENATE(D66,C66),CONCATENATE(D66,B66,C66)) -> 0Steam0 | G66: =IFERROR(INDEX(Conversions!$F$3:$S$65,MATCH('NAICS Data-Base'!F66,Conversions!$E$3:$E$65,0),MATCH(E66,Conversions!$D$3:$D$16,0)),0) -> 0
B67: =IF('Energy & Production '!F10=0,"Other Fuel",'Energy & Production '!F10) -> Other Fuel | C67: ='Energy & Production '!F11 -> 0 | D67: =IFERROR(VLOOKUP(C67,Conversions!U29:V56,2,FALSE),0) -> 0 | E67: ='Energy & Production '!$F$12 -> 0 | F67: =IF('NAICS Data-Base'!D67='NAICS Data-Base'!$I$63,CONCATENATE(D67,C67),CONCATENATE(D67,B67,C67)) -> 0Other Fuel0 | G67: =IFERROR(INDEX(Conversions!$F$3:$S$65,MATCH('NAICS Data-Base'!F67,Conversions!$E$3:$E$65,0),MATCH(E67,Conversions!$D$3:$D$16,0)),0) -> 0
B70: User defined
B71: ='Basic Info '!B6:F6 -> 0 | C71: ='Translation '!A260 -> Yes/No | D71: ='Translation '!A155 -> Primary Energy Source | E71: ='Translation '!A156 -> Secondary Energy Source | F71: ='Translation '!A157 -> % Primary Energy Source | G71: ='Translation '!A158 -> % Secondary Energy Source | H71: ='Translation '!A261 -> Annual Primary Energy | I71: ='Translation '!A262 -> Annual Secondary Energy | J71: ='Translation '!A159 -> Annual Consumption(0) | K71: ='Translation '!A263 -> Primary Energy Cost | L71: ='Translation '!A264 -> Secondary Energy Cost | M71: ='Translation '!A160 -> Annual Cost($)
B72: ='Translation '!A161 -> Combined Heat and Power (Cogeneration) | C72: ='Energy Use System'!C24 -> 0 | D72: ='Energy Use System'!D24 -> 0 | E72: ='Energy Use System'!E24 -> 0 | F72: ='Energy Use System'!F24 -> 0 | G72: ='Energy Use System'!G24 -> 0 | H72: =IF(D72=List!$A$69,Total_Electricity*F72,IF(D72=List!$A$70,Total_NG*F72,IF(D72=List!$A$71,Total_Steam*F72,IF(D72=List!$A$72,Total_OF*F72,0)))) -> 0 | I72: =IF(E72=List!$A$69,Total_Electricity*G72,IF(E72=List!$A$70,Total_NG*G72,IF(E72=List!$A$71,Total_Steam*G72,IF(E72=List!$A$72,Total_OF*G72,0)))) -> 0 | J72: =IF(C72="yes",SUM(H72:I72),0) -> 0 | K72: =IF(D72=List!$A$69,H72*$C$104,IF(D72=List!$A$70,H72*$C$105,IF(D72=List!$A$71,H72*$C$106,IF(D72=List!$A$72,H72*$C$107,0)))) -> 0 | L72: =IF(E72=List!$A$69,I72*$C$104,IF(E72=List!$A$70,I72*$C$105,IF(E72=List!$A$71,I72*$C$106,IF(E72=List!$A$72,I72*$C$107,0)))) -> 0 | M72: =SUM(K72:L72) -> 0
B73: ='Translation '!A162 -> Compressed Air | C73: ='Energy Use System'!C25 -> 0 | D73: ='Energy Use System'!D25 -> 0 | E73: ='Energy Use System'!E25 -> 0 | F73: ='Energy Use System'!F25 -> 0 | G73: ='Energy Use System'!G25 -> 0 | H73: =IF(D73=List!$A$69,Total_Electricity*F73,IF(D73=List!$A$70,Total_NG*F73,IF(D73=List!$A$71,Total_Steam*F73,IF(D73=List!$A$72,Total_OF*F73,0)))) -> 0 | I73: =IF(E73=List!$A$69,Total_Electricity*G73,IF(E73=List!$A$70,Total_NG*G73,IF(E73=List!$A$71,Total_Steam*G73,IF(E73=List!$A$72,Total_OF*G73,0)))) -> 0 | J73: =IF(C73="yes",SUM(H73:I73),0) -> 0 | K73: =IF(D73=List!$A$69,H73*$C$104,IF(D73=List!$A$70,H73*$C$105,IF(D73=List!$A$71,H73*$C$106,IF(D73=List!$A$72,H73*$C$107,0)))) -> 0 | L73: =IF(E73=List!$A$69,I73*$C$104,IF(E73=List!$A$70,I73*$C$105,IF(E73=List!$A$71,I73*$C$106,IF(E73=List!$A$72,I73*$C$107,0)))) -> 0 | M73: =SUM(K73:L73) -> 0 | Q73: Method 1
B74: ='Translation '!A163 -> Electrochemical Processes | C74: ='Energy Use System'!C26 -> 0 | D74: ='Energy Use System'!D26 -> 0 | E74: ='Energy Use System'!E26 -> 0 | F74: ='Energy Use System'!F26 -> 0 | G74: ='Energy Use System'!G26 -> 0 | H74: =IF(D74=List!$A$69,Total_Electricity*F74,IF(D74=List!$A$70,Total_NG*F74,IF(D74=List!$A$71,Total_Steam*F74,IF(D74=List!$A$72,Total_OF*F74,0)))) -> 0 | I74: =IF(E74=List!$A$69,Total_Electricity*G74,IF(E74=List!$A$70,Total_NG*G74,IF(E74=List!$A$71,Total_Steam*G74,IF(E74=List!$A$72,Total_OF*G74,0)))) -> 0 | J74: 0 | K74: =IF(D74=List!$A$69,H74*$C$104,IF(D74=List!$A$70,H74*$C$105,IF(D74=List!$A$71,H74*$C$106,IF(D74=List!$A$72,H74*$C$107,0)))) -> 0 | L74: =IF(E74=List!$A$69,I74*$C$104,IF(E74=List!$A$70,I74*$C$105,IF(E74=List!$A$71,I74*$C$106,IF(E74=List!$A$72,I74*$C$107,0)))) -> 0 | M74: 0 | P74: ='Translation '!A305 -> Annual Power consumption in (MJ) | Q74: =Total_Electricity+Total_NG+Total_Steam+Total_OF -> 0 | T74: Energy Use by Fuel vs Potential Savings by Fuel
B75: ='Translation '!A164 -> Fans and Blowers | C75: ='Energy Use System'!C27 -> 0 | D75: ='Energy Use System'!D27 -> 0 | E75: ='Energy Use System'!E27 -> 0 | F75: ='Energy Use System'!F27 -> 0 | G75: ='Energy Use System'!G27 -> 0 | H75: =IF(D75=List!$A$69,Total_Electricity*F75,IF(D75=List!$A$70,Total_NG*F75,IF(D75=List!$A$71,Total_Steam*F75,IF(D75=List!$A$72,Total_OF*F75,0)))) -> 0 | I75: =IF(E75=List!$A$69,Total_Electricity*G75,IF(E75=List!$A$70,Total_NG*G75,IF(E75=List!$A$71,Total_Steam*G75,IF(E75=List!$A$72,Total_OF*G75,0)))) -> 0 | J75: 0 | K75: =IF(D75=List!$A$69,H75*$C$104,IF(D75=List!$A$70,H75*$C$105,IF(D75=List!$A$71,H75*$C$106,IF(D75=List!$A$72,H75*$C$107,0)))) -> 0 | L75: =IF(E75=List!$A$69,I75*$C$104,IF(E75=List!$A$70,I75*$C$105,IF(E75=List!$A$71,I75*$C$106,IF(E75=List!$A$72,I75*$C$107,0)))) -> 0 | M75: 0 | P75: ='Translation '!A306 -> Power consumption by System (MJ) | Q75: =SUM(J88:J99) -> 0 | U75: Energy Use | V75: Potential Savings | W75: Energy Use | X75: =V75 -> Potential Savings | Y75: Units | AD75: Cost Savings
B76: ='Translation '!A165 -> Industrial Facilities (Lighting) | C76: ='Energy Use System'!C28 -> 0 | D76: ='Energy Use System'!D28 -> 0 | E76: ='Energy Use System'!E28 -> 0 | F76: ='Energy Use System'!F28 -> 0 | G76: ='Energy Use System'!G28 -> 0 | H76: =IF(D76=List!$A$69,Total_Electricity*F76,IF(D76=List!$A$70,Total_NG*F76,IF(D76=List!$A$71,Total_Steam*F76,IF(D76=List!$A$72,Total_OF*F76,0)))) -> 0 | I76: =IF(E76=List!$A$69,Total_Electricity*G76,IF(E76=List!$A$70,Total_NG*G76,IF(E76=List!$A$71,Total_Steam*G76,IF(E76=List!$A$72,Total_OF*G76,0)))) -> 0 | J76: 0 | K76: =IF(D76=List!$A$69,H76*$C$104,IF(D76=List!$A$70,H76*$C$105,IF(D76=List!$A$71,H76*$C$106,IF(D76=List!$A$72,H76*$C$107,0)))) -> 0 | L76: =IF(E76=List!$A$69,I76*$C$104,IF(E76=List!$A$70,I76*$C$105,IF(E76=List!$A$71,I76*$C$106,IF(E76=List!$A$72,I76*$C$107,0)))) -> 0 | M76: 0 | P76: ='Translation '!A307 -> Other (MJ) | Q76: =IF(Q75=0,0,Q74-Q75) -> 0 | T76: Electricity | U76: =Total_Electricity -> FALSE | V76: =Y101 -> 0 | W76: =IFERROR(U76/G64,"") ->  | X76: =IFERROR(V76/U76*W76,"") ->  | Y76: =CONCATENATE(W75," - ",TEXT(W76,"#,#")," ",'Energy & Production '!B10) -> Energy Use - | Z76: =CONCATENATE($X$75," - ",TEXT(X76,"#,#")," ",'Energy & Production '!B10,CHAR(10),$AD$75," - $",TEXT(AD76,"#,#")) -> Potential Savings - Cost Savings - $ | AB76: =CONCATENATE(TEXT(W76,"#,#")," ",'Energy & Production '!B10) ->  | AD76: =IFERROR(X76*D104,"") -> 
B77: ='Translation '!A166 -> Industrial Facilities (HVAC) | C77: ='Energy Use System'!C29 -> 0 | D77: ='Energy Use System'!D29 -> 0 | E77: ='Energy Use System'!E29 -> 0 | F77: ='Energy Use System'!F29 -> 0 | G77: ='Energy Use System'!G29 -> 0 | H77: =IF(D77=List!$A$69,Total_Electricity*F77,IF(D77=List!$A$70,Total_NG*F77,IF(D77=List!$A$71,Total_Steam*F77,IF(D77=List!$A$72,Total_OF*F77,0)))) -> 0 | I77: =IF(E77=List!$A$69,Total_Electricity*G77,IF(E77=List!$A$70,Total_NG*G77,IF(E77=List!$A$71,Total_Steam*G77,IF(E77=List!$A$72,Total_OF*G77,0)))) -> 0 | J77: 0 | K77: =IF(D77=List!$A$69,H77*$C$104,IF(D77=List!$A$70,H77*$C$105,IF(D77=List!$A$71,H77*$C$106,IF(D77=List!$A$72,H77*$C$107,0)))) -> 0 | L77: =IF(E77=List!$A$69,I77*$C$104,IF(E77=List!$A$70,I77*$C$105,IF(E77=List!$A$71,I77*$C$106,IF(E77=List!$A$72,I77*$C$107,0)))) -> 0 | M77: 0 | P77: ='Translation '!A308 -> % of Total Energy Consumption | Q77: =Q76/Q74 ->  | T77: Natural Gas | U77: =Total_NG -> FALSE | V77: =Z101 -> 0 | W77: =IFERROR(U77/G65,"") ->  | X77: =IFERROR(V77/U77*W77,"") ->  | Y77: =CONCATENATE(W75," - ",TEXT(W77,"#,#")," ",'Energy & Production '!$B$11) -> Energy Use - | Z77: =CONCATENATE($X$75," - ",TEXT(X77,"#,#")," ",'Energy & Production '!B11,CHAR(10),$AD$75," - $",TEXT(AD77,"#,#")) -> Potential Savings - Cost Savings - $ | AB77: =CONCATENATE(TEXT(W77,"#,#")," ",'Energy & Production '!B11) ->  | AD77: =IFERROR(X77*D105,"") -> 
B78: ='Translation '!A167 -> Material Handling | C78: ='Energy Use System'!C30 -> 0 | D78: ='Energy Use System'!D30 -> 0 | E78: ='Energy Use System'!E30 -> 0 | F78: ='Energy Use System'!F30 -> 0 | G78: ='Energy Use System'!G30 -> 0 | H78: =IF(D78=List!$A$69,Total_Electricity*F78,IF(D78=List!$A$70,Total_NG*F78,IF(D78=List!$A$71,Total_Steam*F78,IF(D78=List!$A$72,Total_OF*F78,0)))) -> 0 | I78: =IF(E78=List!$A$69,Total_Electricity*G78,IF(E78=List!$A$70,Total_NG*G78,IF(E78=List!$A$71,Total_Steam*G78,IF(E78=List!$A$72,Total_OF*G78,0)))) -> 0 | J78: 0 | K78: =IF(D78=List!$A$69,H78*$C$104,IF(D78=List!$A$70,H78*$C$105,IF(D78=List!$A$71,H78*$C$106,IF(D78=List!$A$72,H78*$C$107,0)))) -> 0 | L78: =IF(E78=List!$A$69,I78*$C$104,IF(E78=List!$A$70,I78*$C$105,IF(E78=List!$A$71,I78*$C$106,IF(E78=List!$A$72,I78*$C$107,0)))) -> 0 | M78: 0 | P78: Total Cost | Q78: =SUM('Energy & Production '!F86:G89) -> 0 | T78: Steam | U78: =Total_Steam -> FALSE | V78: =IF(AA101>0,AA101,"") ->  | X78: =IFERROR(V78/U78*W78,"") ->  | Y78: =CONCATENATE(W75," - ",TEXT(W78,"#,#")," ",'Energy & Production '!$B$12) -> Energy Use - | Z78: =CONCATENATE($X$75," - ",TEXT(X78,"#,#")," ",'Energy & Production '!B12,CHAR(10),$AD$75," - $",TEXT(AD78,"#,#")) -> Potential Savings - Cost Savings - $ | AB78: =CONCATENATE(TEXT(W78,"#,#")," ",'Energy & Production '!B12) -> 
B79: ='Translation '!A168 -> Material Processing | C79: ='Energy Use System'!C31 -> 0 | D79: ='Energy Use System'!D31 -> 0 | E79: ='Energy Use System'!E31 -> 0 | F79: ='Energy Use System'!F31 -> 0 | G79: ='Energy Use System'!G31 -> 0 | H79: =IF(D79=List!$A$69,Total_Electricity*F79,IF(D79=List!$A$70,Total_NG*F79,IF(D79=List!$A$71,Total_Steam*F79,IF(D79=List!$A$72,Total_OF*F79,0)))) -> 0 | I79: =IF(E79=List!$A$69,Total_Electricity*G79,IF(E79=List!$A$70,Total_NG*G79,IF(E79=List!$A$71,Total_Steam*G79,IF(E79=List!$A$72,Total_OF*G79,0)))) -> 0 | J79: 0 | K79: =IF(D79=List!$A$69,H79*$C$104,IF(D79=List!$A$70,H79*$C$105,IF(D79=List!$A$71,H79*$C$106,IF(D79=List!$A$72,H79*$C$107,0)))) -> 0 | L79: =IF(E79=List!$A$69,I79*$C$104,IF(E79=List!$A$70,I79*$C$105,IF(E79=List!$A$71,I79*$C$106,IF(E79=List!$A$72,I79*$C$107,0)))) -> 0 | M79: 0 | P79: Others cost | Q79: =Q78-SUM(M88:M99) -> 0 | T79: ='Energy & Production '!F10 -> 0 | U79: =Total_OF -> FALSE | V79: =AB101 -> 0 | X79: =IFERROR(V79/U79*W79,"") ->  | Y79: =CONCATENATE(W75," - ",TEXT(W79,"#,#")," ",'Energy & Production '!F11) -> Energy Use - | Z79: =CONCATENATE($X$75," - ",TEXT(X79,"#,#")," ",'Energy & Production '!F11,CHAR(10),$AD$75," - $",TEXT(AD79,"#,#")) -> Potential Savings - Cost Savings - $ | AB79: =CONCATENATE(TEXT(W79,"#,#")," ",'Energy & Production '!F11) -> 
B80: ='Translation '!A169 -> Process Cooling and Refrigeration | C80: ='Energy Use System'!C32 -> 0 | D80: ='Energy Use System'!D32 -> 0 | E80: ='Energy Use System'!E32 -> 0 | F80: ='Energy Use System'!F32 -> 0 | G80: ='Energy Use System'!G32 -> 0 | H80: =IF(D80=List!$A$69,Total_Electricity*F80,IF(D80=List!$A$70,Total_NG*F80,IF(D80=List!$A$71,Total_Steam*F80,IF(D80=List!$A$72,Total_OF*F80,0)))) -> 0 | I80: =IF(E80=List!$A$69,Total_Electricity*G80,IF(E80=List!$A$70,Total_NG*G80,IF(E80=List!$A$71,Total_Steam*G80,IF(E80=List!$A$72,Total_OF*G80,0)))) -> 0 | J80: 0 | K80: =IF(D80=List!$A$69,H80*$C$104,IF(D80=List!$A$70,H80*$C$105,IF(D80=List!$A$71,H80*$C$106,IF(D80=List!$A$72,H80*$C$107,0)))) -> 0 | L80: =IF(E80=List!$A$69,I80*$C$104,IF(E80=List!$A$70,I80*$C$105,IF(E80=List!$A$71,I80*$C$106,IF(E80=List!$A$72,I80*$C$107,0)))) -> 0 | M80: 0
B81: ='Translation '!A170 -> Process Heating | C81: ='Energy Use System'!C33 -> 0 | D81: ='Energy Use System'!D33 -> 0 | E81: ='Energy Use System'!E33 -> 0 | F81: ='Energy Use System'!F33 -> 0 | G81: ='Energy Use System'!G33 -> 0 | H81: =IF(D81=List!$A$69,Total_Electricity*F81,IF(D81=List!$A$70,Total_NG*F81,IF(D81=List!$A$71,Total_Steam*F81,IF(D81=List!$A$72,Total_OF*F81,0)))) -> 0 | I81: =IF(E81=List!$A$69,Total_Electricity*G81,IF(E81=List!$A$70,Total_NG*G81,IF(E81=List!$A$71,Total_Steam*G81,IF(E81=List!$A$72,Total_OF*G81,0)))) -> 0 | J81: 0 | K81: =IF(D81=List!$A$69,H81*$C$104,IF(D81=List!$A$70,H81*$C$105,IF(D81=List!$A$71,H81*$C$106,IF(D81=List!$A$72,H81*$C$107,0)))) -> 0 | L81: =IF(E81=List!$A$69,I81*$C$104,IF(E81=List!$A$70,I81*$C$105,IF(E81=List!$A$71,I81*$C$106,IF(E81=List!$A$72,I81*$C$107,0)))) -> 0 | M81: 0
B82: ='Translation '!A171 -> Pumps | C82: ='Energy Use System'!C34 -> 0 | D82: ='Energy Use System'!D34 -> 0 | E82: ='Energy Use System'!E34 -> 0 | F82: ='Energy Use System'!F34 -> 0 | G82: ='Energy Use System'!G34 -> 0 | H82: =IF(D82=List!$A$69,Total_Electricity*F82,IF(D82=List!$A$70,Total_NG*F82,IF(D82=List!$A$71,Total_Steam*F82,IF(D82=List!$A$72,Total_OF*F82,0)))) -> 0 | I82: =IF(E82=List!$A$69,Total_Electricity*G82,IF(E82=List!$A$70,Total_NG*G82,IF(E82=List!$A$71,Total_Steam*G82,IF(E82=List!$A$72,Total_OF*G82,0)))) -> 0 | J82: 0 | K82: =IF(D82=List!$A$69,H82*$C$104,IF(D82=List!$A$70,H82*$C$105,IF(D82=List!$A$71,H82*$C$106,IF(D82=List!$A$72,H82*$C$107,0)))) -> 0 | L82: =IF(E82=List!$A$69,I82*$C$104,IF(E82=List!$A$70,I82*$C$105,IF(E82=List!$A$71,I82*$C$106,IF(E82=List!$A$72,I82*$C$107,0)))) -> 0 | M82: 0
B83: ='Translation '!A172 -> Steam Generation Equipment | C83: ='Energy Use System'!C35 -> 0 | D83: ='Energy Use System'!D35 -> 0 | E83: ='Energy Use System'!E35 -> 0 | F83: ='Energy Use System'!F35 -> 0 | G83: ='Energy Use System'!G35 -> 0 | H83: =IF(D83=List!$A$69,Total_Electricity*F83,IF(D83=List!$A$70,Total_NG*F83,IF(D83=List!$A$71,Total_Steam*F83,IF(D83=List!$A$72,Total_OF*F83,0)))) -> 0 | I83: =IF(E83=List!$A$69,Total_Electricity*G83,IF(E83=List!$A$70,Total_NG*G83,IF(E83=List!$A$71,Total_Steam*G83,IF(E83=List!$A$72,Total_OF*G83,0)))) -> 0 | J83: 0 | K83: =IF(D83=List!$A$69,H83*$C$104,IF(D83=List!$A$70,H83*$C$105,IF(D83=List!$A$71,H83*$C$106,IF(D83=List!$A$72,H83*$C$107,0)))) -> 0 | L83: =IF(E83=List!$A$69,I83*$C$104,IF(E83=List!$A$70,I83*$C$105,IF(E83=List!$A$71,I83*$C$106,IF(E83=List!$A$72,I83*$C$107,0)))) -> 0 | M83: 0
J84: =SUM(J72:J83) -> 0
T85: Usage Split by Fuel Type | Y85: Potential Savings by Fuel Type | AD85: =T85 -> Usage Split by Fuel Type | AI85: =Y85 -> Potential Savings by Fuel Type
B86: Default | C86: Calculation Master Sheet | H86: =EI_Metric -> 0 | I86: =EI_Metric -> 0 | J86: =EI_Metric -> 0 | T86: =EI_Metric -> 0 | Y86: =EI_Metric -> 0 | AD86: ='Energy & Production '!B10 -> 0 | AE86: ='Energy & Production '!B11 -> 0 | AF86: ='Energy & Production '!B12 -> 0 | AG86: ='Energy & Production '!F11 -> 0 | AI86: =AD86 -> 0 | AJ86: =AE86 -> 0 | AK86: =AF86 -> 0 | AL86: =AG86 -> 0
B87: ='Basic Info '!B6:F6 -> 0 | C87: ='Translation '!A260 -> Yes/No | D87: ='Translation '!A155 -> Primary Energy Source | E87: ='Translation '!A156 -> Secondary Energy Source | F87: ='Translation '!A157 -> % Primary Energy Source | G87: ='Translation '!A158 -> % Secondary Energy Source | H87: ='Translation '!A261 -> Annual Primary Energy | I87: ='Translation '!A262 -> Annual Secondary Energy | J87: ='Translation '!A159 -> Annual Consumption(0) | K87: ='Translation '!A263 -> Primary Energy Cost | L87: ='Translation '!A264 -> Secondary Energy Cost | M87: ='Translation '!A160 -> Annual Cost($) | N87: % primary | O87: %secondary | P87: Cost saving primary | Q87: Cost saving Secondary | R87: Cost Savings($) | T87: Electricity | U87: Natural gas | V87: Steam | W87: Other Fuel | Y87: Electricity | Z87: Natural Gas | AA87: Steam | AB87: Other Fuel | AD87: Electricity | AE87: Natural Gas | AF87: Steam | AG87: Other Fuel | AI87: Electricity | AJ87: Natural Gas | AK87: Steam | AL87: Other Fuel
B88: ='Translation '!A161 -> Combined Heat and Power (Cogeneration) | C88: ='Energy Use System'!C39 -> 0 | D88: ='Energy Use System'!D39 -> 0 | E88: ='Energy Use System'!E39 -> 0 | F88: =IF(F72>0,F72,IF(OR(C88=0,C88=List!$A$8,C88=List!$A$9),0,IF(D88=List!$A$69,(VLOOKUP(B88,$B$3:$R$21,MATCH($B$87,$B$3:$R$3,0),FALSE)),IF(OR(D88=List!$A$70,D88=List!$A$72),VLOOKUP(B88,$B$23:$R$41,MATCH($B$87,$B$23:$R$23,0),FALSE),IF(D88=List!$A$71,VLOOKUP(B88,$B$43:$R$61,MATCH($B$87,$B$43:$R$43,0),FALSE),0))))) -> 0 | G88: =IF(G72>0,G72,IF(OR(C88=0,C88=List!$A$8,C88=List!$A$9),0,IF(E88=List!$A$69,(VLOOKUP(B88,$B$3:$R$21,MATCH($B$87,$B$3:$R$3,0),FALSE)),IF(OR(E88=List!$A$70,E88=List!$A$72),VLOOKUP(B88,$B$23:$R$41,MATCH($B$87,$B$23:$R$23,0),FALSE),IF(E88=List!$A$71,VLOOKUP(B88,$B$43:$R$61,MATCH($B$87,$B$43:$R$43,0),FALSE),0))))) -> 0 | H88: =IF(D88=List!$A$69,Total_Electricity*F88,IF(D88=List!$A$70,Total_NG*F88,IF(D88=List!$A$71,Total_Steam*F88,IF(D88=List!$A$72,Total_OF*F88,0)))) -> 0 | I88: =IF(E88=List!$A$69,Total_Electricity*G88,IF(E88=List!$A$70,Total_NG*G88,IF(E88=List!$A$71,Total_Steam*G88,IF(E88=List!$A$72,Total_OF*G88,0)))) -> 0 | J88: =SUM(H88:I88) -> 0 | K88: =IF(D88=List!$A$69,H88*$C$104,IF(D88=List!$A$70,H88*$C$105,IF(D88=List!$A$71,H88*$C$106,IF(D88=List!$A$72,H88*$C$107,0)))) -> 0 | L88: =IF(E88=List!$A$69,I88*$C$104,IF(E88=List!$A$70,I88*$C$105,IF(E88=List!$A$71,I88*$C$106,IF(E88=List!$A$72,I88*$C$107,0)))) -> 0 | M88: =SUM(K88:L88) -> 0 | N88: =IFERROR(F88/(F88+G88),0) -> 0 | O88: =IFERROR(G88/(F88+G88),0) -> 0 | P88: =IF(D88=List!$A$69,($C$104*N88),IF(D88=List!$A$70,$C$105*N88,IF(D88=List!$A$71,$C$106*N88,IF(D88=List!$A$72,$C$107*N88,0)))) -> 0 | Q88: =IF(E88=List!$A$69,($C$104*O88),IF(E88=List!$A$70,$C$105*O88,IF(E88=List!$A$71,$C$106*O88,IF(E88=List!$A$72,$C$107*O88,0)))) -> 0 | R88: =IF(AND(F88=0,G88=0),0,G133*(P88+Q88)) -> 0 | T88: =IF(D88=List!$A$69,H88,0)+(IF(E88=List!$A$69,I88,0)) -> 0 | U88: =IF(D88=List!$A$70,H88,0)+IF(E88=List!$A$70,I88,0) -> 0 | V88: =IF(D88=List!$A$71,H88,0)+(IF(E88=List!$A$71,I88,0)) -> 0 | W88: =IF(D88=List!$A$72,H88,0)+IF(E88=List!$A$72,I88,0) -> 0 | Y88: =F133*T88 -> 0 | Z88: =F133*U88 -> 0 | AA88: =F133*V88 -> 0 | AB88: =F133*W88 -> 0 | AD88: =IFERROR(T88/$G$64,0) -> 0 | AE88: =IFERROR(U88/$G$65,0) -> 0 | AF88: =IFERROR(V88/$G$66,0) -> 0 | AG88: =IFERROR(W88/$G$67,0) -> 0 | AI88: =F133*AD88 -> 0 | AJ88: =F133*AE88 -> 0 | AK88: =F133*AF88 -> 0 | AL88: =F133*AG88 -> 0
B89: ='Translation '!A162 -> Compressed Air | C89: ='Energy Use System'!C40 -> 0 | D89: ='Energy Use System'!D40 -> 0 | E89: ='Energy Use System'!E40 -> 0 | F89: =IF(F73>0,F73,IF(OR(C89=0,C89=List!$A$8,C89=List!$A$9),0,IF(D89=List!$A$69,(VLOOKUP(B89,$B$3:$R$21,MATCH($B$87,$B$3:$R$3,0),FALSE)),IF(OR(D89=List!$A$70,D89=List!$A$72),VLOOKUP(B89,$B$23:$R$41,MATCH($B$87,$B$23:$R$23,0),FALSE),IF(D89=List!$A$71,VLOOKUP(B89,$B$43:$R$61,MATCH($B$87,$B$43:$R$43,0),FALSE),0))))) -> 0 | G89: =IF(G73>0,G73,IF(OR(C89=0,C89=List!$A$8,C89=List!$A$9),0,IF(E89=List!$A$69,(VLOOKUP(B89,$B$3:$R$21,MATCH($B$87,$B$3:$R$3,0),FALSE)),IF(OR(E89=List!$A$70,E89=List!$A$72),VLOOKUP(B89,$B$23:$R$41,MATCH($B$87,$B$23:$R$23,0),FALSE),IF(E89=List!$A$71,VLOOKUP(B89,$B$43:$R$61,MATCH($B$87,$B$43:$R$43,0),FALSE),0))))) -> 0 | H89: =IF(D89=List!$A$69,Total_Electricity*F89,IF(D89=List!$A$70,Total_NG*F89,IF(D89=List!$A$71,Total_Steam*F89,IF(D89=List!$A$72,Total_OF*F89,0)))) -> 0 | I89: =IF(E89=List!$A$69,Total_Electricity*G89,IF(E89=List!$A$70,Total_NG*G89,IF(E89=List!$A$71,Total_Steam*G89,IF(E89=List!$A$72,Total_OF*G89,0)))) -> 0 | J89: =SUM(H89:I89) -> 0 | K89: =IF(D89=List!$A$69,H89*$C$104,IF(D89=List!$A$70,H89*$C$105,IF(D89=List!$A$71,H89*$C$106,IF(D89=List!$A$72,H89*$C$107,0)))) -> 0 | L89: =IF(E89=List!$A$69,I89*$C$104,IF(E89=List!$A$70,I89*$C$105,IF(E89=List!$A$71,I89*$C$106,IF(E89=List!$A$72,I89*$C$107,0)))) -> 0 | M89: =SUM(K89:L89) -> 0 | N89: 0 | O89: 0 | P89: =IF(D89=List!$A$69,($C$104*N89),IF(D89=List!$A$70,$C$105*N89,IF(D89=List!$A$71,$C$106*N89,IF(D89=List!$A$72,$C$107*N89,0)))) -> 0 | Q89: =IF(E89=List!$A$69,($C$104*O89),IF(E89=List!$A$70,$C$105*O89,IF(E89=List!$A$71,$C$106*O89,IF(E89=List!$A$72,$C$107*O89,0)))) -> 0 | R89: 0 | T89: =IF(D89=List!$A$69,H89,0)+(IF(E89=List!$A$69,I89,0)) -> 0 | U89: =IF(D89=List!$A$70,H89,0)+IF(E89=List!$A$70,I89,0) -> 0 | V89: =IF(D89=List!$A$71,H89,0)+(IF(E89=List!$A$71,I89,0)) -> 0 | W89: =IF(D89=List!$A$72,H89,0)+IF(E89=List!$A$72,I89,0) -> 0 | Y89: 0 | Z89: 0 | AA89: 0 | AB89: 0 | AD89: =IFERROR(T89/$G$64,0) -> 0 | AE89: =IFERROR(U89/$G$65,0) -> 0 | AF89: =IFERROR(V89/$G$66,0) -> 0 | AG89: =IFERROR(W89/$G$67,0) -> 0 | AI89: =F134*AD89 -> 0 | AJ89: =F134*AE89 -> 0 | AK89: =F134*AF89 -> 0 | AL89: =F134*AG89 -> 0
B90: ='Translation '!A163 -> Electrochemical Processes | C90: ='Energy Use System'!C41 -> 0 | D90: ='Energy Use System'!D41 -> 0 | E90: ='Energy Use System'!E41 -> 0 | F90: =IF(F74>0,F74,IF(OR(C90=0,C90=List!$A$8,C90=List!$A$9),0,IF(D90=List!$A$69,(VLOOKUP(B90,$B$3:$R$21,MATCH($B$87,$B$3:$R$3,0),FALSE)),IF(OR(D90=List!$A$70,D90=List!$A$72),VLOOKUP(B90,$B$23:$R$41,MATCH($B$87,$B$23:$R$23,0),FALSE),IF(D90=List!$A$71,VLOOKUP(B90,$B$43:$R$61,MATCH($B$87,$B$43:$R$43,0),FALSE),0))))) -> 0 | G90: =IF(G74>0,G74,IF(OR(C90=0,C90=List!$A$8,C90=List!$A$9),0,IF(E90=List!$A$69,(VLOOKUP(B90,$B$3:$R$21,MATCH($B$87,$B$3:$R$3,0),FALSE)),IF(OR(E90=List!$A$70,E90=List!$A$72),VLOOKUP(B90,$B$23:$R$41,MATCH($B$87,$B$23:$R$23,0),FALSE),IF(E90=List!$A$71,VLOOKUP(B90,$B$43:$R$61,MATCH($B$87,$B$43:$R$43,0),FALSE),0))))) -> 0 | H90: =IF(D90=List!$A$69,Total_Electricity*F90,IF(D90=List!$A$70,Total_NG*F90,IF(D90=List!$A$71,Total_Steam*F90,IF(D90=List!$A$72,Total_OF*F90,0)))) -> 0 | I90: =IF(E90=List!$A$69,Total_Electricity*G90,IF(E90=List!$A$70,Total_NG*G90,IF(E90=List!$A$71,Total_Steam*G90,IF(E90=List!$A$72,Total_OF*G90,0)))) -> 0 | J90: 0 | K90: =IF(D90=List!$A$69,H90*$C$104,IF(D90=List!$A$70,H90*$C$105,IF(D90=List!$A$71,H90*$C$106,IF(D90=List!$A$72,H90*$C$107,0)))) -> 0 | L90: =IF(E90=List!$A$69,I90*$C$104,IF(E90=List!$A$70,I90*$C$105,IF(E90=List!$A$71,I90*$C$106,IF(E90=List!$A$72,I90*$C$107,0)))) -> 0 | M90: 0 | N90: 0 | O90: 0 | P90: =IF(D90=List!$A$69,($C$104*N90),IF(D90=List!$A$70,$C$105*N90,IF(D90=List!$A$71,$C$106*N90,IF(D90=List!$A$72,$C$107*N90,0)))) -> 0 | Q90: =IF(E90=List!$A$69,($C$104*O90),IF(E90=List!$A$70,$C$105*O90,IF(E90=List!$A$71,$C$106*O90,IF(E90=List!$A$72,$C$107*O90,0)))) -> 0 | R90: 0 | T90: =IF(D90=List!$A$69,H90,0)+(IF(E90=List!$A$69,I90,0)) -> 0 | U90: =IF(D90=List!$A$70,H90,0)+IF(E90=List!$A$70,I90,0) -> 0 | V90: =IF(D90=List!$A$71,H90,0)+(IF(E90=List!$A$71,I90,0)) -> 0 | W90: =IF(D90=List!$A$72,H90,0)+IF(E90=List!$A$72,I90,0) -> 0 | Y90: 0 | Z90: 0 | AA90: 0 | AB90: 0 | AD90: 0 | AE90: 0 | AF90: 0 | AG90: 0 | AI90: 0 | AJ90: =F135*AE90 -> 0 | AK90: 0 | AL90: 0
B91: ='Translation '!A164 -> Fans and Blowers | C91: ='Energy Use System'!C42 -> 0 | D91: ='Energy Use System'!D42 -> 0 | E91: ='Energy Use System'!E42 -> 0 | F91: =IF(F75>0,F75,IF(OR(C91=0,C91=List!$A$8,C91=List!$A$9),0,IF(D91=List!$A$69,(VLOOKUP(B91,$B$3:$R$21,MATCH($B$87,$B$3:$R$3,0),FALSE)),IF(OR(D91=List!$A$70,D91=List!$A$72),VLOOKUP(B91,$B$23:$R$41,MATCH($B$87,$B$23:$R$23,0),FALSE),IF(D91=List!$A$71,VLOOKUP(B91,$B$43:$R$61,MATCH($B$87,$B$43:$R$43,0),FALSE),0))))) -> 0 | G91: =IF(G75>0,G75,IF(OR(C91=0,C91=List!$A$8,C91=List!$A$9),0,IF(E91=List!$A$69,(VLOOKUP(B91,$B$3:$R$21,MATCH($B$87,$B$3:$R$3,0),FALSE)),IF(OR(E91=List!$A$70,E91=List!$A$72),VLOOKUP(B91,$B$23:$R$41,MATCH($B$87,$B$23:$R$23,0),FALSE),IF(E91=List!$A$71,VLOOKUP(B91,$B$43:$R$61,MATCH($B$87,$B$43:$R$43,0),FALSE),0))))) -> 0 | H91: =IF(D91=List!$A$69,Total_Electricity*F91,IF(D91=List!$A$70,Total_NG*F91,IF(D91=List!$A$71,Total_Steam*F91,IF(D91=List!$A$72,Total_OF*F91,0)))) -> 0 | I91: =IF(E91=List!$A$69,Total_Electricity*G91,IF(E91=List!$A$70,Total_NG*G91,IF(E91=List!$A$71,Total_Steam*G91,IF(E91=List!$A$72,Total_OF*G91,0)))) -> 0 | J91: 0 | K91: =IF(D91=List!$A$69,H91*$C$104,IF(D91=List!$A$70,H91*$C$105,IF(D91=List!$A$71,H91*$C$106,IF(D91=List!$A$72,H91*$C$107,0)))) -> 0 | L91: =IF(E91=List!$A$69,I91*$C$104,IF(E91=List!$A$70,I91*$C$105,IF(E91=List!$A$71,I91*$C$106,IF(E91=List!$A$72,I91*$C$107,0)))) -> 0 | M91: 0 | N91: 0 | O91: 0 | P91: =IF(D91=List!$A$69,($C$104*N91),IF(D91=List!$A$70,$C$105*N91,IF(D91=List!$A$71,$C$106*N91,IF(D91=List!$A$72,$C$107*N91,0)))) -> 0 | Q91: =IF(E91=List!$A$69,($C$104*O91),IF(E91=List!$A$70,$C$105*O91,IF(E91=List!$A$71,$C$106*O91,IF(E91=List!$A$72,$C$107*O91,0)))) -> 0 | R91: 0 | T91: =IF(D91=List!$A$69,H91,0)+(IF(E91=List!$A$69,I91,0)) -> 0 | U91: =IF(D91=List!$A$70,H91,0)+IF(E91=List!$A$70,I91,0) -> 0 | V91: =IF(D91=List!$A$71,H91,0)+(IF(E91=List!$A$71,I91,0)) -> 0 | W91: =IF(D91=List!$A$72,H91,0)+IF(E91=List!$A$72,I91,0) -> 0 | Y91: 0 | Z91: 0 | AA91: 0 | AB91: 0 | AD91: 0 | AE91: 0 | AF91: 0 | AG91: 0 | AI91: 0 | AJ91: 0 | AK91: 0 | AL91: 0
B92: ='Translation '!A165 -> Industrial Facilities (Lighting) | C92: ='Energy Use System'!C43 -> 0 | D92: ='Energy Use System'!D43 -> 0 | E92: ='Energy Use System'!E43 -> 0 | F92: =IF(F76>0,F76,IF(OR(C92=0,C92=List!$A$8,C92=List!$A$9),0,IF(D92=List!$A$69,(VLOOKUP(B92,$B$3:$R$21,MATCH($B$87,$B$3:$R$3,0),FALSE)),IF(OR(D92=List!$A$70,D92=List!$A$72),VLOOKUP(B92,$B$23:$R$41,MATCH($B$87,$B$23:$R$23,0),FALSE),IF(D92=List!$A$71,VLOOKUP(B92,$B$43:$R$61,MATCH($B$87,$B$43:$R$43,0),FALSE),0))))) -> 0 | G92: =IF(G76>0,G76,IF(OR(C92=0,C92=List!$A$8,C92=List!$A$9),0,IF(E92=List!$A$69,(VLOOKUP(B92,$B$3:$R$21,MATCH($B$87,$B$3:$R$3,0),FALSE)),IF(OR(E92=List!$A$70,E92=List!$A$72),VLOOKUP(B92,$B$23:$R$41,MATCH($B$87,$B$23:$R$23,0),FALSE),IF(E92=List!$A$71,VLOOKUP(B92,$B$43:$R$61,MATCH($B$87,$B$43:$R$43,0),FALSE),0))))) -> 0 | H92: =IF(D92=List!$A$69,Total_Electricity*F92,IF(D92=List!$A$70,Total_NG*F92,IF(D92=List!$A$71,Total_Steam*F92,IF(D92=List!$A$72,Total_OF*F92,0)))) -> 0 | I92: =IF(E92=List!$A$69,Total_Electricity*G92,IF(E92=List!$A$70,Total_NG*G92,IF(E92=List!$A$71,Total_Steam*G92,IF(E92=List!$A$72,Total_OF*G92,0)))) -> 0 | J92: 0 | K92: =IF(D92=List!$A$69,H92*$C$104,IF(D92=List!$A$70,H92*$C$105,IF(D92=List!$A$71,H92*$C$106,IF(D92=List!$A$72,H92*$C$107,0)))) -> 0 | L92: =IF(E92=List!$A$69,I92*$C$104,IF(E92=List!$A$70,I92*$C$105,IF(E92=List!$A$71,I92*$C$106,IF(E92=List!$A$72,I92*$C$107,0)))) -> 0 | M92: 0 | N92: 0 | O92: 0 | P92: =IF(D92=List!$A$69,($C$104*N92),IF(D92=List!$A$70,$C$105*N92,IF(D92=List!$A$71,$C$106*N92,IF(D92=List!$A$72,$C$107*N92,0)))) -> 0 | Q92: =IF(E92=List!$A$69,($C$104*O92),IF(E92=List!$A$70,$C$105*O92,IF(E92=List!$A$71,$C$106*O92,IF(E92=List!$A$72,$C$107*O92,0)))) -> 0 | R92: 0 | T92: =IF(D92=List!$A$69,H92,0)+(IF(E92=List!$A$69,I92,0)) -> 0 | U92: =IF(D92=List!$A$70,H92,0)+IF(E92=List!$A$70,I92,0) -> 0 | V92: =IF(D92=List!$A$71,H92,0)+(IF(E92=List!$A$71,I92,0)) -> 0 | W92: =IF(D92=List!$A$72,H92,0)+IF(E92=List!$A$72,I92,0) -> 0 | Y92: 0 | Z92: 0 | AA92: 0 | AB92: 0 | AD92: 0 | AE92: 0 | AF92: 0 | AG92: 0 | AI92: 0 | AJ92: 0 | AK92: 0 | AL92: 0
B93: ='Translation '!A166 -> Industrial Facilities (HVAC) | C93: ='Energy Use System'!C44 -> 0 | D93: ='Energy Use System'!D44 -> 0 | E93: ='Energy Use System'!E44 -> 0 | F93: =IF(F77>0,F77,IF(OR(C93=0,C93=List!$A$8,C93=List!$A$9),0,IF(D93=List!$A$69,(VLOOKUP(B93,$B$3:$R$21,MATCH($B$87,$B$3:$R$3,0),FALSE)),IF(OR(D93=List!$A$70,D93=List!$A$72),VLOOKUP(B93,$B$23:$R$41,MATCH($B$87,$B$23:$R$23,0),FALSE),IF(D93=List!$A$71,VLOOKUP(B93,$B$43:$R$61,MATCH($B$87,$B$43:$R$43,0),FALSE),0))))) -> 0 | G93: =IF(G77>0,G77,IF(OR(C93=0,C93=List!$A$8,C93=List!$A$9),0,IF(E93=List!$A$69,(VLOOKUP(B93,$B$3:$R$21,MATCH($B$87,$B$3:$R$3,0),FALSE)),IF(OR(E93=List!$A$70,E93=List!$A$72),VLOOKUP(B93,$B$23:$R$41,MATCH($B$87,$B$23:$R$23,0),FALSE),IF(E93=List!$A$71,VLOOKUP(B93,$B$43:$R$61,MATCH($B$87,$B$43:$R$43,0),FALSE),0))))) -> 0 | H93: =IF(D93=List!$A$69,Total_Electricity*F93,IF(D93=List!$A$70,Total_NG*F93,IF(D93=List!$A$71,Total_Steam*F93,IF(D93=List!$A$72,Total_OF*F93,0)))) -> 0 | I93: =IF(E93=List!$A$69,Total_Electricity*G93,IF(E93=List!$A$70,Total_NG*G93,IF(E93=List!$A$71,Total_Steam*G93,IF(E93=List!$A$72,Total_OF*G93,0)))) -> 0 | J93: =SUM(H93:I93) -> 0 | K93: =IF(D93=List!$A$69,H93*$C$104,IF(D93=List!$A$70,H93*$C$105,IF(D93=List!$A$71,H93*$C$106,IF(D93=List!$A$72,H93*$C$107,0)))) -> 0 | L93: =IF(E93=List!$A$69,I93*$C$104,IF(E93=List!$A$70,I93*$C$105,IF(E93=List!$A$71,I93*$C$106,IF(E93=List!$A$72,I93*$C$107,0)))) -> 0 | M93: 0 | N93: 0 | O93: 0 | P93: =IF(D93=List!$A$69,($C$104*N93),IF(D93=List!$A$70,$C$105*N93,IF(D93=List!$A$71,$C$106*N93,IF(D93=List!$A$72,$C$107*N93,0)))) -> 0 | Q93: =IF(E93=List!$A$69,($C$104*O93),IF(E93=List!$A$70,$C$105*O93,IF(E93=List!$A$71,$C$106*O93,IF(E93=List!$A$72,$C$107*O93,0)))) -> 0 | R93: 0 | T93: =IF(D93=List!$A$69,H93,0)+(IF(E93=List!$A$69,I93,0)) -> 0 | U93: =IF(D93=List!$A$70,H93,0)+IF(E93=List!$A$70,I93,0) -> 0 | V93: =IF(D93=List!$A$71,H93,0)+(IF(E93=List!$A$71,I93,0)) -> 0 | W93: =IF(D93=List!$A$72,H93,0)+IF(E93=List!$A$72,I93,0) -> 0 | Y93: 0 | Z93: 0 | AA93: 0 | AB93: 0 | AD93: 0 | AE93: 0 | AF93: 0 | AG93: 0 | AI93: 0 | AJ93: 0 | AK93: 0 | AL93: 0
B94: ='Translation '!A167 -> Material Handling | C94: ='Energy Use System'!C45 -> 0 | D94: ='Energy Use System'!D45 -> 0 | E94: ='Energy Use System'!E45 -> 0 | F94: =IF(F78>0,F78,IF(OR(C94=0,C94=List!$A$8,C94=List!$A$9),0,IF(D94=List!$A$69,(VLOOKUP(B94,$B$3:$R$21,MATCH($B$87,$B$3:$R$3,0),FALSE)),IF(OR(D94=List!$A$70,D94=List!$A$72),VLOOKUP(B94,$B$23:$R$41,MATCH($B$87,$B$23:$R$23,0),FALSE),IF(D94=List!$A$71,VLOOKUP(B94,$B$43:$R$61,MATCH($B$87,$B$43:$R$43,0),FALSE),0))))) -> 0 | G94: =IF(G78>0,G78,IF(OR(C94=0,C94=List!$A$8,C94=List!$A$9),0,IF(E94=List!$A$69,(VLOOKUP(B94,$B$3:$R$21,MATCH($B$87,$B$3:$R$3,0),FALSE)),IF(OR(E94=List!$A$70,E94=List!$A$72),VLOOKUP(B94,$B$23:$R$41,MATCH($B$87,$B$23:$R$23,0),FALSE),IF(E94=List!$A$71,VLOOKUP(B94,$B$43:$R$61,MATCH($B$87,$B$43:$R$43,0),FALSE),0))))) -> 0 | H94: =IF(D94=List!$A$69,Total_Electricity*F94,IF(D94=List!$A$70,Total_NG*F94,IF(D94=List!$A$71,Total_Steam*F94,IF(D94=List!$A$72,Total_OF*F94,0)))) -> 0 | I94: =IF(E94=List!$A$69,Total_Electricity*G94,IF(E94=List!$A$70,Total_NG*G94,IF(E94=List!$A$71,Total_Steam*G94,IF(E94=List!$A$72,Total_OF*G94,0)))) -> 0 | J94: 0 | K94: =IF(D94=List!$A$69,H94*$C$104,IF(D94=List!$A$70,H94*$C$105,IF(D94=List!$A$71,H94*$C$106,IF(D94=List!$A$72,H94*$C$107,0)))) -> 0 | L94: =IF(E94=List!$A$69,I94*$C$104,IF(E94=List!$A$70,I94*$C$105,IF(E94=List!$A$71,I94*$C$106,IF(E94=List!$A$72,I94*$C$107,0)))) -> 0 | M94: 0 | N94: 0 | O94: 0 | P94: =IF(D94=List!$A$69,($C$104*N94),IF(D94=List!$A$70,$C$105*N94,IF(D94=List!$A$71,$C$106*N94,IF(D94=List!$A$72,$C$107*N94,0)))) -> 0 | Q94: =IF(E94=List!$A$69,($C$104*O94),IF(E94=List!$A$70,$C$105*O94,IF(E94=List!$A$71,$C$106*O94,IF(E94=List!$A$72,$C$107*O94,0)))) -> 0 | R94: 0 | T94: =IF(D94=List!$A$69,H94,0)+(IF(E94=List!$A$69,I94,0)) -> 0 | U94: =IF(D94=List!$A$70,H94,0)+IF(E94=List!$A$70,I94,0) -> 0 | V94: =IF(D94=List!$A$71,H94,0)+(IF(E94=List!$A$71,I94,0)) -> 0 | W94: =IF(D94=List!$A$72,H94,0)+IF(E94=List!$A$72,I94,0) -> 0 | Y94: 0 | Z94: 0 | AA94: 0 | AB94: 0 | AD94: 0 | AE94: 0 | AF94: 0 | AG94: 0 | AI94: 0 | AJ94: 0 | AK94: 0 | AL94: 0
B95: ='Translation '!A168 -> Material Processing | C95: ='Energy Use System'!C46 -> 0 | D95: ='Energy Use System'!D46 -> 0 | E95: ='Energy Use System'!E46 -> 0 | F95: =IF(F79>0,F79,IF(OR(C95=0,C95=List!$A$8,C95=List!$A$9),0,IF(D95=List!$A$69,(VLOOKUP(B95,$B$3:$R$21,MATCH($B$87,$B$3:$R$3,0),FALSE)),IF(OR(D95=List!$A$70,D95=List!$A$72),VLOOKUP(B95,$B$23:$R$41,MATCH($B$87,$B$23:$R$23,0),FALSE),IF(D95=List!$A$71,VLOOKUP(B95,$B$43:$R$61,MATCH($B$87,$B$43:$R$43,0),FALSE),0))))) -> 0 | G95: =IF(G79>0,G79,IF(OR(C95=0,C95=List!$A$8,C95=List!$A$9),0,IF(E95=List!$A$69,(VLOOKUP(B95,$B$3:$R$21,MATCH($B$87,$B$3:$R$3,0),FALSE)),IF(OR(E95=List!$A$70,E95=List!$A$72),VLOOKUP(B95,$B$23:$R$41,MATCH($B$87,$B$23:$R$23,0),FALSE),IF(E95=List!$A$71,VLOOKUP(B95,$B$43:$R$61,MATCH($B$87,$B$43:$R$43,0),FALSE),0))))) -> 0 | H95: =IF(D95=List!$A$69,Total_Electricity*F95,IF(D95=List!$A$70,Total_NG*F95,IF(D95=List!$A$71,Total_Steam*F95,IF(D95=List!$A$72,Total_OF*F95,0)))) -> 0 | I95: =IF(E95=List!$A$69,Total_Electricity*G95,IF(E95=List!$A$70,Total_NG*G95,IF(E95=List!$A$71,Total_Steam*G95,IF(E95=List!$A$72,Total_OF*G95,0)))) -> 0 | J95: 0 | K95: =IF(D95=List!$A$69,H95*$C$104,IF(D95=List!$A$70,H95*$C$105,IF(D95=List!$A$71,H95*$C$106,IF(D95=List!$A$72,H95*$C$107,0)))) -> 0 | L95: =IF(E95=List!$A$69,I95*$C$104,IF(E95=List!$A$70,I95*$C$105,IF(E95=List!$A$71,I95*$C$106,IF(E95=List!$A$72,I95*$C$107,0)))) -> 0 | M95: 0 | N95: 0 | O95: 0 | P95: =IF(D95=List!$A$69,($C$104*N95),IF(D95=List!$A$70,$C$105*N95,IF(D95=List!$A$71,$C$106*N95,IF(D95=List!$A$72,$C$107*N95,0)))) -> 0 | Q95: =IF(E95=List!$A$69,($C$104*O95),IF(E95=List!$A$70,$C$105*O95,IF(E95=List!$A$71,$C$106*O95,IF(E95=List!$A$72,$C$107*O95,0)))) -> 0 | R95: 0 | T95: =IF(D95=List!$A$69,H95,0)+(IF(E95=List!$A$69,I95,0)) -> 0 | U95: =IF(D95=List!$A$70,H95,0)+IF(E95=List!$A$70,I95,0) -> 0 | V95: =IF(D95=List!$A$71,H95,0)+(IF(E95=List!$A$71,I95,0)) -> 0 | W95: =IF(D95=List!$A$72,H95,0)+IF(E95=List!$A$72,I95,0) -> 0 | Y95: 0 | Z95: 0 | AA95: 0 | AB95: 0 | AD95: 0 | AE95: 0 | AF95: 0 | AG95: 0 | AI95: 0 | AJ95: 0 | AK95: 0 | AL95: 0
B96: ='Translation '!A169 -> Process Cooling and Refrigeration | C96: ='Energy Use System'!C47 -> 0 | D96: ='Energy Use System'!D47 -> 0 | E96: ='Energy Use System'!E47 -> 0 | F96: =IF(F80>0,F80,IF(OR(C96=0,C96=List!$A$8,C96=List!$A$9),0,IF(D96=List!$A$69,(VLOOKUP(B96,$B$3:$R$21,MATCH($B$87,$B$3:$R$3,0),FALSE)),IF(OR(D96=List!$A$70,D96=List!$A$72),VLOOKUP(B96,$B$23:$R$41,MATCH($B$87,$B$23:$R$23,0),FALSE),IF(D96=List!$A$71,VLOOKUP(B96,$B$43:$R$61,MATCH($B$87,$B$43:$R$43,0),FALSE),0))))) -> 0 | G96: =IF(G80>0,G80,IF(OR(C96=0,C96=List!$A$8,C96=List!$A$9),0,IF(E96=List!$A$69,(VLOOKUP(B96,$B$3:$R$21,MATCH($B$87,$B$3:$R$3,0),FALSE)),IF(OR(E96=List!$A$70,E96=List!$A$72),VLOOKUP(B96,$B$23:$R$41,MATCH($B$87,$B$23:$R$23,0),FALSE),IF(E96=List!$A$71,VLOOKUP(B96,$B$43:$R$61,MATCH($B$87,$B$43:$R$43,0),FALSE),0))))) -> 0 | H96: =IF(D96=List!$A$69,Total_Electricity*F96,IF(D96=List!$A$70,Total_NG*F96,IF(D96=List!$A$71,Total_Steam*F96,IF(D96=List!$A$72,Total_OF*F96,0)))) -> 0 | I96: =IF(E96=List!$A$69,Total_Electricity*G96,IF(E96=List!$A$70,Total_NG*G96,IF(E96=List!$A$71,Total_Steam*G96,IF(E96=List!$A$72,Total_OF*G96,0)))) -> 0 | J96: 0 | K96: =IF(D96=List!$A$69,H96*$C$104,IF(D96=List!$A$70,H96*$C$105,IF(D96=List!$A$71,H96*$C$106,IF(D96=List!$A$72,H96*$C$107,0)))) -> 0 | L96: =IF(E96=List!$A$69,I96*$C$104,IF(E96=List!$A$70,I96*$C$105,IF(E96=List!$A$71,I96*$C$106,IF(E96=List!$A$72,I96*$C$107,0)))) -> 0 | M96: 0 | N96: 0 | O96: 0 | P96: =IF(D96=List!$A$69,($C$104*N96),IF(D96=List!$A$70,$C$105*N96,IF(D96=List!$A$71,$C$106*N96,IF(D96=List!$A$72,$C$107*N96,0)))) -> 0 | Q96: =IF(E96=List!$A$69,($C$104*O96),IF(E96=List!$A$70,$C$105*O96,IF(E96=List!$A$71,$C$106*O96,IF(E96=List!$A$72,$C$107*O96,0)))) -> 0 | R96: 0 | T96: =IF(D96=List!$A$69,H96,0)+(IF(E96=List!$A$69,I96,0)) -> 0 | U96: =IF(D96=List!$A$70,H96,0)+IF(E96=List!$A$70,I96,0) -> 0 | V96: =IF(D96=List!$A$71,H96,0)+(IF(E96=List!$A$71,I96,0)) -> 0 | W96: =IF(D96=List!$A$72,H96,0)+IF(E96=List!$A$72,I96,0) -> 0 | Y96: 0 | Z96: 0 | AA96: 0 | AB96: 0 | AD96: 0 | AE96: 0 | AF96: 0 | AG96: 0 | AI96: 0 | AJ96: 0 | AK96: 0 | AL96: 0
B97: ='Translation '!A170 -> Process Heating | C97: ='Energy Use System'!C48 -> 0 | D97: ='Energy Use System'!D48 -> 0 | E97: ='Energy Use System'!E48 -> 0 | F97: =IF(F81>0,F81,IF(OR(C97=0,C97=List!$A$8,C97=List!$A$9),0,IF(D97=List!$A$69,(VLOOKUP(B97,$B$3:$R$21,MATCH($B$87,$B$3:$R$3,0),FALSE)),IF(OR(D97=List!$A$70,D97=List!$A$72),VLOOKUP(B97,$B$23:$R$41,MATCH($B$87,$B$23:$R$23,0),FALSE),IF(D97=List!$A$71,VLOOKUP(B97,$B$43:$R$61,MATCH($B$87,$B$43:$R$43,0),FALSE),0))))) -> 0 | G97: =IF(G81>0,G81,IF(OR(C97=0,C97=List!$A$8,C97=List!$A$9),0,IF(E97=List!$A$69,(VLOOKUP(B97,$B$3:$R$21,MATCH($B$87,$B$3:$R$3,0),FALSE)),IF(OR(E97=List!$A$70,E97=List!$A$72),VLOOKUP(B97,$B$23:$R$41,MATCH($B$87,$B$23:$R$23,0),FALSE),IF(E97=List!$A$71,VLOOKUP(B97,$B$43:$R$61,MATCH($B$87,$B$43:$R$43,0),FALSE),0))))) -> 0 | H97: =IF(D97=List!$A$69,Total_Electricity*F97,IF(D97=List!$A$70,Total_NG*F97,IF(D97=List!$A$71,Total_Steam*F97,IF(D97=List!$A$72,Total_OF*F97,0)))) -> 0 | I97: =IF(E97=List!$A$69,Total_Electricity*G97,IF(E97=List!$A$70,Total_NG*G97,IF(E97=List!$A$71,Total_Steam*G97,IF(E97=List!$A$72,Total_OF*G97,0)))) -> 0 | J97: 0 | K97: =IF(D97=List!$A$69,H97*$C$104,IF(D97=List!$A$70,H97*$C$105,IF(D97=List!$A$71,H97*$C$106,IF(D97=List!$A$72,H97*$C$107,0)))) -> 0 | L97: =IF(E97=List!$A$69,I97*$C$104,IF(E97=List!$A$70,I97*$C$105,IF(E97=List!$A$71,I97*$C$106,IF(E97=List!$A$72,I97*$C$107,0)))) -> 0 | M97: 0 | N97: 0 | O97: 0 | P97: =IF(D97=List!$A$69,($C$104*N97),IF(D97=List!$A$70,$C$105*N97,IF(D97=List!$A$71,$C$106*N97,IF(D97=List!$A$72,$C$107*N97,0)))) -> 0 | Q97: =IF(E97=List!$A$69,($C$104*O97),IF(E97=List!$A$70,$C$105*O97,IF(E97=List!$A$71,$C$106*O97,IF(E97=List!$A$72,$C$107*O97,0)))) -> 0 | R97: 0 | T97: =IF(D97=List!$A$69,H97,0)+(IF(E97=List!$A$69,I97,0)) -> 0 | U97: =IF(D97=List!$A$70,H97,0)+IF(E97=List!$A$70,I97,0) -> 0 | V97: =IF(D97=List!$A$71,H97,0)+(IF(E97=List!$A$71,I97,0)) -> 0 | W97: =IF(D97=List!$A$72,H97,0)+IF(E97=List!$A$72,I97,0) -> 0 | Y97: 0 | Z97: 0 | AA97: 0 | AB97: 0 | AD97: 0 | AE97: 0 | AF97: 0 | AG97: 0 | AI97: 0 | AJ97: 0 | AK97: 0 | AL97: 0
B98: ='Translation '!A171 -> Pumps | C98: ='Energy Use System'!C49 -> 0 | D98: ='Energy Use System'!D49 -> 0 | E98: ='Energy Use System'!E49 -> 0 | F98: =IF(F82>0,F82,IF(OR(C98=0,C98=List!$A$8,C98=List!$A$9),0,IF(D98=List!$A$69,(VLOOKUP(B98,$B$3:$R$21,MATCH($B$87,$B$3:$R$3,0),FALSE)),IF(OR(D98=List!$A$70,D98=List!$A$72),VLOOKUP(B98,$B$23:$R$41,MATCH($B$87,$B$23:$R$23,0),FALSE),IF(D98=List!$A$71,VLOOKUP(B98,$B$43:$R$61,MATCH($B$87,$B$43:$R$43,0),FALSE),0))))) -> 0 | G98: =IF(G82>0,G82,IF(OR(C98=0,C98=List!$A$8,C98=List!$A$9),0,IF(E98=List!$A$69,(VLOOKUP(B98,$B$3:$R$21,MATCH($B$87,$B$3:$R$3,0),FALSE)),IF(OR(E98=List!$A$70,E98=List!$A$72),VLOOKUP(B98,$B$23:$R$41,MATCH($B$87,$B$23:$R$23,0),FALSE),IF(E98=List!$A$71,VLOOKUP(B98,$B$43:$R$61,MATCH($B$87,$B$43:$R$43,0),FALSE),0))))) -> 0 | H98: =IF(D98=List!$A$69,Total_Electricity*F98,IF(D98=List!$A$70,Total_NG*F98,IF(D98=List!$A$71,Total_Steam*F98,IF(D98=List!$A$72,Total_OF*F98,0)))) -> 0 | I98: =IF(E98=List!$A$69,Total_Electricity*G98,IF(E98=List!$A$70,Total_NG*G98,IF(E98=List!$A$71,Total_Steam*G98,IF(E98=List!$A$72,Total_OF*G98,0)))) -> 0 | J98: 0 | K98: =IF(D98=List!$A$69,H98*$C$104,IF(D98=List!$A$70,H98*$C$105,IF(D98=List!$A$71,H98*$C$106,IF(D98=List!$A$72,H98*$C$107,0)))) -> 0 | L98: =IF(E98=List!$A$69,I98*$C$104,IF(E98=List!$A$70,I98*$C$105,IF(E98=List!$A$71,I98*$C$106,IF(E98=List!$A$72,I98*$C$107,0)))) -> 0 | M98: 0 | N98: 0 | O98: 0 | P98: =IF(D98=List!$A$69,($C$104*N98),IF(D98=List!$A$70,$C$105*N98,IF(D98=List!$A$71,$C$106*N98,IF(D98=List!$A$72,$C$107*N98,0)))) -> 0 | Q98: =IF(E98=List!$A$69,($C$104*O98),IF(E98=List!$A$70,$C$105*O98,IF(E98=List!$A$71,$C$106*O98,IF(E98=List!$A$72,$C$107*O98,0)))) -> 0 | R98: 0 | T98: =IF(D98=List!$A$69,H98,0)+(IF(E98=List!$A$69,I98,0)) -> 0 | U98: =IF(D98=List!$A$70,H98,0)+IF(E98=List!$A$70,I98,0) -> 0 | V98: =IF(D98=List!$A$71,H98,0)+(IF(E98=List!$A$71,I98,0)) -> 0 | W98: =IF(D98=List!$A$72,H98,0)+IF(E98=List!$A$72,I98,0) -> 0 | Y98: 0 | Z98: 0 | AA98: 0 | AB98: 0 | AD98: 0 | AE98: 0 | AF98: 0 | AG98: 0 | AI98: 0 | AJ98: 0 | AK98: 0 | AL98: 0
B99: ='Translation '!A172 -> Steam Generation Equipment | C99: ='Energy Use System'!C50 -> 0 | D99: ='Energy Use System'!D50 -> 0 | E99: ='Energy Use System'!E50 -> 0 | F99: =IF(F83>0,F83,IF(OR(C99=0,C99=List!$A$8,C99=List!$A$9),0,IF(D99=List!$A$69,(VLOOKUP(B99,$B$3:$R$21,MATCH($B$87,$B$3:$R$3,0),FALSE)),IF(OR(D99=List!$A$70,D99=List!$A$72),VLOOKUP(B99,$B$23:$R$41,MATCH($B$87,$B$23:$R$23,0),FALSE),IF(D99=List!$A$71,VLOOKUP(B99,$B$43:$R$61,MATCH($B$87,$B$43:$R$43,0),FALSE),0))))) -> 0 | G99: =IF(G83>0,G83,IF(OR(C99=0,C99=List!$A$8,C99=List!$A$9),0,IF(E99=List!$A$69,(VLOOKUP(B99,$B$3:$R$21,MATCH($B$87,$B$3:$R$3,0),FALSE)),IF(OR(E99=List!$A$70,E99=List!$A$72),VLOOKUP(B99,$B$23:$R$41,MATCH($B$87,$B$23:$R$23,0),FALSE),IF(E99=List!$A$71,VLOOKUP(B99,$B$43:$R$61,MATCH($B$87,$B$43:$R$43,0),FALSE),0))))) -> 0 | H99: =IF(D99=List!$A$69,Total_Electricity*F99,IF(D99=List!$A$70,Total_NG*F99,IF(D99=List!$A$71,Total_Steam*F99,IF(D99=List!$A$72,Total_OF*F99,0)))) -> 0 | I99: =IF(E99=List!$A$69,Total_Electricity*G99,IF(E99=List!$A$70,Total_NG*G99,IF(E99=List!$A$71,Total_Steam*G99,IF(E99=List!$A$72,Total_OF*G99,0)))) -> 0 | J99: 0 | K99: =IF(D99=List!$A$69,H99*$C$104,IF(D99=List!$A$70,H99*$C$105,IF(D99=List!$A$71,H99*$C$106,IF(D99=List!$A$72,H99*$C$107,0)))) -> 0 | L99: =IF(E99=List!$A$69,I99*$C$104,IF(E99=List!$A$70,I99*$C$105,IF(E99=List!$A$71,I99*$C$106,IF(E99=List!$A$72,I99*$C$107,0)))) -> 0 | M99: 0 | N99: 0 | O99: 0 | P99: =IF(D99=List!$A$69,($C$104*N99),IF(D99=List!$A$70,$C$105*N99,IF(D99=List!$A$71,$C$106*N99,IF(D99=List!$A$72,$C$107*N99,0)))) -> 0 | Q99: =IF(E99=List!$A$69,($C$104*O99),IF(E99=List!$A$70,$C$105*O99,IF(E99=List!$A$71,$C$106*O99,IF(E99=List!$A$72,$C$107*O99,0)))) -> 0 | R99: 0 | T99: =IF(D99=List!$A$69,H99,0)+(IF(E99=List!$A$69,I99,0)) -> 0 | U99: =IF(D99=List!$A$70,H99,0)+IF(E99=List!$A$70,I99,0) -> 0 | V99: =IF(D99=List!$A$71,H99,0)+(IF(E99=List!$A$71,I99,0)) -> 0 | W99: =IF(D99=List!$A$72,H99,0)+IF(E99=List!$A$72,I99,0) -> 0 | Y99: 0 | Z99: 0 | AA99: 0 | AB99: 0 | AD99: 0 | AE99: 0 | AF99: 0 | AG99: 0 | AI99: 0 | AJ99: 0 | AK99: 0 | AL99: 0
B100: Oth | J100: =Q76 -> 0 | M100: =Q79 -> 0 | T100: =Total_Electricity-SUM(T88:T99) -> 0 | U100: =Total_NG-SUM(U88:U99) -> 0 | V100: =Total_Steam-SUM(V88:V99) -> 0 | W100: =Total_OF-SUM(W88:W99) -> 0 | Y100: =F145*T100 -> 0 | Z100: =F145*U100 -> 0 | AA100: =F145*V100 -> 0 | AB100: =F145*W100 -> 0 | AD100: =IFERROR(T100/$G$64,0) -> 0 | AE100: =IFERROR(U100/$G$65,0) -> 0 | AF100: =IFERROR(V100/$G$66,0) -> 0 | AG100: =IFERROR(W100/$G$67,0) -> 0 | AI100: =F145*AD100 -> 0 | AJ100: =F145*AE100 -> 0 | AK100: =F145*AF100 -> 0 | AL100: =F145*AG100 -> 0
Y101: =SUM(Y88:Y100) -> 0 | Z101: =SUM(Z88:Z100) -> 0 | AA101: 0 | AB101: 0
B102: ='Translation '!A265 -> Unit cost of Energy
B103: ='Translation '!A266 -> Energy Type | C103: S/Output Unit | D103: $/input unit
B104: ='Translation '!A129 -> Electricity | C104: =IFERROR('Energy & Production '!F86/Total_Electricity,"NA") -> NA | D104: =C104*G64 -> 
B105: ='Translation '!A130 -> Natural Gas | C105: =IFERROR('Energy & Production '!F87/Total_NG,"NA") -> NA | D105: =C105*G65 -> 
B106: ='Translation '!A131 -> Steam | C106: =IFERROR('Energy & Production '!F88/Total_Steam,"NA") -> NA
B107: ='Translation '!A132 -> Other Fuel | C107: =IFERROR('Energy & Production '!F89/Total_OF,"NA") -> NA
B109: ='Translation '!A267 -> Ranges for ePeP scorecard Result | H109: ='Translation '!A271 -> End Use | I109: ='Translation '!A240 -> High | J109: ='Translation '!A241 -> Medium | K109: ='Translation '!A242 -> Low | M109: ='Translation '!A170 -> Process Heating | N109: ='Translation '!A240 -> High | O109: ='Translation '!A241 -> Medium | P109: ='Translation '!A242 -> Low
B110: ='Translation '!A268 -> Score Card | D110: ='Translation '!A269 -> Point | E110: ='Translation '!A269 -> Point | F110: ='Translation '!A270 -> Ranking | H110: ='Translation '!A161 -> Combined Heat and Power (Cogeneration) | I110: 0.05 | J110: 0.03 | K110: 0.01 | M110: ='Translation '!A199 -> Aluminum and Alumina | N110: 0.4 | O110: 0.25 | P110: 0.1
B111: ='Translation '!A162 -> Compressed Air | D111: 0 | E111: 40 | F111: ='Translation '!A240 -> High | H111: ='Translation '!A162 -> Compressed Air | I111: 0.2 | J111: 0.15 | K111: 0.05 | M111: ='Translation '!A200 -> Cement | N111: 0.4 | O111: 0.25 | P111: 0.1
B112: ='Translation '!A162 -> Compressed Air | D112: 40 | E112: 80 | F112: ='Translation '!A241 -> Medium | H112: ='Translation '!A163 -> Electrochemical Processes | I112: 0 | J112: 0 | K112: 0 | M112: ='Translation '!A201 -> Chemical and Allied Products | N112: 0.25 | O112: 0.15 | P112: 0.075
B113: ='Translation '!A162 -> Compressed Air | D113: 80 | E113: 100 | F113: ='Translation '!A242 -> Low | H113: ='Translation '!A164 -> Fans and Blowers | I113: 0.1 | J113: 0.1 | K113: 0.1 | M113: ='Translation '!A202 -> Computer, Electronics and Appliances | N113: 0.15 | O113: 0.1 | P113: 0.05
B114: ='Translation '!A169 -> Process Cooling and Refrigeration | D114: 0 | E114: 40 | F114: ='Translation '!A240 -> High | H114: ='Translation '!A165 -> Industrial Facilities (Lighting) | I114: 0.15 | J114: 0.15 | K114: 0.15 | M114: ='Translation '!A203 -> Fabricated Metal Products | N114: 0.25 | O114: 0.15 | P114: 0.075
B115: ='Translation '!A169 -> Process Cooling and Refrigeration | D115: 40 | E115: 85 | F115: ='Translation '!A241 -> Medium | H115: ='Translation '!A166 -> Industrial Facilities (HVAC) | I115: 0.15 | J115: 0.15 | K115: 0.15 | M115: ='Translation '!A204 -> Food, Beverage and Tobacco Products | N115: 0.15 | O115: 0.1 | P115: 0.05
B116: ='Translation '!A169 -> Process Cooling and Refrigeration | D116: 85 | E116: 100 | F116: ='Translation '!A242 -> Low | H116: ='Translation '!A167 -> Material Handling | I116: 0 | J116: 0 | K116: 0 | M116: ='Translation '!A205 -> Foundries | N116: 0.4 | O116: 0.25 | P116: 0.1
B117: ='Translation '!A170 -> Process Heating | D117: 0 | E117: 25 | F117: ='Translation '!A240 -> High | H117: ='Translation '!A168 -> Material Processing | I117: 0 | J117: 0 | K117: 0 | M117: ='Translation '!A206 -> Glass and Glass Products | N117: 0.4 | O117: 0.25 | P117: 0.1
B118: ='Translation '!A170 -> Process Heating | D118: 25 | E118: 50 | F118: ='Translation '!A241 -> Medium | H118: ='Translation '!A169 -> Process Cooling and Refrigeration | I118: 0.15 | J118: 0.1 | K118: 0.05 | M118: ='Translation '!A207 -> Heavy Machinery | N118: 0.15 | O118: 0.1 | P118: 0.05
B119: ='Translation '!A170 -> Process Heating | D119: 50 | E119: 100 | F119: ='Translation '!A242 -> Low | H119: ='Translation '!A171 -> Pumps | I119: 0.5 | J119: 0.3 | K119: 0.15 | M119: ='Translation '!A208 -> Integrated Steel | N119: 0.4 | O119: 0.25 | P119: 0.1
B120: ='Translation '!A171 -> Pumps | D120: 0 | E120: 40 | F120: ='Translation '!A240 -> High | H120: ='Translation '!A172 -> Steam Generation Equipment | I120: 0.2 | J120: 0.15 | K120: 0.05 | M120: ='Translation '!A209 -> Petroleum Refining | N120: 0.25 | O120: 0.15 | P120: 0.075
B121: ='Translation '!A171 -> Pumps | D121: 40 | E121: 80 | F121: ='Translation '!A241 -> Medium | M121: ='Translation '!A210 -> Plastic and Rubber Products | N121: 0.15 | O121: 0.1 | P121: 0.05
B122: ='Translation '!A171 -> Pumps | D122: 80 | E122: 100 | F122: ='Translation '!A242 -> Low | M122: ='Translation '!A211 -> Textile and Apparels and Leather goods | N122: 0.15 | O122: 0.1 | P122: 0.05
B123: ='Translation '!A161 -> Combined Heat and Power (Cogeneration) | D123: 0 | E123: 40 | F123: ='Translation '!A240 -> High | M123: ='Translation '!A212 -> Transportation Equipment | N123: 0.15 | O123: 0.1 | P123: 0.05
B124: ='Translation '!A161 -> Combined Heat and Power (Cogeneration) | D124: 40 | E124: 80 | F124: ='Translation '!A241 -> Medium | M124: ='Translation '!A213 -> Wood Produces, Pulp and Paper | N124: 0.15 | O124: 0.1 | P124: 0.05
B125: ='Translation '!A161 -> Combined Heat and Power (Cogeneration) | D125: 80 | E125: 100 | F125: ='Translation '!A242 -> Low | M125: ='Translation '!A214 -> Others (All Manufacturing) | N125: 0.15 | O125: 0.1 | P125: 0.05
B126: ='Translation '!A172 -> Steam Generation Equipment | D126: 0 | E126: 50 | F126: ='Translation '!A240 -> High
B127: ='Translation '!A172 -> Steam Generation Equipment | D127: 50 | E127: 80 | F127: ='Translation '!A241 -> Medium
B128: ='Translation '!A172 -> Steam Generation Equipment | D128: 80 | E128: 100 | F128: ='Translation '!A242 -> Low
B131: ='Translation '!A272 -> Ranking and Potential Percent of Savings for each End Use based on Scorecard and User Input
B132: ='Translation '!A153 -> System | D132: ='Translation '!A273 -> User Input | E132: ='Translation '!A268 -> Score Card | F132: ='Translation '!A274 -> % saving based on input | G132: =CONCATENATE('Translation '!A275," ",H86) -> Energy Saving 0 | H132: ='Translation '!A276 -> % Energy Consumption by system | I132: Score Card Score | L132: ='Translation '!A310 -> Month | M132: ='Translation '!A244 -> Electricity | N132: ='Translation '!A245 -> Natural Gas | O132: ='Translation '!A246 -> Steam | P132: ='Translation '!A247 -> Other Fuel | Q132: ='Translation '!A311 -> Production
B133: ='Translation '!A161 -> Combined Heat and Power (Cogeneration) | D133: ='Energy Saving Opportunities'!G17 -> 0 | E133: =IF(AND(CHP!N69>D123,CHP!N69<=E123),List!$A$64,IF(AND(CHP!N69>D124,CHP!N69<=E124),List!$A$65,IF(CHP!N69>D125,List!$A$66,D133))) -> 0 | F133: =IF(OR(ISBLANK(E133),E133=List!$A$67,E133=0),0,VLOOKUP(B133,$H$109:$K$120,MATCH(E133,$H$109:$K$109,0),FALSE)) -> 0 | G133: =IF(OR(ISBLANK('Energy Saving Opportunities'!G17),'Energy Saving Opportunities'!G17=List!$A$67),0,IF(J72>0,J72*F133,J88*F133)) -> 0 | H133: =Results!C188/'NAICS Data-Base'!$Q$74 ->  | I133: =CHP!N69 -> 0 | L133: ='Translation '!A102 -> January | M133: ='Energy & Production '!B20*'Energy & Production '!$B$76*$G$64 -> 0 | N133: ='Energy & Production '!D20*$G$65 -> 0 | O133: ='Energy & Production '!F20*$G$66 -> 0 | P133: ='Energy & Production '!H20*$G$67 -> 0 | Q133: ='Energy & Production '!J20+'Energy & Production '!K20+'Energy & Production '!L20 -> 0
B134: ='Translation '!A162 -> Compressed Air | D134: ='Energy Saving Opportunities'!G18 -> 0 | E134: =IF(AND('Compressed Air'!K51>D111,'Compressed Air'!K51<=E111),List!$A$64,IF(AND('Compressed Air'!K51>D112,'Compressed Air'!K51<=E112),List!$A$65,IF('Compressed Air'!K51>D113,List!$A$66,D134))) -> 0 | F134: =IF(OR(ISBLANK(E134),E134=List!$A$67,E134=0),0,VLOOKUP(B134,$H$109:$K$120,MATCH(E134,$H$109:$K$109,0),FALSE)) -> 0 | G134: =IF(OR(ISBLANK('Energy Saving Opportunities'!G18),'Energy Saving Opportunities'!G18=List!$A$67),0,IF(J73>0,J73*F134,J89*F134)) -> 0 | H134: =Results!C189/'NAICS Data-Base'!$Q$74 ->  | I134: ='Compressed Air'!K51 -> 0 | L134: ='Translation '!A103 -> February | M134: ='Energy & Production '!B21*'Energy & Production '!$B$76*$G$64 -> 0 | N134: ='Energy & Production '!D21*$G$65 -> 0 | O134: ='Energy & Production '!F21*$G$66 -> 0 | P134: ='Energy & Production '!H21*$G$67 -> 0 | Q134: ='Energy & Production '!J21+'Energy & Production '!K21+'Energy & Production '!L21 -> 0
B135: ='Translation '!A163 -> Electrochemical Processes | D135: ='Energy Saving Opportunities'!G19 -> 0 | E135: =IF(AND(CHP!N71>0,CHP!N71<=40),List!$A$64,IF(AND(CHP!N71>40,CHP!N71<=80),List!$A$65,IF(CHP!N71>80,List!$A$66,D135))) -> 0 | F135: =IF(OR(ISBLANK(E135),E135=List!$A$67,E135=0),0,VLOOKUP(B135,$H$109:$K$120,MATCH(E135,$H$109:$K$109,0),FALSE)) -> 0 | G135: =IF(OR(ISBLANK('Energy Saving Opportunities'!G19),'Energy Saving Opportunities'!G19=List!$A$67),0,IF(J74>0,J74*F135,J90*F135)) -> 0 | H135: =Results!C190/'NAICS Data-Base'!$Q$74 ->  | L135: ='Translation '!A104 -> March | M135: ='Energy & Production '!B22*'Energy & Production '!$B$76*$G$64 -> 0 | N135: ='Energy & Production '!D22*$G$65 -> 0 | O135: ='Energy & Production '!F22*$G$66 -> 0 | P135: ='Energy & Production '!H22*$G$67 -> 0 | Q135: ='Energy & Production '!J22+'Energy & Production '!K22+'Energy & Production '!L22 -> 0
B136: ='Translation '!A164 -> Fans and Blowers | D136: ='Energy Saving Opportunities'!G20 -> 0 | E136: =IF(AND(CHP!N72>0,CHP!N72<=40),List!$A$64,IF(AND(CHP!N72>40,CHP!N72<=80),List!$A$65,IF(CHP!N72>80,List!$A$66,D136))) -> 0 | F136: =IF(OR(ISBLANK(E136),E136=List!$A$67,E136=0),0,VLOOKUP(B136,$H$109:$K$120,MATCH(E136,$H$109:$K$109,0),FALSE)) -> 0 | G136: =IF(OR(ISBLANK('Energy Saving Opportunities'!G20),'Energy Saving Opportunities'!G20=List!$A$67),0,IF(J75>0,J75*F136,J91*F136)) -> 0 | H136: =Results!C191/'NAICS Data-Base'!$Q$74 ->  | L136: ='Translation '!A105 -> April | M136: ='Energy & Production '!B23*'Energy & Production '!$B$76*$G$64 -> 0 | N136: ='Energy & Production '!D23*$G$65 -> 0 | O136: ='Energy & Production '!F23*$G$66 -> 0 | P136: ='Energy & Production '!H23*$G$67 -> 0 | Q136: ='Energy & Production '!J23+'Energy & Production '!K23+'Energy & Production '!L23 -> 0
B137: ='Translation '!A165 -> Industrial Facilities (Lighting) | D137: ='Energy Saving Opportunities'!G21 -> 0 | E137: =IF(AND(CHP!N73>0,CHP!N73<=40),List!$A$64,IF(AND(CHP!N73>40,CHP!N73<=80),List!$A$65,IF(CHP!N73>80,List!$A$66,D137))) -> 0 | F137: =IF(OR(ISBLANK(E137),E137=List!$A$67,E137=0),0,VLOOKUP(B137,$H$109:$K$120,MATCH(E137,$H$109:$K$109,0),FALSE)) -> 0 | G137: =IF(OR(ISBLANK('Energy Saving Opportunities'!G21),'Energy Saving Opportunities'!G21=List!$A$67),0,IF(J76>0,J76*F137,J92*F137)) -> 0 | H137: =Results!C192/'NAICS Data-Base'!$Q$74 ->  | L137: ='Translation '!A106 -> May | M137: ='Energy & Production '!B24*'Energy & Production '!$B$76*$G$64 -> 0 | N137: ='Energy & Production '!D24*$G$65 -> 0 | O137: ='Energy & Production '!F24*$G$66 -> 0 | P137: ='Energy & Production '!H24*$G$67 -> 0 | Q137: ='Energy & Production '!J24+'Energy & Production '!K24+'Energy & Production '!L24 -> 0
B138: ='Translation '!A166 -> Industrial Facilities (HVAC) | D138: ='Energy Saving Opportunities'!G22 -> 0 | E138: =IF(AND(CHP!N74>0,CHP!N74<=40),List!$A$64,IF(AND(CHP!N74>40,CHP!N74<=80),List!$A$65,IF(CHP!N74>80,List!$A$66,D138))) -> 0 | F138: =IF(OR(ISBLANK(E138),E138=List!$A$67,E138=0),0,VLOOKUP(B138,$H$109:$K$120,MATCH(E138,$H$109:$K$109,0),FALSE)) -> 0 | G138: =IF(OR(ISBLANK('Energy Saving Opportunities'!G22),'Energy Saving Opportunities'!G22=List!$A$67),0,IF(J77>0,J77*F138,J93*F138)) -> 0 | H138: =Results!C193/'NAICS Data-Base'!$Q$74 ->  | L138: ='Translation '!A107 -> June | M138: ='Energy & Production '!B25*'Energy & Production '!$B$76*$G$64 -> 0 | N138: ='Energy & Production '!D25*$G$65 -> 0 | O138: ='Energy & Production '!F25*$G$66 -> 0 | P138: ='Energy & Production '!H25*$G$67 -> 0 | Q138: ='Energy & Production '!J25+'Energy & Production '!K25+'Energy & Production '!L25 -> 0
B139: ='Translation '!A167 -> Material Handling | D139: ='Energy Saving Opportunities'!G23 -> 0 | E139: =IF(AND(CHP!N75>0,CHP!N75<=40),List!$A$64,IF(AND(CHP!N75>40,CHP!N75<=80),List!$A$65,IF(CHP!N75>80,List!$A$66,D139))) -> 0 | F139: =IF(OR(ISBLANK(E139),E139=List!$A$67,E139=0),0,VLOOKUP(B139,$H$109:$K$120,MATCH(E139,$H$109:$K$109,0),FALSE)) -> 0 | G139: =IF(OR(ISBLANK('Energy Saving Opportunities'!G23),'Energy Saving Opportunities'!G23=List!$A$67),0,IF(J78>0,J78*F139,J94*F139)) -> 0 | H139: =Results!C194/'NAICS Data-Base'!$Q$74 ->  | L139: ='Translation '!A108 -> July | M139: ='Energy & Production '!B26*'Energy & Production '!$B$76*$G$64 -> 0 | N139: ='Energy & Production '!D26*$G$65 -> 0 | O139: ='Energy & Production '!F26*$G$66 -> 0 | P139: ='Energy & Production '!H26*$G$67 -> 0 | Q139: ='Energy & Production '!J26+'Energy & Production '!K26+'Energy & Production '!L26 -> 0
B140: ='Translation '!A168 -> Material Processing | D140: ='Energy Saving Opportunities'!G24 -> 0 | E140: =IF(AND(CHP!N76>0,CHP!N76<=40),List!$A$64,IF(AND(CHP!N76>40,CHP!N76<=80),List!$A$65,IF(CHP!N76>80,List!$A$66,D140))) -> 0 | F140: =IF(OR(ISBLANK(E140),E140=List!$A$67,E140=0),0,VLOOKUP(B140,$H$109:$K$120,MATCH(E140,$H$109:$K$109,0),FALSE)) -> 0 | G140: =IF(OR(ISBLANK('Energy Saving Opportunities'!G24),'Energy Saving Opportunities'!G24=List!$A$67),0,IF(J79>0,J79*F140,J95*F140)) -> 0 | H140: =Results!C195/'NAICS Data-Base'!$Q$74 ->  | L140: ='Translation '!A109 -> August | M140: ='Energy & Production '!B27*'Energy & Production '!$B$76*$G$64 -> 0 | N140: ='Energy & Production '!D27*$G$65 -> 0 | O140: ='Energy & Production '!F27*$G$66 -> 0 | P140: ='Energy & Production '!H27*$G$67 -> 0 | Q140: ='Energy & Production '!J27+'Energy & Production '!K27+'Energy & Production '!L27 -> 0
B141: ='Translation '!A169 -> Process Cooling and Refrigeration | D141: ='Energy Saving Opportunities'!G25 -> 0 | E141: =IF(AND('Process Cooling & Refrigeration'!K108>D114,'Process Cooling & Refrigeration'!K108<=E114),List!$A$64,IF(AND('Process Cooling & Refrigeration'!K108>D115,'Process Cooling & Refrigeration'!K108<=E115),List!$A$65,IF('Process Cooling & Refrigeration'!K108>D116,List!$A$66,D141))) -> 0 | F141: =IF(OR(ISBLANK(E141),E141=List!$A$67,E141=0),0,VLOOKUP(B141,$H$109:$K$120,MATCH(E141,$H$109:$K$109,0),FALSE)) -> 0 | G141: =IF(OR(ISBLANK('Energy Saving Opportunities'!G25),'Energy Saving Opportunities'!G25=List!$A$67),0,IF(J80>0,J80*F141,J96*F141)) -> 0 | H141: =Results!C196/'NAICS Data-Base'!$Q$74 ->  | I141: ='Process Cooling & Refrigeration'!K108 -> 0 | L141: ='Translation '!A110 -> September | M141: ='Energy & Production '!B28*'Energy & Production '!$B$76*$G$64 -> 0 | N141: ='Energy & Production '!D28*$G$65 -> 0 | O141: ='Energy & Production '!F28*$G$66 -> 0 | P141: ='Energy & Production '!H28*$G$67 -> 0 | Q141: ='Energy & Production '!J28+'Energy & Production '!K28+'Energy & Production '!L28 -> 0
B142: ='Translation '!A170 -> Process Heating | D142: ='Energy Saving Opportunities'!G26 -> 0 | E142: =IF(AND('Process Heating'!F47>0,'Process Heating'!F47<=25),List!$A$64,IF(AND('Process Heating'!F47>25,'Process Heating'!F47<=50),List!$A$65,IF('Process Heating'!F47>50,List!$A$66,D142))) -> 0 | F142: =IF(OR(ISBLANK(E142),E142=List!$A$67,E142=0),0,VLOOKUP('Basic Info '!B6,M109:P125,MATCH(E142,'NAICS Data-Base'!M109:P109,0),FALSE)) -> 0 | G142: =IF(OR(ISBLANK('Energy Saving Opportunities'!G26),'Energy Saving Opportunities'!G26=List!$A$67),0,IF(J81>0,J81*F142,J97*F142)) -> 0 | H142: =Results!C197/'NAICS Data-Base'!$Q$74 ->  | I142: ='Process Heating'!F47 -> 0 | L142: ='Translation '!A111 -> October | M142: ='Energy & Production '!B29*'Energy & Production '!$B$76*$G$64 -> 0 | N142: ='Energy & Production '!D29*$G$65 -> 0 | O142: ='Energy & Production '!F29*$G$66 -> 0 | P142: ='Energy & Production '!H29*$G$67 -> 0 | Q142: ='Energy & Production '!J29+'Energy & Production '!K29+'Energy & Production '!L29 -> 0
B143: ='Translation '!A171 -> Pumps | D143: ='Energy Saving Opportunities'!G27 -> 0 | E143: =IF(AND(Pumps!O28>0,Pumps!O28<=40),List!$A$64,IF(AND(Pumps!O28>40,Pumps!O28<=80),List!$A$65,IF(Pumps!O28>80,List!$A$66,D143))) -> 0 | F143: =IF(OR(ISBLANK(E143),E143=List!$A$67,E143=0),0,VLOOKUP(B143,$H$109:$K$120,MATCH(E143,$H$109:$K$109,0),FALSE)) -> 0 | G143: =IF(OR(ISBLANK('Energy Saving Opportunities'!G27),'Energy Saving Opportunities'!G27=List!$A$67),0,IF(J82>0,J82*F143,J98*F143)) -> 0 | H143: =Results!C198/'NAICS Data-Base'!$Q$74 ->  | I143: =Pumps!O28 -> 0 | L143: ='Translation '!A112 -> November | M143: ='Energy & Production '!B30*'Energy & Production '!$B$76*$G$64 -> 0 | N143: ='Energy & Production '!D30*$G$65 -> 0 | O143: ='Energy & Production '!F30*$G$66 -> 0 | P143: ='Energy & Production '!H30*$G$67 -> 0 | Q143: ='Energy & Production '!J30+'Energy & Production '!K30+'Energy & Production '!L30 -> 0
B144: ='Translation '!A172 -> Steam Generation Equipment | D144: ='Energy Saving Opportunities'!G28 -> 0 | E144: =IF(AND('Steam Generation Equipment'!N85>0,'Steam Generation Equipment'!N85<=50),List!$A$64,IF(AND('Steam Generation Equipment'!N85>50,'Steam Generation Equipment'!N85<=80),List!$A$65,IF('Steam Generation Equipment'!N85>80,List!$A$66,D144))) -> 0 | F144: =IF(OR(ISBLANK(E144),E144=List!$A$67,E144=0),0,VLOOKUP(B144,$H$109:$K$120,MATCH(E144,$H$109:$K$109,0),FALSE)) -> 0 | G144: =IF(OR(ISBLANK('Energy Saving Opportunities'!G28),'Energy Saving Opportunities'!G28=List!$A$67),0,IF(J83>0,J83*F144,J99*F144)) -> 0 | H144: =Results!C199/'NAICS Data-Base'!$Q$74 ->  | I144: ='Steam Generation Equipment'!N85 -> 0 | L144: ='Translation '!A113 -> December | M144: ='Energy & Production '!B31*'Energy & Production '!$B$76*$G$64 -> 0 | N144: ='Energy & Production '!D31*$G$65 -> 0 | O144: ='Energy & Production '!F31*$G$66 -> 0 | P144: ='Energy & Production '!H31*$G$67 -> 0 | Q144: ='Energy & Production '!J31+'Energy & Production '!K31+'Energy & Production '!L31 -> 0
B145: ='Translation '!A277 -> Miscellaneous | F145: 0 | H145: =Q77 ->  | M145: =SUM(M133:M144) -> 0 | N145: =SUM(N133:N144) -> 0 | O145: =SUM(O133:O144) -> 0 | P145: =SUM(P133:P144) -> 0 | Q145: =ROUND(IF(SUM(Q133:Q144)>0,SUM(Q133:Q144),SUM('Energy & Production '!G56:I59)),0) -> 0
G146: =SUM(G133:G145) -> 0
B149: ='Translation '!A153 -> System | C149: ='Translation '!A240 -> High | G149: ='Translation '!A241 -> Medium | K149: ='Translation '!A242 -> Low
B150: ='Translation '!A161 -> Combined Heat and Power (Cogeneration) | C150: ='Translation '!A278 -> 1) Consider use of heat from diesel generator engine (cooling water and exhaust gases) for steam generation or in heating processes. 2) Consider use of heat from gas turbine exhaust gases for steam generation or in heating processes. 3) Develop and implement a preventive and predictive maintenance program for the system. 4) Maximize use of HRSG to meet the plant steam requirements, minimize load on boilers outside the co-gen system | G150: ='Translation '!A279 -> 1) Consider use of HRSG with a duct burner (if not used currently) for gas turbine based on-site power generation system 2) Investigate possibility of selling excess steam or/and power if there is a potential customer close by. 3) Minimize flue gases temperature from HRSG by recovering heat from HRSG flue gases. 4) Use system optimization tools to minimize combined cost of steam and electric power for the plant | K150: ='Translation '!A280 -> 1) Analyze economics of use of additional CHP capacity to reduce peak power demand for the plant. 2) Consider evaporative cooling for turbine combustion air using HRSG exhaust gases or other source of waste heat. 3) Consider use of turbine exhaust gases for process heating equipment (process heaters, furnaces etc.)
B155: ='Translation '!A162 -> Compressed Air | C155: ='Translation '!A281 -> 1) Eliminate inappropriate uses of compressed air. 2) Implement air leak management program. 3) Perform a detailed Compressed Air System Assessment at your site. 4) Reduce compressor operating pressure with or without controls. | G155: ='Translation '!A282 -> 1) Implement the recommendations of the Compressed Air System Assessment at your site. 2) Install and operate equipment (including storage) that matches shifting demands 3) Install or upgrade system controls 4) Use the DOE AirMaster+ software tool & other resources to verify energy saving opportunities 5) Install instrumentation to measure and trend compressed air cost indicators (kW/100 cfm). | K155: ='Translation '!A283 -> 1) Evaluate heat recovery with compressed air systems. 2) Monitor performance and document energy and cost savings on recently completed projects. 3) Replace inefficient cooling and drying equipment. 4) Install instrumentation to measure and trend compressed air cost indicators (kW/100 cfm)
B160: ='Translation '!A164 -> Fans and Blowers | C160: ='Translation '!A284 -> 1) Evaluate and reduce "system effect" through better inlet and outlet designs and duct sizing. 2) Improve O&M practices such as belt tightening, cleaning fans and changing filters regularly. 3) Minimize leakage and perform tightness tests, if needed. 4) Perform a detailed Fan and Blower System Assessment at your site. 5) Replace dampers, variable inlet vanes with electronic variable speed drives for meeting variable loads. 6) Use the DOE FSAT software tool & other resources to identify and quantify energy saving opportunities | G160: ='Translation '!A285 -> 1)Implement the recommendations of the Fans / Blowers System Assessment at your site 2)Reduce and control fan speed by using variable speed drives 3)Reduce fan oversizing by matching demand with proper fan type and size (for example: Use of axial fan with controllable pitch blades) 4)Replace standard V-belts with cogged V-belts. 5)Use the DOE FSAT software tool & other resources to verify energy saving opportunities | K160: ='Translation '!A286 -> 1) Evaluate use of a back-pressure turbine drive instead of an electric motor, if applicable 2) Evaluate use of multiple smaller fans (operating close to their Best Efficiency Point) than one large fan 3) Install instrumentation to measure and trend fan performance (efficiency) periodically 4) Monitor performance and document energy and cost savings on recently completed projects 5) Replace electric motor with premium efficiency model 6) Replace fan / blower with more efficient model
B167: ='Translation '!A165 -> Industrial Facilities (Lighting) | C167: ='Translation '!A287 -> 1)Evaluate lighting upgrades that includes implementing group relamp & maintenance programs. 2)Install occupancy sensors. 3)Perform a detailed Lighting Assessment at your site to identify and quantify energy saving opportunities | G167: ='Translation '!A288 -> 1) Implement lighting control systems and zone areas based on task lighting 2) Implement the recommendations of the Lighting Assessment at your site | K167: ='Translation '!A289 -> 1) Evaluate incorporating daylighting, skylights, dimming, etc. 2) Implement a central computerized Energy Management System to control Lights. 3) Monitor performance and document energy and cost savings on recently completed projects
B171: ='Translation '!A166 -> Industrial Facilities (HVAC) | C171: ='Translation '!A290 -> 1) Implement night setback and weekend/vacation temperature / ventilation controls 2) Perform a detailed HVAC System Assessment at your site to identify and quantify energy saving opportunities 3) Shut-off steam / chilled water flows to air handlers that are not needed or are out of service | G171: ='Translation '!A291 -> 1) Implement the recommendations of the HVAC System Assessment at your site. 2) Install dry-bulb and/or enthalpy economizers. 3) Optimize the operation of air handling units - start/stop. 4) Rebalance the air-side system to reduce overall supply or meet changed zone demands | K171: ='Translation '!A292 -> 1) Implement a central computerized Energy Management System to control HVAC system 2) Implement demand controlled ventilation (CO2 sensor-based) 3) Install instrumentation to measure and trend efficiency (Watts per sq. ft.) periodically. 4) Monitor performance and document energy and cost savings on recently completed projects. 5) Replace air conditioning or air handling unit with a properly sized higher efficiency unit.
B175: ='Translation '!A169 -> Process Cooling and Refrigeration | C175: ='Translation '!A293 -> 1) Ensure proper refrigerant charge and eliminate non-condensable from the system. 2) Evaluate use of variable speed drives on chilled water pumps, cooling tower fans, etc. 3) Float head pressure to minimum possible. 4) Implement chilled water temperature and condenser water temperature reset. 5) Perform a detailed Refrigeration / Process Cooling System Assessment at your site. 6) Use the DOE CWSAT software tool & other resources to identify and quantify energy saving opportunities | G175: ='Translation '!A294 -> 1)Eliminate fouling on heat exchanger tubes 2)Evaluate use of an economizer in the system (cooling tower water vs. chilled water) 3)Implement a predictive maintenance program that correlates performance with fluid contaminants in the system 4)Implement the recommendations of the Refrigeration / Process Cooling System Assessment at your site 5)Incorporate optimized chiller sequencing and controls 6)Use the DOE CWSAT software tool & other resources to verify energy saving opportunities | K175: ='Translation '!A295 -> 1)Convert air-cooled chillers to water-cooled units 2)Evaluate chiller replacement (type, size) for a more efficient overall system or plant efficiency 3)Evaluate heat recovery from chiller systems 4)Evaluate use of thermally driven (absorption, engine, steam-turbine driven) chiller systems to balance steam and electric demand 5)Install instrumentation to measure and trend individual compressor and overall system performance (efficiency - kW/ton) periodically 6)Monitor performance and document energy and cost savings on recently completed projects
B181: ='Translation '!A170 -> Process Heating | C181: ='Translation '!A296 -> 1)Conduct a detail energy assessment for your heating equipment using tools such as Process Heating Survey and Assessment Tool (PHAST) to identify energy saving opportunities. 2)Keep heat transfer surfaces clean by eliminating build up of soot, scale or other material. 3)Measure oxygen (O2) and Carbon Monoxide CO or combustible in flue gases and take actions to reduce O2 in flue gases while maintaining near zero value for CO or combustibles. In certain cases safety requirements may require to have high values of O2 in flue gases. Consult your equipment supplier before making any changes. 4)Operate the furnace at or close to design load by proper furnace scheduling and loading- avoid delays, waits, cooling between operations etc. as much a possible. 5)Reduce or eliminate openings in the furnace to reduce radiation heat losses. Repair cracks and damaged insulation in furnace walls, doors etc. Keep the door opening to minimum during operations. | G181: ='Translation '!A297 -> 1)Consider use of combustion air preheating by recovering heat from furnace flue gases. Evaluate use of recuperator, regenerators or regenerative burners. 2)Consider use of heat from furnace flue gases to heat charge material, fixtures etc. 3)Insulate water or air cooled parts used in the furnaces. Examples are: rolls, supports etc. used in furnaces. 4)Maintain proper (balanced or slightly positive) pressure in furnaces using proper control to avoid air leakage in the furnace. 5)Reduce weight of fixtures, trays and other material handling weight and use 'hot-return' as much as possible. | K181: ='Translation '!A298 -> 1)Consider use of alternate source of heat such as switching from steam heating to direct fired heating for processes where possible. Consider safety and process requirements before making changes. 2)Consider use of heat from furnace flue gases in lower temperature processes, for steam generation, for water heating or air heating for the plant or other applications. 3)Consider use of oxygen enriched air or oxy-fuel fired burners for high temperature processes. 4)Design and build or rebuild furnaces and other heated components with adequate insulation to reduce wall heat losses
B189: ='Translation '!A171 -> Pumps | C189: ='Translation '!A299 -> 1)Evaluate the use of adjustable speed drives on pumps that have variable flow and are being throttled. 2)Explore the potential for using a fixed speed pump to supply base load and a smaller, properly sized fixed speed pump for trim. 3)Perform a detailed Pumping System Assessment at your site 4)Turn pumps ON and OFF to match needs. 5)Use the DOE PSAT software tool & other resources to identify and quantify energy saving opportunities. | G189: ='Translation '!A300 -> 1)Identify the true pumping need (flow rate and head required) and ensure pumps are operating at their best efficiency point 2)Implement the recommendations of the Pumping System Assessment at your site 3)Use the DOE PSAT software tool & other resources to verify energy saving opportunities 4)Install instrumentation to measure and trend pump performance (efficiency) periodically | K189: ='Translation '!A301 -> 1)Monitor performance and document energy and cost savings on recently completed projects 2)Purchase premium efficiency motors and specify energy efficiency guidelines for new pump purchases and/or retrofits 3)Install instrumentation to measure and trend pump performance (efficiency) periodically
B195: ='Translation '!A172 -> Steam Generation Equipment | C195: ='Translation '!A302 -> 1)Implement a Best Practices based leak management program 2)Improve boiler efficiency by proper air/fuel control 3)Improve boiler efficiency by proper blowdown management 4)Improve condensate recovery 5)Improve thermal insulation of the overall steam system 6)Perform a detailed Steam Energy System Assessment at your site. 7)Use the DOE Steam Best Practices Tools to identify and quantify energy saving opportunities. 8)Implement a Best Practices based steam trap maintenance program | G195: ='Translation '!A303 -> 1)Implement the recommendations of the Steam Energy System Assessment at your site 2)Improve boiler efficiency by proper air/fuel control, blowdown management, etc. 3)Use the DOE Steam Best Practices Tools to re-verify energy saving opportunities & prioritize 4)Implement a Best Practices based steam trap maintenance program 5)Install instrumentation to measure and trend steam cost indicators ($/Mlb) | K195: ='Translation '!A304 -> 1)Evaluate the use of back pressure steam turbines in lieu of pressure reducing stations 2)Implement heat recovery opportunities viz. economizers, combustion air preheaters, etc. 3)Install instrumentation to measure and trend steam cost indicators ($/Mlb) 4)Monitor performance and document energy and cost savings on recently completed projects.
B204: Total Energy | C204: =Results!E22 -> 0 | D204: =J86 -> 0 | E204: =C204*VLOOKUP(D204,Conversions!$D$3:$G$16,4,FALSE) ->  | F204: MMBTU
B205: Energy Saved | C205: =G146 -> 0 | D205: =J86 -> 0 | E205: =C205*VLOOKUP(D205,Conversions!$D$3:$G$16,4,FALSE) ->  | F205: MMBTU
B206: Potential Annual CO2 Emissions Savings
B207: Fuel Type | C207: % Energy Source by Fuel Type | D207: % Energy Source Energy Savings by Fuel Type | E207: Total Energy by Fuel Type (MMBTU) | F207: Energy Saved by fuel type (MMBTU) | G207: Avoided CO2 Emissions Factor (Metric Ton CO2/MMBtu) | H207: Total Metric Ton CO2 | I207: Metric Ton Saved CO2
B208: Natural Gas | C208: =IFERROR(Results!E19/Results!E22,"") ->  | D208: =IFERROR(SUM(Z88:Z99)/C205,"") ->  | E208: =IFERROR($E$204*C208,"") ->  | F208: =IFERROR($E$205*D208,"") ->  | G208: 0.05306 | H208: =IFERROR(G208*E208,"") ->  | I208: =IFERROR(F208*G208,"") -> 
B209: Electricity | C209: =IFERROR(Results!E18/Results!E22,"") ->  | D209: =IFERROR(SUM(Y88:Y99)/C205,"") ->  | E209: =IFERROR($E$204*C209,"") ->  | F209: =IFERROR($E$205*D209,"") ->  | G209: 0.05315233231 | H209: =IFERROR(G209*E209,"") ->  | I209: =IFERROR(F209*G209,"") -> 
B210: Coal | C210: =IF('Energy & Production '!$F$10='Translation '!$A$858,Results!E21/Results!E22,"0") -> 0 | D210: =IFERROR(IF('Energy & Production '!$F$10='Translation '!$A$858,SUM(AB88:AB99)/C205,"0"),"") -> 0 | E210: =IFERROR($E$204*C210,"") ->  | F210: =IFERROR($E$205*D210,"") ->  | G210: 0.09398 | H210: =IFERROR(G210*E210,"") ->  | I210: =IFERROR(F210*G210,"") -> 
B213: Energy Consumption Vs Production
B214: Monthly Production | C214: Energy Consumption
B215: ='Energy & Production '!J20+'Energy & Production '!K20+'Energy & Production '!L20 -> 0 | C215: =IFERROR((('Energy & Production '!B20*'NAICS Data-Base'!$G$64)+('Energy & Production '!D20*'NAICS Data-Base'!$G$65)+('Energy & Production '!F20*'NAICS Data-Base'!$G$66)+('Energy & Production '!H20*'NAICS Data-Base'!$G$67)),"") -> 0
B216: ='Energy & Production '!J21+'Energy & Production '!K21+'Energy & Production '!L21 -> 0 | C216: =IFERROR((('Energy & Production '!B21*'NAICS Data-Base'!$G$64)+('Energy & Production '!D21*'NAICS Data-Base'!$G$65)+('Energy & Production '!F21*'NAICS Data-Base'!$G$66)+('Energy & Production '!H21*'NAICS Data-Base'!$G$67)),"") -> 0
B217: ='Energy & Production '!J22+'Energy & Production '!K22+'Energy & Production '!L22 -> 0 | C217: =IFERROR((('Energy & Production '!B22*'NAICS Data-Base'!$G$64)+('Energy & Production '!D22*'NAICS Data-Base'!$G$65)+('Energy & Production '!F22*'NAICS Data-Base'!$G$66)+('Energy & Production '!H22*'NAICS Data-Base'!$G$67)),"") -> 0
B218: ='Energy & Production '!J23+'Energy & Production '!K23+'Energy & Production '!L23 -> 0 | C218: =IFERROR((('Energy & Production '!B23*'NAICS Data-Base'!$G$64)+('Energy & Production '!D23*'NAICS Data-Base'!$G$65)+('Energy & Production '!F23*'NAICS Data-Base'!$G$66)+('Energy & Production '!H23*'NAICS Data-Base'!$G$67)),"") -> 0
B219: ='Energy & Production '!J24+'Energy & Production '!K24+'Energy & Production '!L24 -> 0 | C219: =IFERROR((('Energy & Production '!B24*'NAICS Data-Base'!$G$64)+('Energy & Production '!D24*'NAICS Data-Base'!$G$65)+('Energy & Production '!F24*'NAICS Data-Base'!$G$66)+('Energy & Production '!H24*'NAICS Data-Base'!$G$67)),"") -> 0
B220: ='Energy & Production '!J25+'Energy & Production '!K25+'Energy & Production '!L25 -> 0 | C220: =IFERROR((('Energy & Production '!B25*'NAICS Data-Base'!$G$64)+('Energy & Production '!D25*'NAICS Data-Base'!$G$65)+('Energy & Production '!F25*'NAICS Data-Base'!$G$66)+('Energy & Production '!H25*'NAICS Data-Base'!$G$67)),"") -> 0
B221: ='Energy & Production '!J26+'Energy & Production '!K26+'Energy & Production '!L26 -> 0 | C221: =IFERROR((('Energy & Production '!B26*'NAICS Data-Base'!$G$64)+('Energy & Production '!D26*'NAICS Data-Base'!$G$65)+('Energy & Production '!F26*'NAICS Data-Base'!$G$66)+('Energy & Production '!H26*'NAICS Data-Base'!$G$67)),"") -> 0
B222: ='Energy & Production '!J27+'Energy & Production '!K27+'Energy & Production '!L27 -> 0 | C222: =IFERROR((('Energy & Production '!B27*'NAICS Data-Base'!$G$64)+('Energy & Production '!D27*'NAICS Data-Base'!$G$65)+('Energy & Production '!F27*'NAICS Data-Base'!$G$66)+('Energy & Production '!H27*'NAICS Data-Base'!$G$67)),"") -> 0
B223: ='Energy & Production '!J28+'Energy & Production '!K28+'Energy & Production '!L28 -> 0 | C223: =IFERROR((('Energy & Production '!B28*'NAICS Data-Base'!$G$64)+('Energy & Production '!D28*'NAICS Data-Base'!$G$65)+('Energy & Production '!F28*'NAICS Data-Base'!$G$66)+('Energy & Production '!H28*'NAICS Data-Base'!$G$67)),"") -> 0
B224: ='Energy & Production '!J29+'Energy & Production '!K29+'Energy & Production '!L29 -> 0 | C224: =IFERROR((('Energy & Production '!B29*'NAICS Data-Base'!$G$64)+('Energy & Production '!D29*'NAICS Data-Base'!$G$65)+('Energy & Production '!F29*'NAICS Data-Base'!$G$66)+('Energy & Production '!H29*'NAICS Data-Base'!$G$67)),"") -> 0
B225: ='Energy & Production '!J30+'Energy & Production '!K30+'Energy & Production '!L30 -> 0 | C225: =IFERROR((('Energy & Production '!B30*'NAICS Data-Base'!$G$64)+('Energy & Production '!D30*'NAICS Data-Base'!$G$65)+('Energy & Production '!F30*'NAICS Data-Base'!$G$66)+('Energy & Production '!H30*'NAICS Data-Base'!$G$67)),"") -> 0
B226: ='Energy & Production '!J31+'Energy & Production '!K31+'Energy & Production '!L31 -> 0 | C226: =IFERROR((('Energy & Production '!B31*'NAICS Data-Base'!$G$64)+('Energy & Production '!D31*'NAICS Data-Base'!$G$65)+('Energy & Production '!F31*'NAICS Data-Base'!$G$66)+('Energy & Production '!H31*'NAICS Data-Base'!$G$67)),"") -> 0
B240: Dynamic Charts
B241: =$B$88 -> Combined Heat and Power (Cogeneration) | C241: =$B$88 -> Combined Heat and Power (Cogeneration)
B242: =$B$89 -> Compressed Air | C242: =$B$89 -> Compressed Air
B243: =$B$90 -> Electrochemical Processes | C243: =$B$90 -> Electrochemical Processes | F243: # of systems
B244: =$B$91 -> Fans and Blowers | C244: =$B$91 -> Fans and Blowers | E244: Electricity | F244: =IF(ROW('NAICS Data-Base'!$B$253)-ROW('NAICS Data-Base'!$B$240)-COUNTIF('NAICS Data-Base'!C255:C267,"=0")=0,2,ROW('NAICS Data-Base'!$B$253)-ROW('NAICS Data-Base'!$B$240)-COUNTIF('NAICS Data-Base'!C255:C267,"=0")) -> 2
B245: =$B$92 -> Industrial Facilities (Lighting) | C245: =$B$92 -> Industrial Facilities (Lighting) | E245: NG | F245: =IF(ROW('NAICS Data-Base'!$B$253)-ROW('NAICS Data-Base'!$B$240)-COUNTIF('NAICS Data-Base'!C269:C281,"=0")=0,2,ROW('NAICS Data-Base'!$B$253)-ROW('NAICS Data-Base'!$B$240)-COUNTIF('NAICS Data-Base'!C269:C281,"=0")) -> 2
B246: =$B$93 -> Industrial Facilities (HVAC) | C246: =$B$93 -> Industrial Facilities (HVAC) | E246: Steam | F246: =IF(ROW('NAICS Data-Base'!$B$253)-ROW('NAICS Data-Base'!$B$240)-COUNTIF('NAICS Data-Base'!C283:C295,"=0")=0,2,ROW('NAICS Data-Base'!$B$253)-ROW('NAICS Data-Base'!$B$240)-COUNTIF('NAICS Data-Base'!C283:C295,"=0")) -> 2
B247: =$B$94 -> Material Handling | C247: =$B$94 -> Material Handling | E247: Other Fuel | F247: =IF(ROW('NAICS Data-Base'!$B$253)-ROW('NAICS Data-Base'!$B$240)-COUNTIF('NAICS Data-Base'!C297:C309,"=0")=0,2,ROW('NAICS Data-Base'!$B$253)-ROW('NAICS Data-Base'!$B$240)-COUNTIF('NAICS Data-Base'!C297:C309,"=0")) -> 2
B248: =$B$95 -> Material Processing | C248: =$B$95 -> Material Processing
B249: =$B$96 -> Process Cooling and Refrigeration | C249: =$B$96 -> Process Cooling and Refrigeration | E249: Electricity
B250: =$B$97 -> Process Heating | C250: =$B$97 -> Process Heating | E250: Natural Gas
B251: =$B$98 -> Pumps | C251: =$B$98 -> Pumps | E251: Steam
B252: =$B$99 -> Steam Generation Equipment | C252: =$B$99 -> Steam Generation Equipment | E252: ='Energy & Production '!F10 -> 0
B253: =$B$100 -> Oth | C253: Other Use
B254: Electricity | C254: Sorted by System | D254: Renamed | E254: Usage in Original Units | F254: Potential Savings in Original units
B255: =IF('NAICS Data-Base'!T88>0,$B241,"0") -> 0 | C255: =INDEX($B$255:$B$267,MATCH(D311,$B$311:$B$323,0)) -> 0 | D255: =IFERROR(VLOOKUP(C255,$B$241:$C$253,2,FALSE),"") ->  | E255: =IFERROR(VLOOKUP(C255,$B$88:$AL$100,29,FALSE),"") ->  | F255: =IFERROR(VLOOKUP(C255,$B$88:$AL$100,34,FALSE),"") -> 
B256: =IF('NAICS Data-Base'!T89>0,$B242,"0") -> 0 | C256: =INDEX($B$255:$B$267,MATCH(D312,$B$311:$B$323,0)) -> 0 | D256: =IFERROR(VLOOKUP(C256,$B$241:$C$253,2,FALSE),"") ->  | E256: =IFERROR(VLOOKUP(C256,$B$88:$AL$100,29,FALSE),"") ->  | F256: =IFERROR(VLOOKUP(C256,$B$88:$AL$100,34,FALSE),"") -> 
B257: =IF('NAICS Data-Base'!T90>0,$B243,"0") -> 0 | C257: 0
B258: =IF('NAICS Data-Base'!T91>0,$B244,"0") -> 0 | C258: 0
B259: =IF('NAICS Data-Base'!T92>0,$B245,"0") -> 0 | C259: 0
B260: =IF('NAICS Data-Base'!T93>0,$B246,"0") -> 0 | C260: 0
B261: =IF('NAICS Data-Base'!T94>0,$B247,"0") -> 0 | C261: 0
B262: =IF('NAICS Data-Base'!T95>0,$B248,"0") -> 0 | C262: 0
B263: =IF('NAICS Data-Base'!T96>0,$B249,"0") -> 0 | C263: 0
B264: =IF('NAICS Data-Base'!T97>0,$B250,"0") -> 0 | C264: 0
B265: =IF('NAICS Data-Base'!T98>0,$B251,"0") -> 0 | C265: 0 | F265: =IFERROR(VLOOKUP(C265,$B$88:$AL$100,34,FALSE),"") -> 
B266: =IF('NAICS Data-Base'!T99>0,$B252,"0") -> 0 | C266: 0
B267: =IF('NAICS Data-Base'!T100>0,$B253,"0") -> 0 | C267: 0
B268: NG | C268: Sorted by System | D268: Renamed | E268: Usage in Original Units | F268: Potential Savings in Original units
B269: =IF('NAICS Data-Base'!U88>0,$B241,0) -> 0 | C269: =INDEX($B$269:$B$281,MATCH(D325,$B$325:$B$337,0)) -> 0 | D269: =IFERROR(VLOOKUP(C269,$B$241:$C$253,2,FALSE),"") ->  | E269: =IFERROR(VLOOKUP(C269,$B$88:$AL$100,30,FALSE),"") ->  | F269: =IFERROR(VLOOKUP(C269,$B$88:$AL$100,35,FALSE),"") -> 
B270: =IF('NAICS Data-Base'!U89>0,$B242,0) -> 0 | C270: =INDEX($B$269:$B$281,MATCH(D326,$B$325:$B$337,0)) -> 0 | D270: =IFERROR(VLOOKUP(C270,$B$241:$C$253,2,FALSE),"") ->  | E270: =IFERROR(VLOOKUP(C270,$B$88:$AL$100,30,FALSE),"") ->  | F270: =IFERROR(VLOOKUP(C270,$B$88:$AL$100,35,FALSE),"") -> 
B271: =IF('NAICS Data-Base'!U90>0,$B243,0) -> 0 | C271: 0
... 105 more rows

Sheet Conversions (hidden)
D2: Input Units\ Output Units | F2: MBTU | G2: MMBTU | H2: kWh | I2: MWh | J2: GWh | K2: kJ | L2: MJ | M2: GJ | N2: TJ | O2: Therms | P2: DTh | Q2: kCal | R2: Gcal | S2: Tonne of Oil Equivalent | U2: Default Heating Values
B3: Energy Unit | D3: MBTU | E3: =CONCATENATE(B3,C3,D3) -> Energy UnitMBTU | F3: =G3*1/$G$3 -> 1 | G3: =G4/1000 -> 0.001 | H3: =G3*1/$G$5 -> 0.2930710387 | I3: =$G3*1/$G$6 -> 0.0002930710387 | J3: =$G3*1/$G$7 -> 2.930710387e-07 | K3: =$G3*1/$G$8 -> 1055.055875 | L3: =$G3*1/$G$9 -> 1.055055875 | M3: =$G3*1/$G$10 -> 0.001055055875 | N3: =$G3*1/$G$11 -> 1.055055875e-06 | O3: =$G3*1/$G$12 -> 0.01 | P3: =$G3*1/$G$13 -> 0.001 | Q3: =$G3*1/$G$14 -> 251.9957433 | R3: =$G3*1/$G$15 -> 0.0002519957433 | S3: =$G3*1/$G$16 -> 2.519354944e-05 | U3: MMBTU/Gallon
B4: Energy Unit | D4: MMBTU | E4: =CONCATENATE(B4,C4,D4) -> Energy UnitMMBTU | F4: =G4*1/$G$3 -> 1000 | G4: 1 | H4: =G4*1/$G$5 -> 293.0710387 | I4: 0.2930710387 | J4: 0.0002930710387 | K4: 1055055.875 | L4: 1055.055875 | M4: 1.055055875 | N4: 0.001055055875 | O4: 10 | P4: 1 | Q4: 251995.7433 | R4: 0.2519957433 | S4: 0.02519354944 | U4: LNG | V4: 0.086
B5: Energy Unit | D5: kWh | E5: Energy UnitkWh | F5: 3.412142 | G5: =G6/1000 -> 0.003412142 | H5: =G5*1/$G$5 -> 1 | I5: 0.001 | J5: 1e-06 | K5: 3600.000464 | L5: 3.600000464 | M5: 0.003600000464 | N5: 3.600000464e-06 | O5: 0.03412142 | P5: 0.003412142 | Q5: 859.8452595 | R5: 0.0008598452595 | S5: 8.596396819e-05 | U5: Propane | V5: 0.09169
B6: Energy Unit | D6: MWh | E6: Energy UnitMWh | F6: 3412.142 | G6: 3.412142 | H6: =G6*1/$G$5 -> 1000 | I6: =$G6*1/$G$6 -> 1 | J6: 0.001 | K6: 3600000.464 | L6: 3600.000464 | M6: 3.600000464 | N6: 0.003600000464 | O6: 34.12142 | P6: 3.412142 | Q6: 859845.2595 | R6: 0.8598452595 | S6: 0.08596396819 | U6: Butane | V6: 0.102032
B7: Energy Unit | D7: GWh | E7: Energy UnitGWh | F7: 3412142 | G7: =G6*1000 -> 3412.142 | H7: 1000000 | I7: 1000 | J7: =$G7*1/$G$7 -> 1 | K7: 3600000464 | L7: 3600000.464 | M7: 3600.000464 | N7: 3.600000464 | O7: 34121.42 | P7: 3412.142 | Q7: 859845259.5 | R7: 859.8452595 | S7: 85.96396819 | U7: #1 Fuel Oil | V7: 0.1374
B8: Energy Unit | D8: kJ | E8: Energy UnitkJ | F8: 0.0009478171 | G8: =G9/1000 -> 9.478171e-07 | H8: 0.000277777742 | I8: 2.77777742e-07 | J8: 2.77777742e-10 | K8: =$G8*1/$G$8 -> 1 | L8: 0.001 | M8: 1e-06 | N8: 1e-09 | O8: 9.478171e-06 | P8: 9.478171e-07 | Q8: 0.2388458746 | R8: 2.388458746e-07 | S8: 2.387887697e-08 | U8: #2 Fuel Oil | V8: 0.1396
B9: Energy Unit | D9: MJ | E9: Energy UnitMJ | F9: 0.9478171 | G9: =G10/1000 -> 0.0009478171 | H9: 0.277777742 | I9: 0.000277777742 | J9: 2.77777742e-07 | K9: 1000 | L9: =$G9*1/$G$9 -> 1 | M9: 0.001 | N9: 1e-06 | O9: 0.009478171 | P9: 0.0009478171 | Q9: 238.8458746 | R9: 0.0002388458746 | S9: 2.387887697e-05 | U9: #4 Fuel Oil | V9: 0.1451
B10: Energy Unit | D10: GJ | E10: Energy UnitGJ | F10: 947.8171 | G10: =G11/1000 -> 0.9478171 | H10: 277.777742 | I10: 0.277777742 | J10: 0.000277777742 | K10: 1000000 | L10: 1000 | M10: =$G10*1/$G$10 -> 1 | N10: 0.001 | O10: 9.478171 | P10: 0.9478171 | Q10: 238845.8746 | R10: 0.2388458746 | S10: 0.02387887697 | U10: #5 Fuel Oil | V10: 0.1488
B11: Energy Unit | D11: TJ | E11: Energy UnitTJ | F11: 947817.1 | G11: 947.8171 | H11: 277777.742 | I11: 277.777742 | J11: 0.277777742 | K11: 1000000000 | L11: 1000000 | M11: 1000 | N11: =$G11*1/$G$11 -> 1 | O11: 9478.171 | P11: 947.8171 | Q11: 238845874.6 | R11: 238.8458746 | S11: 23.87887697 | U11: #6 Fuel Oil (Low Sulfur) | V11: 0.1524
B12: Energy Unit | D12: Therms | E12: Energy UnitTherms | F12: 100 | G12: 0.1 | H12: 29.30710387 | I12: 0.02930710387 | J12: 2.930710387e-05 | K12: 105505.5875 | L12: 105.5055875 | M12: 0.1055055875 | N12: 0.0001055055875 | O12: =$G12*1/$G$12 -> 1 | P12: 0.1 | Q12: 25199.57433 | R12: 0.02519957433 | S12: 0.002519354944 | U12: #6 Fuel Oil (High Sulfur) | V12: 0.149
B13: Energy Unit | D13: DTh | E13: Energy UnitDTh | F13: 1000 | G13: 1 | H13: 293.0710387 | I13: 0.2930710387 | J13: 0.0002930710387 | K13: 1055055.875 | L13: 1055.055875 | M13: 1.055055875 | N13: 0.001055055875 | O13: 10 | P13: =$G13*1/$G$13 -> 1 | Q13: 251995.7433 | R13: 0.2519957433 | S13: 0.02519354944 | U13: Gasoline | V13: 0.1276
B14: Energy Unit | D14: kCal | E14: Energy UnitkCal | F14: 0.003968321 | G14: =G15/10^6 -> 3.968321e-06 | H14: 0.001162999957 | I14: 1.162999957e-06 | J14: 1.162999957e-09 | K14: 4.186800386 | L14: 0.004186800386 | M14: 4.186800386e-06 | N14: 4.186800386e-09 | O14: 3.968321e-05 | P14: 3.968321e-06 | Q14: =$G14*1/$G$14 -> 1 | R14: 1e-06 | S14: 9.997609132e-08 | U14: Kerosene | V14: 0.1351
B15: Energy Unit | D15: Gcal | E15: Energy UnitGcal | F15: 3968.321 | G15: 3.968321 | H15: 1162.999957 | I15: 1.162999957 | J15: 0.001162999957 | K15: 4186800.386 | L15: 4186.800386 | M15: 4.186800386 | N15: 0.004186800386 | O15: 39.68321 | P15: 3.968321 | Q15: 1000000 | R15: =$G15*1/$G$15 -> 1 | S15: 0.09997609132
B16: Energy Unit | D16: Tonne of Oil Equivalent | E16: Energy UnitTonne of Oil Equivalent | F16: 39692.7 | G16: 39.6927 | H16: 11632.78082 | I16: 11.63278082 | J16: 0.01163278082 | K16: 41878016.34 | L16: 41878.01634 | M16: 41.87801634 | N16: 0.04187801634 | O16: 396.927 | P16: 39.6927 | Q16: 10002391.44 | R16: =$G16*1/$G$15 -> 10.00239144 | S16: =$G16*1/$G$16 -> 1 | U16: MMBTU/Short Ton
B17: Volumetric Unit | C17: Natural Gas | D17: SCF | E17: Volumetric UnitNatural GasSCF | F17: 1.027 | G17: 0.001027 | H17: 0.3009839567 | I17: =$G17*1/$G$6 -> 0.0003009839567 | J17: =$G17*1/$G$7 -> 3.009839567e-07 | K17: =$G17*1/$G$8 -> 1083.542384 | L17: =$G17*1/$G$9 -> 1.083542384 | M17: =$G17*1/$G$10 -> 0.001083542384 | N17: =$G17*1/$G$11 -> 1.083542384e-06 | O17: =$G17*1/$G$12 -> 0.01027 | P17: =$G17*1/$G$13 -> 0.001027 | Q17: =$G17*1/$G$14 -> 258.7996284 | R17: =$G17*1/$G$15 -> 0.0002587996284 | S17: 2.587377528e-05 | U17: Coke | V17: 26
B18: Volumetric Unit | C18: Natural Gas | D18: CCF | E18: Volumetric UnitNatural GasCCF | F18: 102.7 | G18: 0.1027 | H18: 30.09839567 | I18: =$G18*1/$G$6 -> 0.03009839567 | J18: =$G18*1/$G$7 -> 3.009839567e-05 | K18: =$G18*1/$G$8 -> 108354.2384 | L18: =$G18*1/$G$9 -> 108.3542384 | M18: =$G18*1/$G$10 -> 0.1083542384 | N18: =$G18*1/$G$11 -> 0.0001083542384 | O18: =$G18*1/$G$12 -> 1.027 | P18: =$G18*1/$G$13 -> 0.1027 | Q18: =$G18*1/$G$14 -> 25879.96284 | R18: =$G18*1/$G$15 -> 0.02587996284 | S18: 0.002587377528 | U18: Wood | V18: 16
B19: Volumetric Unit | C19: Natural Gas | D19: MCF | E19: Volumetric UnitNatural GasMCF | F19: 1027 | G19: 1.027 | H19: 300.9839567 | I19: 0.3009839567 | J19: 0.0003009839567 | K19: 1083542.384 | L19: 1083.542384 | M19: 1.083542384 | N19: 0.001083542384 | O19: 10.27 | P19: 1.027 | Q19: 258799.6284 | R19: 0.2587996284 | S19: 0.02587377528
B20: Volumetric Unit | C20: Natural Gas | D20: M^3 | E20: Volumetric UnitNatural GasM^3 | F20: 362.6816609 | G20: 0.3626816609 | H20: 106.2914911 | I20: 0.1062914911 | J20: 0.0001062914911 | K20: 382649.4172 | L20: 382.6494172 | M20: 0.3826494172 | N20: 0.0003826494172 | O20: 3.626816609 | P20: 0.3626816609 | Q20: 91394.23472 | R20: 0.09139423472 | S20: 0.009137238356 | U20: Conversation Factors
B21: Volumetric Unit | C21: Propane | D21: SCF | E21: Volumetric UnitPropaneSCF | F21: 2.516 | G21: 0.002516 | H21: 0.7373667333 | I21: 0.0007373667333 | J21: 7.373667333e-07 | K21: 2654.520582 | L21: 2.654520582 | M21: 0.002654520582 | N21: 2.654520582e-06 | O21: 0.02516 | P21: 0.002516 | Q21: 634.0212901 | R21: 0.0006340212901 | S21: 6.33869704e-05 | U21: 1 BBL | V21: 42 | W21: gallon
B22: Volumetric Unit | C22: Propane | D22: CCF | E22: Volumetric UnitPropaneCCF | F22: 251.6 | G22: =G18/G17*G21 -> 0.2516 | H22: 73.73667333 | I22: 0.07373667333 | J22: 7.373667333e-05 | K22: 265452.0582 | L22: 265.4520582 | M22: 0.2654520582 | N22: 0.0002654520582 | O22: 2.516 | P22: 0.2516 | Q22: 63402.12901 | R22: 0.06340212901 | S22: 0.00633869704 | U22: 1 lbs | V22: =1/2000 -> 0.0005 | W22: Short ton
B23: Volumetric Unit | C23: Propane | D23: MCF | E23: Volumetric UnitPropaneMCF | F23: 2516 | G23: =G19/G17*G21 -> 2.516 | H23: 737.3667333 | I23: 0.7373667333 | J23: 0.0007373667333 | K23: 2654520.582 | L23: 2654.520582 | M23: 2.654520582 | N23: 0.002654520582 | O23: 25.16 | P23: 2.516 | Q23: 634021.2901 | R23: 0.6340212901 | S23: 0.0633869704 | U23: 1 kg | V23: =1/907.18474 -> 0.001102311311 | W23: Short ton
B24: Volumetric Unit | C24: Propane | D24: M^3 | E24: Volumetric UnitPropaneM^3 | F24: 888.5170972 | G24: =G20/G17*G21 -> 0.8885170972 | H24: 260.3986285 | I24: 0.2603986285 | J24: 0.0002603986285 | K24: 937435.1836 | L24: 937.4351836 | M24: 0.9374351836 | N24: 0.0009374351836 | O24: 8.885170972 | P24: 0.8885170972 | Q24: 223902.5263 | R24: 0.2239025263 | S24: 0.02238489942 | U24: 1 long Ton | V24: =1/0.892857 -> 1.120000179 | W24: Short ton
B25: Volumetric Unit | C25: =D68 -> Butane | D25: SCF | E25: Volumetric UnitButaneSCF | F25: 3.28 | G25: 0.00328 | H25: 0.9612730068 | I25: 0.0009612730068 | J25: 9.612730068e-07 | K25: 3460.583271 | L25: 3.460583271 | M25: 0.003460583271 | N25: 3.460583271e-06 | O25: 0.0328 | P25: 0.00328 | Q25: 826.546038 | R25: 0.000826546038 | S25: 8.263484218e-05 | U25: 1 metric Ton | V25: =1/V23/1000 -> 0.90718474 | W25: Short ton
B26: Volumetric Unit | C26: =D68 -> Butane | D26: CCF | E26: Volumetric UnitButaneCCF | F26: 328 | G26: =G22/G21*G25 -> 0.328 | H26: 96.12730068 | I26: 0.09612730068 | J26: 9.612730068e-05 | K26: 346058.3271 | L26: 346.0583271 | M26: 0.3460583271 | N26: 0.0003460583271 | O26: 3.28 | P26: 0.328 | Q26: 82654.6038 | R26: 0.0826546038 | S26: 0.008263484218
B27: Volumetric Unit | C27: =D68 -> Butane | D27: MCF | E27: Volumetric UnitButaneMCF | F27: 3280 | G27: =G23/G21*G25 -> 3.28 | H27: 961.2730068 | I27: 0.9612730068 | J27: 0.0009612730068 | K27: 3460583.271 | L27: 3460.583271 | M27: 3.460583271 | N27: 0.003460583271 | O27: 32.8 | P27: 3.28 | Q27: 826546.038 | R27: 0.826546038 | S27: 0.08263484218
B28: Volumetric Unit | C28: =D68 -> Butane | D28: M^3 | E28: Volumetric UnitButaneM^3 | F28: 1158.321176 | G28: =G24/G21*G25 -> 1.158321176 | H28: 339.4703902 | I28: 0.3394703902 | J28: 0.0003394703902 | K28: 1222093.562 | L28: 1222.093562 | M28: 1.222093562 | N28: 0.001222093562 | O28: 11.58321176 | P28: 1.158321176 | Q28: 291892.0057 | R28: 0.2918920057 | S28: 0.02918222182
B29: Volumetric Unit | C29: LNG | D29: Gallon | E29: Volumetric UnitLNGGallon | F29: 86 | G29: 0.086 | H29: 25.20410932 | I29: 0.02520410932 | J29: 2.520410932e-05 | K29: 90734.80527 | L29: 90.73480527 | M29: 0.09073480527 | N29: 9.073480527e-05 | O29: 0.86 | P29: 0.086 | Q29: 21671.63392 | R29: 0.02167163392 | S29: 0.002166645252 | U29: MBTU | V29: Energy Unit
B30: Volumetric Unit | C30: LNG | D30: BBL | E30: Volumetric UnitLNGBBL | F30: 3612 | G30: =G29*$V$21 -> 3.612 | H30: 1058.572592 | I30: 1.058572592 | J30: 0.001058572592 | K30: 3810861.821 | L30: 3810.861821 | M30: 3.810861821 | N30: 0.003810861821 | O30: 36.12 | P30: 3.612 | Q30: 910208.6248 | R30: 0.9102086248 | S30: 0.09099910059 | U30: MMBTU | V30: Energy Unit
B31: Volumetric Unit | C31: Propane | D31: Gallon | E31: Volumetric UnitPropaneGallon | F31: 91.69 | G31: 0.09169 | H31: 26.87168353 | I31: 0.02687168353 | J31: 2.687168353e-05 | K31: 96738.0732 | L31: 96.7380732 | M31: 0.0967380732 | N31: 9.67380732e-05 | O31: 0.9169 | P31: 0.09169 | Q31: 23105.4897 | R31: 0.0231054897 | S31: 0.002309996548 | U31: kWh | V31: Energy Unit
B32: Volumetric Unit | C32: Propane | D32: BBL | E32: Volumetric UnitPropaneBBL | F32: 3850.98 | G32: =G31*$V$21 -> 3.85098 | H32: 1128.610708 | I32: 1.128610708 | J32: 0.001128610708 | K32: 4062999.074 | L32: 4062.999074 | M32: 4.062999074 | N32: 0.004062999074 | O32: 38.5098 | P32: 3.85098 | Q32: 970430.5675 | R32: 0.9704305675 | S32: 0.09701985504 | U32: MWh | V32: Energy Unit
B33: Volumetric Unit | C33: =D68 -> Butane | D33: Gallon | E33: Volumetric UnitButaneGallon | F33: 102.032 | G33: 0.102032 | H33: 29.90262422 | I33: 0.02990262422 | J33: 2.990262422e-05 | K33: 107649.4611 | L33: 107.6494611 | M33: 0.1076494611 | N33: 0.0001076494611 | O33: 1.02032 | P33: 0.102032 | Q33: 25711.62968 | R33: 0.02571162968 | S33: 0.002570548237 | U33: GWh | V33: Energy Unit
B34: Volumetric Unit | C34: =D68 -> Butane | D34: BBL | E34: Volumetric UnitButaneBBL | F34: 4285.344 | G34: =G33*$V$21 -> 4.285344 | H34: 1255.910217 | I34: 1.255910217 | J34: 0.001255910217 | K34: 4521277.365 | L34: 4521.277365 | M34: 4.521277365 | N34: 0.004521277365 | O34: 42.85344 | P34: 4.285344 | Q34: 1079888.447 | R34: 1.079888447 | S34: 0.1079630259 | U34: kJ | V34: Energy Unit
B35: Volumetric Unit | C35: Fuel_Oil_1 | D35: Gallon | E35: Volumetric UnitFuel_Oil_1Gallon | F35: 137.4 | G35: 0.1374 | H35: 40.26796071 | I35: 0.04026796071 | J35: 4.026796071e-05 | K35: 144964.6773 | L35: 144.9646773 | M35: 0.1449646773 | N35: 0.0001449646773 | O35: 1.374 | P35: 0.1374 | Q35: 34624.21513 | R35: 0.03462421513 | S35: 0.003461593694 | U35: MJ | V35: Energy Unit
B36: Volumetric Unit | C36: Fuel_Oil_1 | D36: BBL | E36: Volumetric UnitFuel_Oil_1BBL | F36: 5770.8 | G36: =G35*$V$21 -> 5.7708 | H36: 1691.25435 | I36: 1.69125435 | J36: 0.00169125435 | K36: 6088516.445 | L36: 6088.516445 | M36: 6.088516445 | N36: 0.006088516445 | O36: 57.708 | P36: 5.7708 | Q36: 1454217.035 | R36: 1.454217035 | S36: 0.1453869351 | U36: GJ | V36: Energy Unit
B37: Volumetric Unit | C37: Fuel_Oil_2 | D37: Gallon | E37: Volumetric UnitFuel_Oil_2Gallon | F37: 139.6 | G37: 0.1396 | H37: 40.912717 | I37: 0.040912717 | J37: 4.0912717e-05 | K37: 147285.8002 | L37: 147.2858002 | M37: 0.1472858002 | N37: 0.0001472858002 | O37: 1.396 | P37: 0.1396 | Q37: 35178.60576 | R37: 0.03517860576 | S37: 0.003517019502 | U37: TJ | V37: Energy Unit
B38: Volumetric Unit | C38: Fuel_Oil_2 | D38: BBL | E38: Volumetric UnitFuel_Oil_2BBL | F38: 5863.2 | G38: =G37*$V$21 -> 5.8632 | H38: 1718.334114 | I38: 1.718334114 | J38: 0.001718334114 | K38: 6186003.608 | L38: 6186.003608 | M38: 6.186003608 | N38: 0.006186003608 | O38: 58.632 | P38: 5.8632 | Q38: 1477501.442 | R38: 1.477501442 | S38: 0.1477148191 | U38: Therms | V38: Energy Unit
B39: Volumetric Unit | C39: Fuel_Oil_4 | D39: Gallon | E39: Volumetric UnitFuel_Oil_4Gallon | F39: 145.1 | G39: 0.1451 | H39: 42.52460771 | I39: 0.04252460771 | J39: 4.252460771e-05 | K39: 153088.6075 | L39: 153.0886075 | M39: 0.1530886075 | N39: 0.0001530886075 | O39: 1.451 | P39: 0.1451 | Q39: 36564.58235 | R39: 0.03656458235 | S39: 0.003655584024 | U39: DTh | V39: Energy Unit
B40: Volumetric Unit | C40: Fuel_Oil_4 | D40: BBL | E40: Volumetric UnitFuel_Oil_4BBL | F40: 6094.2 | G40: =G39*$V$21 -> 6.0942 | H40: 1786.033524 | I40: 1.786033524 | J40: 0.001786033524 | K40: 6429721.515 | L40: 6429.721515 | M40: 6.429721515 | N40: 0.006429721515 | O40: 60.942 | P40: 6.0942 | Q40: 1535712.459 | R40: 1.535712459 | S40: 0.153534529 | U40: kCal | V40: Energy Unit
B41: Volumetric Unit | C41: Fuel_Oil_5 | D41: Gallon | E41: Volumetric UnitFuel_Oil_5Gallon | F41: 148.8 | G41: 0.1488 | H41: 43.60897055 | I41: 0.04360897055 | J41: 4.360897055e-05 | K41: 156992.3142 | L41: 156.9923142 | M41: 0.1569923142 | N41: 0.0001569923142 | O41: 1.488 | P41: 0.1488 | Q41: 37496.9666 | R41: 0.0374969666 | S41: 0.003748800157 | U41: Gcal | V41: Energy Unit
B42: Volumetric Unit | C42: Fuel_Oil_5 | D42: BBL | E42: Volumetric UnitFuel_Oil_5BBL | F42: 6249.6 | G42: =G41*$V$21 -> 6.2496 | H42: 1831.576763 | I42: 1.831576763 | J42: 0.001831576763 | K42: 6593677.198 | L42: 6593.677198 | M42: 6.593677198 | N42: 0.006593677198 | O42: 62.496 | P42: 6.2496 | Q42: 1574872.597 | R42: 1.574872597 | S42: 0.1574496066 | U42: Tonne of Oil Equivalent | V42: Energy Unit
B43: Volumetric Unit | C43: Fuel_Oil_6_low_sulfer | D43: Gallon | E43: Volumetric UnitFuel_Oil_6_low_sulferGallon | F43: 152.4 | G43: 0.1524 | H43: 44.66402629 | I43: 0.04466402629 | J43: 4.466402629e-05 | K43: 160790.5154 | L43: 160.7905154 | M43: 0.1607905154 | N43: 0.0001607905154 | O43: 1.524 | P43: 0.1524 | Q43: 38404.15128 | R43: 0.03840415128 | S43: 0.003839496935 | U43: SCF | V43: Volumetric Unit
B44: Volumetric Unit | C44: Fuel_Oil_6_low_sulfer | D44: BBL | E44: Volumetric UnitFuel_Oil_6_low_sulferBBL | F44: 6400.8 | G44: =G43*$V$21 -> 6.4008 | H44: 1875.889104 | I44: 1.875889104 | J44: 0.001875889104 | K44: 6753201.646 | L44: 6753.201646 | M44: 6.753201646 | N44: 0.006753201646 | O44: 64.008 | P44: 6.4008 | Q44: 1612974.354 | R44: 1.612974354 | S44: 0.1612588713 | U44: CCF | V44: Volumetric Unit
B45: Volumetric Unit | C45: Fuel_Oil_6_high_sulfer | D45: Gallon | E45: Volumetric UnitFuel_Oil_6_high_sulferGallon | F45: 149 | G45: 0.149 | H45: 43.66758476 | I45: 0.04366758476 | J45: 4.366758476e-05 | K45: 157203.3254 | L45: 157.2033254 | M45: 0.1572033254 | N45: 0.0001572033254 | O45: 1.49 | P45: 0.149 | Q45: 37547.36575 | R45: 0.03754736575 | S45: 0.003753838867 | U45: MCF | V45: Volumetric Unit
B46: Volumetric Unit | C46: Fuel_Oil_6_high_sulfer | D46: BBL | E46: Volumetric UnitFuel_Oil_6_high_sulferBBL | F46: 6258 | G46: =G45*$V$21 -> 6.258 | H46: 1834.03856 | I46: 1.83403856 | J46: 0.00183403856 | K46: 6602539.667 | L46: 6602.539667 | M46: 6.602539667 | N46: 0.006602539667 | O46: 62.58 | P46: 6.258 | Q46: 1576989.361 | R46: 1.576989361 | S46: 0.1576612324 | U46: M^3 | V46: Volumetric Unit
B47: Volumetric Unit | C47: =L68 -> Gasoline | D47: Gallon | E47: Volumetric UnitGasolineGallon | F47: 127.6 | G47: 0.1276 | H47: 37.39586453 | I47: 0.03739586453 | J47: 3.739586453e-05 | K47: 134625.1297 | L47: 134.6251297 | M47: 0.1346251297 | N47: 0.0001346251297 | O47: 1.276 | P47: 0.1276 | Q47: 32154.65684 | R47: 0.03215465684 | S47: 0.003214696909 | U47: BBL | V47: Volumetric Unit
B48: Volumetric Unit | C48: =L68 -> Gasoline | D48: BBL | E48: Volumetric UnitGasolineBBL | F48: 5359.2 | G48: =G47*$V$21 -> 5.3592 | H48: 1570.62631 | I48: 1.57062631 | J48: 0.00157062631 | K48: 5654255.447 | L48: 5654.255447 | M48: 5.654255447 | N48: 0.005654255447 | O48: 53.592 | P48: 5.3592 | Q48: 1350495.587 | R48: 1.350495587 | S48: 0.1350172702 | U48: Gallon | V48: Volumetric Unit
B49: Volumetric Unit | C49: Kerosene | D49: Gallon | E49: Volumetric UnitKeroseneGallon | F49: 135.1 | G49: 0.1351 | H49: 39.59389732 | I49: 0.03959389732 | J49: 3.959389732e-05 | K49: 142538.0487 | L49: 142.5380487 | M49: 0.1425380487 | N49: 0.0001425380487 | O49: 1.351 | P49: 0.1351 | Q49: 34044.62492 | R49: 0.03404462492 | S49: 0.00340364853 | U49: Lb | V49: Volumetric Unit
B50: Volumetric Unit | C50: Kerosene | D50: BBL | E50: Volumetric UnitKeroseneBBL | F50: 5674.2 | G50: =G49*$V$21 -> 5.6742 | H50: 1662.943688 | I50: 1.662943688 | J50: 0.001662943688 | K50: 5986598.047 | L50: 5986.598047 | M50: 5.986598047 | N50: 0.005986598047 | O50: 56.742 | P50: 5.6742 | Q50: 1429874.247 | R50: 1.429874247 | S50: 0.1429532383 | U50: Short Ton | V50: Volumetric Unit
B51: Volumetric Unit | C51: Coal | D51: Lb | E51: Volumetric UnitCoalLb | F51: 14 | G51: =G52*$V$22 -> 0.014 | H51: 4.102994541 | I51: 0.004102994541 | J51: 4.102994541e-06 | K51: 14770.78225 | L51: 14.77078225 | M51: 0.01477078225 | N51: 1.477078225e-05 | O51: 0.14 | P51: 0.014 | Q51: 3527.940406 | R51: 0.003527940406 | S51: 0.0003527096922 | U51: Long Ton | V51: Volumetric Unit
B52: Volumetric Unit | C52: Coal | D52: Short Ton | E52: Volumetric UnitCoalShort Ton | F52: 28000 | G52: 28 | H52: 8205.989083 | I52: 8.205989083 | J52: 0.008205989083 | K52: 29541564.51 | L52: 29541.56451 | M52: 29.54156451 | N52: 0.02954156451 | O52: 280 | P52: 28 | Q52: 7055880.812 | R52: 7.055880812 | S52: 0.7054193844 | U52: kg | V52: Volumetric Unit
B53: Volumetric Unit | C53: Coal | D53: Long Ton | E53: Volumetric UnitCoalLong Ton | F53: 31360.00502 | G53: =G52*$V$24 -> 31.36000502 | H53: 9190.709243 | I53: 9.190709243 | J53: 0.009190709243 | K53: 33086557.54 | L53: 33086.55754 | M53: 33.08655754 | N53: 0.03308655754 | O53: 313.6000502 | P53: 31.36000502 | Q53: 7902587.774 | R53: 7.902587774 | S53: 0.790069837 | U53: Metric Ton | V53: Volumetric Unit
B54: Volumetric Unit | C54: Coal | D54: kg | E54: Volumetric UnitCoalkg | F54: 30.86471671 | G54: =G52*$V$23 -> 0.03086471671 | H54: 9.045554583 | I54: 0.009045554583 | J54: 9.045554583e-06 | K54: 32564.0007 | L54: 32.5640007 | M54: 0.0325640007 | N54: 3.25640007e-05 | O54: 0.3086471671 | P54: 0.03086471671 | Q54: 7777.777228 | R54: 0.007777777228 | S54: 0.0007775917664
B55: Volumetric Unit | C55: Coal | D55: Metric Ton | E55: Volumetric UnitCoalMetric Ton | F55: 25401.17272 | G55: =G52*$V$25 -> 25.40117272 | H55: 7444.348072 | I55: 7.444348072 | J55: 0.007444348072 | K55: 26799656.52 | L55: 26799.65652 | M55: 26.79965652 | N55: 0.02679965652 | O55: 254.0117272 | P55: 25.40117272 | Q55: 6400987.4 | R55: 6.4009874 | S55: 0.6399457008
B56: Volumetric Unit | C56: Coke | D56: Lb | E56: Volumetric UnitCokeLb | F56: 13 | G56: =G57*$V$22 -> 0.013 | H56: 3.809923503 | I56: 0.003809923503 | J56: 3.809923503e-06 | K56: 13715.72638 | L56: 13.71572638 | M56: 0.01371572638 | N56: 1.371572638e-05 | O56: 0.13 | P56: 0.013 | Q56: 3275.944663 | R56: 0.003275944663 | S56: 0.0003275161428 | U56: Propane (vapor/gas)
B57: Volumetric Unit | C57: Coke | D57: Short Ton | E57: Volumetric UnitCokeShort Ton | F57: 26000 | G57: 26 | H57: 7619.847005 | I57: 7.619847005 | J57: 0.007619847005 | K57: 27431452.76 | L57: 27431.45276 | M57: 27.43145276 | N57: 0.02743145276 | O57: 260 | P57: 26 | Q57: 6551889.325 | R57: 6.551889325 | S57: 0.6550322855 | U57: Butane (vapor/gas)
B58: Volumetric Unit | C58: Coke | D58: Long Ton | E58: Volumetric UnitCokeLong Ton | F58: 29120.00466 | G58: =G57*$V$24 -> 29.12000466 | H58: 8534.230011 | I58: 8.534230011 | J58: 0.008534230011 | K58: 30723232 | L58: 30723.232 | M58: 30.723232 | N58: 0.030723232 | O58: 291.2000466 | P58: 29.12000466 | Q58: 7338117.219 | R58: 7.338117219 | S58: 0.7336362772 | U58: LNG
B59: Volumetric Unit | C59: Coke | D59: kg | E59: Volumetric UnitCokekg | F59: 28.66009408 | G59: =G57*$V$23 -> 0.02866009408 | H59: 8.399443541 | I59: 0.008399443541 | J59: 8.399443541e-06 | K59: 30238.00065 | L59: 30.23800065 | M59: 0.03023800065 | N59: 3.023800065e-05 | O59: 0.2866009408 | P59: 0.02866009408 | Q59: 7222.221711 | R59: 0.007222221711 | S59: 0.0007220494974 | U59: Propane (Liquid)
B60: Volumetric Unit | C60: Coke | D60: Metric Ton | E60: Volumetric UnitCokeMetric Ton | F60: 23586.80324 | G60: =G57*$V$25 -> 23.58680324 | H60: 6912.608924 | I60: 6.912608924 | J60: 0.006912608924 | K60: 24885395.34 | L60: 24885.39534 | M60: 24.88539534 | N60: 0.02488539534 | O60: 235.8680324 | P60: 23.58680324 | Q60: 5943774.014 | R60: 5.943774014 | S60: 0.5942352936 | U60: Butane (Liquid)
B61: Volumetric Unit | C61: Wood | D61: Lb | E61: Volumetric UnitWoodLb | F61: 8 | G61: =G62*$V$22 -> 0.008 | H61: 2.344568309 | I61: 0.002344568309 | J61: 2.344568309e-06 | K61: 8440.447002 | L61: 8.440447002 | M61: 0.008440447002 | N61: 8.440447002e-06 | O61: 0.08 | P61: 0.008 | Q61: 2015.965946 | R61: 0.002015965946 | S61: 0.0002015483955 | U61: #1 Fuel Oil
B62: Volumetric Unit | C62: Wood | D62: Short Ton | E62: Volumetric UnitWoodShort Ton | F62: 16000 | G62: 16 | H62: 4689.136619 | I62: 4.689136619 | J62: 0.004689136619 | K62: 16880894 | L62: 16880.894 | M62: 16.880894 | N62: 0.016880894 | O62: 160 | P62: 16 | Q62: 4031931.893 | R62: 4.031931893 | S62: 0.4030967911 | U62: #2 Fuel Oil
B63: Volumetric Unit | C63: Wood | D63: Long Ton | E63: Volumetric UnitWoodLong Ton | F63: 17920.00287 | G63: =G62*$V$24 -> 17.92000287 | H63: 5251.833853 | I63: 5.251833853 | J63: 0.005251833853 | K63: 18906604.31 | L63: 18906.60431 | M63: 18.90660431 | N63: 0.01890660431 | O63: 179.2000287 | P63: 17.92000287 | Q63: 4515764.442 | R63: 4.515764442 | S63: 0.4514684783 | U63: #4 Fuel Oil
B64: Volumetric Unit | C64: Wood | D64: kg | E64: Volumetric UnitWoodkg | F64: 17.63698097 | G64: =G62*$V$23 -> 0.01763698097 | H64: 5.168888333 | I64: 0.005168888333 | J64: 5.168888333e-06 | K64: 18608.0004 | L64: 18.6080004 | M64: 0.0186080004 | N64: 1.86080004e-05 | O64: 0.1763698097 | P64: 0.01763698097 | Q64: 4444.44413 | R64: 0.00444444413 | S64: 0.0004443381522 | U64: #5 Fuel Oil
B65: Volumetric Unit | C65: Wood | D65: Metric Ton | E65: Volumetric UnitWoodMetric Ton | F65: 14514.95584 | G65: =G62*$V$25 -> 14.51495584 | H65: 4253.913184 | I65: 4.253913184 | J65: 0.004253913184 | K65: 15314089.44 | L65: 15314.08944 | M65: 15.31408944 | N65: 0.01531408944 | O65: 145.1495584 | P65: 14.51495584 | Q65: 3657707.086 | R65: 3.657707086 | S65: 0.3656832576 | U65: #6 Fuel Oil (Low Sulfur)
U66: #6 Fuel Oil (High Sulfur)
U67: Gasoline
B68: ='Translation '!A846 -> Natural Gas | C68: ='Translation '!A847 -> Propane | D68: ='Translation '!A848 -> Butane | E68: ='Translation '!A849 -> LNG | F68: ='Translation '!A850 -> Fuel_Oil_1 | G68: ='Translation '!A851 -> Fuel_Oil_2 | H68: ='Translation '!A852 -> Fuel_Oil_4 | I68: ='Translation '!A853 -> Fuel_Oil_5 | J68: ='Translation '!A854 -> Fuel_Oil_6_low_sulfer | K68: ='Translation '!A855 -> Fuel_Oil_6_high_sulfer | L68: ='Translation '!A856 -> Gasoline | M68: ='Translation '!A857 -> Kerosene | N68: ='Translation '!A858 -> Coal | O68: ='Translation '!A859 -> Coke | P68: ='Translation '!A860 -> Wood | Q68: Steam | U68: Kerosene
B69: SCF | C69: SCF | D69: SCF | E69: Gallon | F69: Gallon | G69: Gallon | H69: Gallon | I69: Gallon | J69: Gallon | K69: Gallon | L69: Gallon | M69: Gallon | N69: Lb | O69: Lb | P69: Lb | Q69: MBTU | U69: Coal
B70: CCF | C70: CCF | D70: CCF | E70: BBL | F70: BBL | G70: BBL | H70: BBL | I70: BBL | J70: BBL | K70: BBL | L70: BBL | M70: BBL | N70: Short Ton | O70: Short Ton | P70: Short Ton | Q70: MMBTU | U70: Coke
B71: MCF | C71: M^3 | D71: MCF | E71: MBTU | F71: MBTU | G71: MBTU | H71: MBTU | I71: MBTU | J71: MBTU | K71: MBTU | L71: MBTU | M71: MBTU | N71: Long Ton | O71: Long Ton | P71: Long Ton | Q71: kJ | U71: Wood
B72: M^3 | C72: MCF | D72: M^3 | E72: MMBTU | F72: MMBTU | G72: MMBTU | H72: MMBTU | I72: MMBTU | J72: MMBTU | K72: MMBTU | L72: MMBTU | M72: MMBTU | N72: kg | O72: kg | P72: kg | Q72: MJ
B73: MBTU | C73: Gallon | D73: Gallon | E73: kJ | F73: kJ | G73: kJ | H73: kJ | I73: kJ | J73: kJ | K73: kJ | L73: kJ | M73: kJ | N73: Metric Ton | O73: Metric Ton | P73: Metric Ton | Q73: GJ
B74: MMBTU | C74: BBL | D74: BBL | E74: MJ | F74: MJ | G74: MJ | H74: MJ | I74: MJ | J74: MJ | K74: MJ | L74: MJ | M74: MJ | N74: MBTU | O74: MBTU | P74: MBTU | Q74: TJ
B75: kJ | C75: MBTU | D75: MBTU | E75: GJ | F75: GJ | G75: GJ | H75: GJ | I75: GJ | J75: GJ | K75: GJ | L75: GJ | M75: GJ | N75: MMBTU | O75: MMBTU | P75: MMBTU | Q75: Therms
B76: MJ | C76: MMBTU | D76: MMBTU | E76: TJ | F76: TJ | G76: TJ | H76: TJ | I76: TJ | J76: TJ | K76: TJ | L76: TJ | M76: TJ | N76: kJ | O76: kJ | P76: kJ | Q76: DTh
B77: GJ | C77: kJ | D77: kJ | E77: Therms | F77: Therms | G77: Therms | H77: Therms | I77: Therms | J77: Therms | K77: Therms | L77: Therms | M77: Therms | N77: MJ | O77: MJ | P77: MJ | Q77: kCal
B78: TJ | C78: MJ | D78: MJ | E78: DTh | F78: DTh | G78: DTh | H78: DTh | I78: DTh | J78: DTh | K78: DTh | L78: DTh | M78: DTh | N78: GJ | O78: GJ | P78: GJ | Q78: Gcal
B79: Therms | C79: GJ | D79: GJ | E79: kCal | F79: kCal | G79: kCal | H79: kCal | I79: kCal | J79: kCal | K79: kCal | L79: kCal | M79: kCal | N79: TJ | O79: TJ | P79: TJ | Q79: Tonne of Oil Equivalent
B80: DTh | C80: TJ | D80: TJ | E80: Gcal | F80: Gcal | G80: Gcal | H80: Gcal | I80: Gcal | J80: Gcal | K80: Gcal | L80: Gcal | M80: Gcal | N80: Therms | O80: Therms | P80: Therms | Q80: N/A
B81: kCal | C81: Therms | D81: Therms | E81: Tonne of Oil Equivalent | F81: Tonne of Oil Equivalent | G81: Tonne of Oil Equivalent | H81: Tonne of Oil Equivalent | I81: Tonne of Oil Equivalent | J81: Tonne of Oil Equivalent | K81: Tonne of Oil Equivalent | L81: Tonne of Oil Equivalent | M81: Tonne of Oil Equivalent | N81: DTh | O81: DTh | P81: DTh
B82: Gcal | C82: DTh | D82: DTh | E82: N/A | F82: N/A | G82: N/A | H82: N/A | I82: N/A | J82: N/A | K82: N/A | L82: N/A | M82: N/A | N82: kCal | O82: kCal | P82: kCal
B83: Tonne of Oil Equivalent | C83: kCal | D83: kCal | N83: Gcal | O83: Gcal | P83: Gcal
B84: N/A | C84: Gcal | D84: Gcal | N84: Tonne of Oil Equivalent | O84: Tonne of Oil Equivalent | P84: Tonne of Oil Equivalent
C85: Tonne of Oil Equivalent | D85: Tonne of Oil Equivalent | N85: N/A | O85: N/A | P85: N/A
C86: N/A | D86: N/A
B88: Electricity | C88: Natural Gas | D88: Steam
B89: kWh | C89: =B79 -> Therms | D89: =Q75 -> Therms
B90: MWh | C90: =B74 -> MMBTU | D90: =Q70 -> MMBTU
B91: kJ | C91: =B73 -> MBTU | D91: =Q69 -> MBTU
B92: MJ | C92: =B69 -> SCF | D92: =Q72 -> MJ
B93: MMBTU | C93: =B70 -> CCF | D93: =Q76 -> DTh
C94: MCF | D94: =Q79 -> Tonne of Oil Equivalent
C95: M^3
C96: =C78 -> MJ
C97: =C85 -> Tonne of Oil Equivalent

Sheet Translation (hidden)
A1: Translation | B1: English | C1: Russian | D1: Ukrainian
A2: =IF(Disclaimer!$C$2="English",B2,IF(Disclaimer!$C$2="Russian",C2,D2)) -> Plant Energy Profiler Tool - Instructions | B2: Plant Energy Profiler Tool - Instructions | C2: Инструкции по применению инструмента определения энергетического профиля установки | D2: Інструкції із застосування інструменту визначення енергетичного профілю установки
A3: =IF(Disclaimer!$C$2="English",B3,IF(Disclaimer!$C$2="Russian",C3,D3)) -> Color Scheme | B3: Color Scheme | C3: Цветовой код | D3: Код кольору
A4: =IF(Disclaimer!$C$2="English",B4,IF(Disclaimer!$C$2="Russian",C4,D4)) -> Green | B4: Green | C4: Серый | D4: Сірий
A5: =IF(Disclaimer!$C$2="English",B5,IF(Disclaimer!$C$2="Russian",C5,D5)) -> Pink | B5: Pink | C5: Фиолетовый | D5: Фіолетовий
A6: =IF(Disclaimer!$C$2="English",B6,IF(Disclaimer!$C$2="Russian",C6,D6)) -> Yellow | B6: Yellow | C6: Желтый | D6: Жовтий
A7: =IF(Disclaimer!$C$2="English",B7,IF(Disclaimer!$C$2="Russian",C7,D7)) -> User input | B7: User input | C7: Данные пользователя | D7: Дані користувача
A8: =IF(Disclaimer!$C$2="English",B8,IF(Disclaimer!$C$2="Russian",C8,D8)) -> NO User Input | B8: NO User Input | C8: Данные пользов. отсутств. | D8: Нема даних корист.
A9: =IF(Disclaimer!$C$2="English",B9,IF(Disclaimer!$C$2="Russian",C9,D9)) -> User input required | B9: User input required | C9: Требуются Данные пользователя | D9: Потрібні Дані користувача
A10: =IF(Disclaimer!$C$2="English",B10,IF(Disclaimer!$C$2="Russian",C10,D10)) -> Drop down list | B10: Drop down list | C10: Всплывающий список | D10: Контекстний список
A11: =IF(Disclaimer!$C$2="English",B11,IF(Disclaimer!$C$2="Russian",C11,D11)) -> Formula inserted | B11: Formula inserted | C11: Вставлена формула | D11: Вставлена формула
A12: =IF(Disclaimer!$C$2="English",B12,IF(Disclaimer!$C$2="Russian",C12,D12)) -> Content | B12: Content | C12: Содержание | D12: Зміст
A13: =IF(Disclaimer!$C$2="English",B13,IF(Disclaimer!$C$2="Russian",C13,D13)) -> Tab Title | B13: Tab Title | C13: Название закладки | D13: Назва закладки
A14: =IF(Disclaimer!$C$2="English",B14,IF(Disclaimer!$C$2="Russian",C14,D14)) -> User Information | B14: User Information | C14: Данные пользователя | D14: Дані користувача
A15: =IF(Disclaimer!$C$2="English",B15,IF(Disclaimer!$C$2="Russian",C15,D15)) -> Contains Instruction on how to fill the data collection sheet | B15: Contains Instruction on how to fill the data collection sheet | C15: Данные пользователя | D15: Містить інструкцію про заповнення формуляра даних
A16: =IF(Disclaimer!$C$2="English",B16,IF(Disclaimer!$C$2="Russian",C16,D16)) -> Basic Info (Mandatory Data) | B16: Basic Info (Mandatory Data) | C16: Основные данные (Обязательные) | D16: Основні відомості(Обов'язкові дані)
A17: =IF(Disclaimer!$C$2="English",B17,IF(Disclaimer!$C$2="Russian",C17,D17)) -> Energy & Production (Mandatory Data) | B17: Energy & Production (Mandatory Data) | C17: Энергия и производство (Обязательные) | D17: Енергія та виробництво(Обов'язкові дані)
A18: =IF(Disclaimer!$C$2="English",B18,IF(Disclaimer!$C$2="Russian",C18,D18)) -> Energy Use System (Mandatory Data) | B18: Energy Use System (Mandatory Data) | C18: Потребляющие энергию системы (Обязательные) | D18: Система енерговикористання(Обов'язкові дані)
A19: =IF(Disclaimer!$C$2="English",B19,IF(Disclaimer!$C$2="Russian",C19,D19)) -> Energy Saving Opportunities (Mandatory Data) | B19: Energy Saving Opportunities (Mandatory Data) | C19: Возможности энергосбережения (Обязательные) | D19: Можливості енергозаощадження (Обов'язкові дані)
A20: =IF(Disclaimer!$C$2="English",B20,IF(Disclaimer!$C$2="Russian",C20,D20)) -> CHP (Scorecard) | B20: CHP (Scorecard) | C20: КТЭ (Карточка оценок) | D20: КТЕ (Карта оцінок)
A21: =IF(Disclaimer!$C$2="English",B21,IF(Disclaimer!$C$2="Russian",C21,D21)) -> Compressed Air (Scorecard) | B21: Compressed Air (Scorecard) | C21: Сжатый воздух (Карточка оценок) | D21: Стиснуте повітря (Карта оцінок)
A22: =IF(Disclaimer!$C$2="English",B22,IF(Disclaimer!$C$2="Russian",C22,D22)) -> Process Cooling and Refrigeration (Scorecard) | B22: Process Cooling and Refrigeration (Scorecard) | C22: Технологическое охлаждение и замораживание (Карточка оценок) | D22: Технологічне охолодження та заморожування (Карта оцінок)
A23: =IF(Disclaimer!$C$2="English",B23,IF(Disclaimer!$C$2="Russian",C23,D23)) -> Process Heating (Scorecard) | B23: Process Heating (Scorecard) | C23: Технологическое тепло (Карточка оценок) | D23: Технологічне тепло (Карта оцінок)
A24: =IF(Disclaimer!$C$2="English",B24,IF(Disclaimer!$C$2="Russian",C24,D24)) -> Pumps (Scorecard) | B24: Pumps (Scorecard) | C24: Насосы (Карточка оценок) | D24: Насоси (Карта оцінок)
A25: =IF(Disclaimer!$C$2="English",B25,IF(Disclaimer!$C$2="Russian",C25,D25)) -> Steam Generation Equipment (Scorecard) | B25: Steam Generation Equipment (Scorecard) | C25: Оборудование паропроизводства (Карточка оценок) | D25: Паровиробне обладнання (Карта оцінок)
A26: =IF(Disclaimer!$C$2="English",B26,IF(Disclaimer!$C$2="Russian",C26,D26)) -> Please give your best estimate if the exact data is not known. | B26: Please give your best estimate if the exact data is not known. | C26: В случае отсутствия точных данных просим предоставить известные Вам приблизительные данные. | D26: В разі відсутності точних даних просимо навести відомі вам приблизні.
A27: =IF(Disclaimer!$C$2="English",B27,IF(Disclaimer!$C$2="Russian",C27,D27)) -> Please input information on: | B27: Please input information on: | C27: Просим указать следующие данные: | D27: Просимо внести відомості про:
A28: =IF(Disclaimer!$C$2="English",B28,IF(Disclaimer!$C$2="Russian",C28,D28)) -> Industry Type | B28: Industry Type | C28: Отрасль промышленности | D28: Галузь промисловості.
A29: =IF(Disclaimer!$C$2="English",B29,IF(Disclaimer!$C$2="Russian",C29,D29)) -> Location and Contact info for the plant | B29: Location and Contact info for the plant | C29: Контактная информация Вашего объекта | D29: Місце розташування та контактні дані для вашого об'єкту
A30: =IF(Disclaimer!$C$2="English",B30,IF(Disclaimer!$C$2="Russian",C30,D30)) -> Hours of operation | B30: Hours of operation | C30: Рабочие часы | D30: Години роботи.
A31: =IF(Disclaimer!$C$2="English",B31,IF(Disclaimer!$C$2="Russian",C31,D31)) -> General energy management questions | B31: General energy management questions | C31: Ответы на вопросы об общем управлении энергоснабжением | D31: Запитання щодо загального управління енергопостачанням
A32: =IF(Disclaimer!$C$2="English",B32,IF(Disclaimer!$C$2="Russian",C32,D32)) -> Please input information on: | B32: Please input information on: | C32: Просим внести следующие данные: | D32: Просимо внести відомості про:
A33: =IF(Disclaimer!$C$2="English",B33,IF(Disclaimer!$C$2="Russian",C33,D33)) -> Energy Consumption of plant for 2 consecutive years | B33: Energy Consumption of plant for 2 consecutive years | C33: Потребление энергии, производственные данные установки за 2 последующих года. | D33: Споживання енергії, виробничі дані установки за 2 роки поспіль.
A34: =IF(Disclaimer!$C$2="English",B34,IF(Disclaimer!$C$2="Russian",C34,D34)) -> Electricity and fuel prices | B34: Electricity and fuel prices | C34: Годовое потребление энергии, годичные затраты, производственные данные за год. | D34: Річне споживання енергії, річні витрати, виробничі дані за рік.
A35: =IF(Disclaimer!$C$2="English",B35,IF(Disclaimer!$C$2="Russian",C35,D35)) -> Energy source for major equipment | B35: Energy source for major equipment | C35: Цены за единицу энергии и топлива | D35: Ціни за одиницю енергії та пального.
A36: =IF(Disclaimer!$C$2="English",B36,IF(Disclaimer!$C$2="Russian",C36,D36)) -> Please input information on: | B36: Please input information on: | C36: Просим внести следующие данные: | D36: Просимо внести відомості про:
A37: =IF(Disclaimer!$C$2="English",B37,IF(Disclaimer!$C$2="Russian",C37,D37)) -> Energy Systems present in a plant, their energy consumption, annual cost running the systems | B37: Energy Systems present in a plant, their energy consumption, annual cost running the systems | C37: Энергопотребляющие системы установки, доля энергии, потребляемой каждой их таких систем. | D37: Наявні на установці енергетичні системи, частка енергії, що використовується кожною з таких систем.
A38: =IF(Disclaimer!$C$2="English",B38,IF(Disclaimer!$C$2="Russian",C38,D38)) -> Rating of major Equipment and their Annual Operating hours. | B38: Rating of major Equipment and their Annual Operating hours. | C38: Рейтинг основного оборудования с указанием часов его работы. | D38: Рейтинг основного обладнання до кількість відпрацьованих годин на рік.
A39: =IF(Disclaimer!$C$2="English",B39,IF(Disclaimer!$C$2="Russian",C39,D39)) -> Use this screen to characterize the potential energy savings opportunities for the various major systems in your plant. | B39: Use this screen to characterize the potential energy savings opportunities for the various major systems in your plant. | C39: Опишите потенциальные возможности энергосбережения для разных основных систем вашей установки. | D39: Опишіть потенційні можливості енергозбереження для різних основних систем вашої установки.
A40: =IF(Disclaimer!$C$2="English",B40,IF(Disclaimer!$C$2="Russian",C40,D40)) -> Please answer the questions in this form if the CHP system is present in your plant | B40: Please answer the questions in this form if the CHP system is present in your plant | C40: Просим ответить на вопросы этого формуляра в случае, если у вас есть система КТЭ | D40: Просимо відповідати на запитання цього формуляру в разі, якщо у вас є система КТЕ
A41: =IF(Disclaimer!$C$2="English",B41,IF(Disclaimer!$C$2="Russian",C41,D41)) -> Please answer the questions in this form if the Compressed Air system is present in your plant | B41: Please answer the questions in this form if the Compressed Air system is present in your plant | C41: Просим ответить на вопросы этого формуляра в случае, если у вас есть система сжатого воздуха | D41: Просимо відповідати на запитання цього формуляру в разі, якщо у вас є система стиснутого повітря
A42: =IF(Disclaimer!$C$2="English",B42,IF(Disclaimer!$C$2="Russian",C42,D42)) -> Please answer the questions in this form if the Process Cooling and Refrigeration system is present in your plant | B42: Please answer the questions in this form if the Process Cooling and Refrigeration system is present in your plant | C42: Просим ответить на вопросы этого формуляра в случае, если у вас есть система технологического охлаждения и замораживания | D42: Просимо відповідати на запитання цього формуляру в разі, якщо у вас є система технологічного охолодження та заморожування
A43: =IF(Disclaimer!$C$2="English",B43,IF(Disclaimer!$C$2="Russian",C43,D43)) -> Please answer the questions in this form if the Process Heating system is present in your plant | B43: Please answer the questions in this form if the Process Heating system is present in your plant | C43: Просим ответить на вопросы этого формуляра в случае, если у вас есть система технологического тепла | D43: Просимо відповідати на запитання цього формуляру в разі, якщо у вас є система технологічного обігріву
A44: =IF(Disclaimer!$C$2="English",B44,IF(Disclaimer!$C$2="Russian",C44,D44)) -> Please answer the questions in this form if the Pump system is present in your plant | B44: Please answer the questions in this form if the Pump system is present in your plant | C44: Просим ответить на вопросы этого формуляра в случае, если на Вашей установке есть насосная система | D44: Просимо відповідати на запитання цього формуляру в разі, якщо на вашій установці є насосна система
A45: =IF(Disclaimer!$C$2="English",B45,IF(Disclaimer!$C$2="Russian",C45,D45)) -> Please answer the questions in this form if the Steam Generation Equipment are present in your plant | B45: Please answer the questions in this form if the Steam Generation Equipment are present in your plant | C45: Просим ответить на вопросы этого формуляра в случае, если у вас есть оборудование паропроизводства | D45: Просимо відповідати на запитання цього формуляру в разі, якщо у вас є паровиробне обладнання
A46: =IF(Disclaimer!$C$2="English",B46,IF(Disclaimer!$C$2="Russian",C46,D46)) -> Basic Plant Information | B46: Basic Plant Information | C46: Основные сведения об установке | D46: Основні відомості про установку
A47: =IF(Disclaimer!$C$2="English",B47,IF(Disclaimer!$C$2="Russian",C47,D47)) -> Plant Contact Information: | B47: Plant Contact Information: | C47: Контактные данные: | D47: Контактні дані:
A48: =IF(Disclaimer!$C$2="English",B48,IF(Disclaimer!$C$2="Russian",C48,D48)) -> Corporation Name: | B48: Corporation Name: | C48: Название компании: | D48: Назва компанії:
A49: =IF(Disclaimer!$C$2="English",B49,IF(Disclaimer!$C$2="Russian",C49,D49)) -> Plant Name: | B49: Plant Name: | C49: Наименование установки: | D49: Назва установки:
A50: =IF(Disclaimer!$C$2="English",B50,IF(Disclaimer!$C$2="Russian",C50,D50)) -> Primary Product: | B50: Primary Product: | C50: Основная продукция: | D50: Основна продукція:
A51: =IF(Disclaimer!$C$2="English",B51,IF(Disclaimer!$C$2="Russian",C51,D51)) -> Industry Type: | B51: Industry Type: | C51: Отрасль | D51: Галузь:
A52: =IF(Disclaimer!$C$2="English",B52,IF(Disclaimer!$C$2="Russian",C52,D52)) -> NAICS Code | B52: NAICS Code | C52: Код NAICS: | D52: Код NAICS:
A53: =IF(Disclaimer!$C$2="English",B53,IF(Disclaimer!$C$2="Russian",C53,D53)) -> Specify if other: | B53: Specify if other: | C53: Другое: | D53: Інше:
A54: =IF(Disclaimer!$C$2="English",B54,IF(Disclaimer!$C$2="Russian",C54,D54)) -> Plant's Safety Protocol: | B54: Plant's Safety Protocol: | C54: Протокол ТБ на установке: | D54: Протокол ТБ на установці:
A55: =IF(Disclaimer!$C$2="English",B55,IF(Disclaimer!$C$2="Russian",C55,D55)) -> Specific Problems or Ideas of Interest related to Plant's Energy use: | B55: Specific Problems or Ideas of Interest related to Plant's Energy use: | C55: Конкретные проблемы или идеи относительно использования энергии установки: | D55: Конкретні проблеми або ідеї щодо використання енергії установки:
A56: =IF(Disclaimer!$C$2="English",B56,IF(Disclaimer!$C$2="Russian",C56,D56)) -> Location: | B56: Location: | C56: Место расположения: | D56: Місце розташування:
A57: =IF(Disclaimer!$C$2="English",B57,IF(Disclaimer!$C$2="Russian",C57,D57)) -> Primary Contact for Assessment: | B57: Primary Contact for Assessment: | C57: С кем связаться по вопросам оценки: | D57: Контакти щодо оцінювання:
A58: =IF(Disclaimer!$C$2="English",B58,IF(Disclaimer!$C$2="Russian",C58,D58)) -> Address | B58: Address | C58: Адрес: | D58: Адреса:
A59: =IF(Disclaimer!$C$2="English",B59,IF(Disclaimer!$C$2="Russian",C59,D59)) -> Phone: | B59: Phone: | C59: Телефон: | D59: Телефон:
A60: =IF(Disclaimer!$C$2="English",B60,IF(Disclaimer!$C$2="Russian",C60,D60)) -> Fax-No: | B60: Fax-No: | C60: Факс: | D60: Факс:
A61: =IF(Disclaimer!$C$2="English",B61,IF(Disclaimer!$C$2="Russian",C61,D61)) -> E-mail: | B61: E-mail: | C61: Эл. адрес | D61: електронна пошта
A62: =IF(Disclaimer!$C$2="English",B62,IF(Disclaimer!$C$2="Russian",C62,D62)) -> Plant's Operating Schedule: | B62: Plant's Operating Schedule: | C62: График работы установки: | D62: Графік роботи установки:
A63: =IF(Disclaimer!$C$2="English",B63,IF(Disclaimer!$C$2="Russian",C63,D63)) -> Shift No. | B63: Shift No. | C63: Смена № | D63: Зміна №
A64: =IF(Disclaimer!$C$2="English",B64,IF(Disclaimer!$C$2="Russian",C64,D64)) -> Hours of Operation/ Day | B64: Hours of Operation/ Day | C64: Рабочих часов в сутки | D64: Робочих годин на добу
A65: =IF(Disclaimer!$C$2="English",B65,IF(Disclaimer!$C$2="Russian",C65,D65)) -> Days/Week | B65: Days/Week | C65: Дней в неделю | D65: Днів на тиждень
A66: =IF(Disclaimer!$C$2="English",B66,IF(Disclaimer!$C$2="Russian",C66,D66)) -> Weeks/ Year | B66: Weeks/ Year | C66: Недель в год | D66: Тижнів на рік
A67: =IF(Disclaimer!$C$2="English",B67,IF(Disclaimer!$C$2="Russian",C67,D67)) -> 1 | B67: 1 | C67: 1 | D67: 1
A68: =IF(Disclaimer!$C$2="English",B68,IF(Disclaimer!$C$2="Russian",C68,D68)) -> 2 | B68: 2 | C68: 2 | D68: 2
A69: =IF(Disclaimer!$C$2="English",B69,IF(Disclaimer!$C$2="Russian",C69,D69)) -> 3 | B69: 3 | C69: 3 | D69: 3
A70: =IF(Disclaimer!$C$2="English",B70,IF(Disclaimer!$C$2="Russian",C70,D70)) -> Office Hours | B70: Office Hours | C70: График работы администрации: | D70: Графік роботи офісу:
A71: =IF(Disclaimer!$C$2="English",B71,IF(Disclaimer!$C$2="Russian",C71,D71)) -> Others | B71: Others | C71: Другое | D71: Інше
A72: =IF(Disclaimer!$C$2="English",B72,IF(Disclaimer!$C$2="Russian",C72,D72)) -> Energy Management Questions: | B72: Energy Management Questions: | C72: Вопросы по контролю энергетики: | D72: Запитання щодо управління енергетикою:
A73: =IF(Disclaimer!$C$2="English",B73,IF(Disclaimer!$C$2="Russian",C73,D73)) -> Please select the answers from the drop down list | B73: Please select the answers from the drop down list | C73: Выберите ответы из всплывающего списка | D73: Виберіть відповіді з контекстного меню
A74: =IF(Disclaimer!$C$2="English",B74,IF(Disclaimer!$C$2="Russian",C74,D74)) -> Does your company have a formal written Energy Management Plan? | B74: Does your company have a formal written Energy Management Plan? | C74: Существует ли в Вашей компании официальный письменный план использования энергии? | D74: Чи має ваша компанія офіційний письмовий план використання енергії?
A75: =IF(Disclaimer!$C$2="English",B75,IF(Disclaimer!$C$2="Russian",C75,D75)) -> Have you formed Energy Management Team at your plant? | B75: Have you formed Energy Management Team at your plant? | C75: Создана ли у Вас группа управления энергетикой установки? | D75: Чи створили ви Групу управління енергетикою установки?
A76: =IF(Disclaimer!$C$2="English",B76,IF(Disclaimer!$C$2="Russian",C76,D76)) -> Does your company have a formal method of communication in place for employees? | B76: Does your company have a formal method of communication in place for employees? | C76: Есть ли у Вас в компании официальная процедура передачи сообщений и предложений от сотрудников на местах? | D76: Чи має Ваша компанія формальні методи передання повідомлень з місць від працівників?
A77: =IF(Disclaimer!$C$2="English",B77,IF(Disclaimer!$C$2="Russian",C77,D77)) -> Does your company use life cycle cost analysis to evaluate the economics of Energy Efficient equipment when making new purchase of large system? | B77: Does your company use life cycle cost analysis to evaluate the economics of Energy Efficient equipment when making new purchase of large system? | C77: Использует ли Ваша компания анализ стоимости жизненного цикла для оценки экономических параметров оборудования обеспечения энергоэффективности при закупке новых основных систем установки? | D77: Чи використовує ваша компанія аналіз вартості життєвого циклу для оцінки економічних параметрів обладнання енергоефективності в разі закупівлі нових великих систем?
A78: =IF(Disclaimer!$C$2="English",B78,IF(Disclaimer!$C$2="Russian",C78,D78)) -> Does your company establish required payback periods for energy efficient improvement projects? | B78: Does your company establish required payback periods for energy efficient improvement projects? | C78: Определяются ли Вашей компанией обязательные сроки окупаемости для проектов повышения энергоэффективности? | D78: Чи визначає ваша компанія обов'язкові періоди окупності для проектів підвищення енергоефективності?
A79: =IF(Disclaimer!$C$2="English",B79,IF(Disclaimer!$C$2="Russian",C79,D79)) -> Plant's Energy Consumption & Production Overview | B79: Plant's Energy Consumption & Production Overview | C79: Потребление энергии и обзор продукции установки | D79: Споживання енергії та огляд продукції установки
A80: =IF(Disclaimer!$C$2="English",B80,IF(Disclaimer!$C$2="Russian",C80,D80)) -> Instructions: | B80: Instructions: | C80: Инструкция: | D80: Інструкції:
A81: =IF(Disclaimer!$C$2="English",B81,IF(Disclaimer!$C$2="Russian",C81,D81)) -> Please respond to the following questions on Plant's energy consumption and product overview. | B81: Please respond to the following questions on Plant's energy consumption and product overview. | C81: Просим дать ответы на следующие вопросы по энергопотреблению и обзору продукции установки. | D81: Просимо відповісти на наступні запитання щодо споживання енергії та огляду продукції установки.
A82: =IF(Disclaimer!$C$2="English",B82,IF(Disclaimer!$C$2="Russian",C82,D82)) -> Please select the answer from the drop down list | B82: Please select the answer from the drop down list | C82: Выберите ответ из всплывающего списка | D82: Виберіть відповідь з контекстного списку
A83: =IF(Disclaimer!$C$2="English",B83,IF(Disclaimer!$C$2="Russian",C83,D83)) -> Input values in cells colored in green | B83: Input values in cells colored in green | C83: Вставьте значения в клетки серого цвета | D83: Просимо вставити значення в клітини, позначені сірим
A84: =IF(Disclaimer!$C$2="English",B84,IF(Disclaimer!$C$2="Russian",C84,D84)) -> Select from the drop down menu in the cells colored in pink | B84: Select from the drop down menu in the cells colored in pink | C84: В клетках оранжевого цвета выбирайте ответ из всплывающего списка | D84: В позначених помаранчевим клітинах вибирайте з контекстного списку
A85: =IF(Disclaimer!$C$2="English",B85,IF(Disclaimer!$C$2="Russian",C85,D85)) -> Please DO NOT insert any value in cells colored in grey | B85: Please DO NOT insert any value in cells colored in grey | C85: НЕ ВВОДИТЕ никаких значений в клетки желтого цвета | D85: Просимо НЕ ВНОСИТИ ніяких значень в клітини, позначені жовтим
A86: =IF(Disclaimer!$C$2="English",B86,IF(Disclaimer!$C$2="Russian",C86,D86)) -> Note: | B86: Note: | C86: Примечание: | D86: Примітка:
A87: =IF(Disclaimer!$C$2="English",B87,IF(Disclaimer!$C$2="Russian",C87,D87)) -> Please provide either monthly or annual energy and production data. While most of the PEPEx results can be generated with just the annual data, some of them graphs/tables make use of monthly data. | B87: Please provide either monthly or annual energy and production data. While most of the PEPEx results can be generated with just the annual data, some of them graphs/tables make use of monthly data. | C87: Приведите данные по месячному потреблению электроэнергии, природного газа, пара и других видов топлива, а также производственные данные за 2 последующих года для расчета показателя энергоэффективности (EnPI) Департамента энергетики. | D87: Просимо надати дані щодо місячного споживання, електроенергії, природного газу, пари та інших видів пального та дані виробництва за 2 роки поспіль для розрахунку показника енергоефективності (EnPI) Департаменту енергетики.
A88: =IF(Disclaimer!$C$2="English",B88,IF(Disclaimer!$C$2="Russian",C88,D88)) -> Facility's Energy and Production Data: | B88: Facility's Energy and Production Data: | C88: Производство энергии и данных: | D88: Виробництво енергії і даних:
A89: =IF(Disclaimer!$C$2="English",B89,IF(Disclaimer!$C$2="Russian",C89,D89)) -> Year 1 ( Baseline Year): | B89: Year 1 ( Baseline Year): | C89: Год 1 ( Базисный год): | D89: Рік 1 ( Базисний рік):
A90: =IF(Disclaimer!$C$2="English",B90,IF(Disclaimer!$C$2="Russian",C90,D90)) -> Month | B90: Month | C90: Месяц | D90: Місяць
A91: =IF(Disclaimer!$C$2="English",B91,IF(Disclaimer!$C$2="Russian",C91,D91)) -> Monthly Site Electricity Consumption(0) | B91: =CONCATENATE("Monthly Site Electricity Consumption", "(",List!G39,")") -> Monthly Site Electricity Consumption(0) | C91: =CONCATENATE("Месячное потребление энергии установкой","(",List!G39,")") -> Месячное потребление энергии установкой(0) | D91: =CONCATENATE("Місячне споживання енергії на об'єкті","(",List!G39,")") -> Місячне споживання енергії на об'єкті(0)
A92: =IF(Disclaimer!$C$2="English",B92,IF(Disclaimer!$C$2="Russian",C92,D92)) -> Total Monthly Electricity Cost($) | B92: =CONCATENATE("Total Monthly Electricity Cost", "(",List!$G$48,")") -> Total Monthly Electricity Cost($) | C92: =CONCATENATE("Общая стоимость электроэнергии в месяц", "(",List!$G$48,")") -> Общая стоимость электроэнергии в месяц($) | D92: =CONCATENATE("Загальна вартість електроенергії на місяць ", "(",List!$G$48,")") -> Загальна вартість електроенергії на місяць ($)
A93: =IF(Disclaimer!$C$2="English",B93,IF(Disclaimer!$C$2="Russian",C93,D93)) -> Monthly Natural Gas Consumption(0) | B93: =CONCATENATE("Monthly Natural Gas Consumption", "(",List!$G$40,")") -> Monthly Natural Gas Consumption(0) | C93: =CONCATENATE("Месячное потребление природного газа", "(",List!$G$40,")") -> Месячное потребление природного газа(0) | D93: =CONCATENATE("Місячне споживання природного газу ", "(",List!$G$40,")") -> Місячне споживання природного газу (0)
A94: =IF(Disclaimer!$C$2="English",B94,IF(Disclaimer!$C$2="Russian",C94,D94)) -> Total Monthly Natural Gas Cost ($) | B94: =CONCATENATE("Total Monthly Natural Gas Cost ", "(",List!$G$48,")") -> Total Monthly Natural Gas Cost ($) | C94: =CONCATENATE("Общая стоимость природного газа в месяц", "(",List!$G$48,")") -> Общая стоимость природного газа в месяц($) | D94: =CONCATENATE("Загальна вартість природного газу на місяць ", "(",List!$G$48,")") -> Загальна вартість природного газу на місяць ($)
A95: =IF(Disclaimer!$C$2="English",B95,IF(Disclaimer!$C$2="Russian",C95,D95)) -> Monthly Steam Consumption (0) | B95: =CONCATENATE("Monthly Steam Consumption ", "(",List!$G$41,")") -> Monthly Steam Consumption (0) | C95: =CONCATENATE("Месячное потребление пара ", "(",List!$G$41,")") -> Месячное потребление пара (0) | D95: =CONCATENATE("Місячне споживання пари", "(",List!$G$41,")") -> Місячне споживання пари(0)
A96: =IF(Disclaimer!$C$2="English",B96,IF(Disclaimer!$C$2="Russian",C96,D96)) -> Total Monthly Steam Consumption Cost ($) | B96: =CONCATENATE("Total Monthly Steam Consumption Cost ", "(",List!$G$48,")") -> Total Monthly Steam Consumption Cost ($) | C96: =CONCATENATE("Общая стоимость пара в месяц", "(",List!$G$48,")") -> Общая стоимость пара в месяц($) | D96: =CONCATENATE("Загальна вартість пари на місяць", "(",List!$G$48,")") -> Загальна вартість пари на місяць($)
A97: =IF(Disclaimer!$C$2="English",B97,IF(Disclaimer!$C$2="Russian",C97,D97)) -> Monthly Other Fuel Consumption (0) | B97: =CONCATENATE("Monthly Other Fuel Consumption ", "(",List!$G$42,")") -> Monthly Other Fuel Consumption (0) | C97: =CONCATENATE("Месячное потребление других видов топлива", "(",List!$G$42,")") -> Месячное потребление других видов топлива(0) | D97: =CONCATENATE("Місячне споживання інших видів пального ", "(",List!$G$42,")") -> Місячне споживання інших видів пального (0)
A98: =IF(Disclaimer!$C$2="English",B98,IF(Disclaimer!$C$2="Russian",C98,D98)) -> Total Monthly Other Fuel Cost ($) | B98: =CONCATENATE("Total Monthly Other Fuel Cost ", "(",List!$G$48,")") -> Total Monthly Other Fuel Cost ($) | C98: =CONCATENATE("Общая стоимость других видов топлива в месяц ", "(",List!$G$48,")") -> Общая стоимость других видов топлива в месяц ($) | D98: =CONCATENATE("Загальна вартість інших видів пального на місяць ", "(",List!$G$48,")") -> Загальна вартість інших видів пального на місяць ($)
A99: =IF(Disclaimer!$C$2="English",B99,IF(Disclaimer!$C$2="Russian",C99,D99)) -> Monthly Production (Product 1) | B99: Monthly Production (Product 1) | C99: Месячное производство (продукт 1) | D99: Місячне виробництво (продукт 1)
A100: =IF(Disclaimer!$C$2="English",B100,IF(Disclaimer!$C$2="Russian",C100,D100)) -> Monthly Production (Product 2) | B100: Monthly Production (Product 2) | C100: Месячное производство (продукт 2) | D100: Місячне виробництво (продукт 2)
A101: =IF(Disclaimer!$C$2="English",B101,IF(Disclaimer!$C$2="Russian",C101,D101)) -> Monthly Production (Product 3) | B101: Monthly Production (Product 3) | C101: Месячное производство (продукт 3) | D101: Місячне виробництво (продукт 3)
A102: =IF(Disclaimer!$C$2="English",B102,IF(Disclaimer!$C$2="Russian",C102,D102)) -> January | B102: January | C102: Январь | D102: Січень
A103: =IF(Disclaimer!$C$2="English",B103,IF(Disclaimer!$C$2="Russian",C103,D103)) -> February | B103: February | C103: Февраль | D103: Лютий
A104: =IF(Disclaimer!$C$2="English",B104,IF(Disclaimer!$C$2="Russian",C104,D104)) -> March | B104: March | C104: Март | D104: Березень
A105: =IF(Disclaimer!$C$2="English",B105,IF(Disclaimer!$C$2="Russian",C105,D105)) -> April | B105: April | C105: Апрель | D105: Квітень
A106: =IF(Disclaimer!$C$2="English",B106,IF(Disclaimer!$C$2="Russian",C106,D106)) -> May | B106: May | C106: Май | D106: Травень
A107: =IF(Disclaimer!$C$2="English",B107,IF(Disclaimer!$C$2="Russian",C107,D107)) -> June | B107: June | C107: Июнь | D107: Червень
A108: =IF(Disclaimer!$C$2="English",B108,IF(Disclaimer!$C$2="Russian",C108,D108)) -> July | B108: July | C108: Июль | D108: Липень
A109: =IF(Disclaimer!$C$2="English",B109,IF(Disclaimer!$C$2="Russian",C109,D109)) -> August | B109: August | C109: Август | D109: Серпень
A110: =IF(Disclaimer!$C$2="English",B110,IF(Disclaimer!$C$2="Russian",C110,D110)) -> September | B110: September | C110: Сентябрь | D110: Вересень
A111: =IF(Disclaimer!$C$2="English",B111,IF(Disclaimer!$C$2="Russian",C111,D111)) -> October | B111: October | C111: Октябрь | D111: Жовтень
A112: =IF(Disclaimer!$C$2="English",B112,IF(Disclaimer!$C$2="Russian",C112,D112)) -> November | B112: November | C112: Ноябрь | D112: Листопад
A113: =IF(Disclaimer!$C$2="English",B113,IF(Disclaimer!$C$2="Russian",C113,D113)) -> December | B113: December | C113: Декабрь | D113: Грудень
A114: =IF(Disclaimer!$C$2="English",B114,IF(Disclaimer!$C$2="Russian",C114,D114)) -> Year 2: | B114: Year 2: | C114: Год 2: | D114: Рік 2:
A115: =IF(Disclaimer!$C$2="English",B115,IF(Disclaimer!$C$2="Russian",C115,D115)) -> Year 1 - Grand Total | B115: Year 1 - Grand Total | C115: Год 1 - итого | D115: Рік 1 - загалом
A116: =IF(Disclaimer!$C$2="English",B116,IF(Disclaimer!$C$2="Russian",C116,D116)) -> Year 2- Grand Total | B116: Year 2- Grand Total | C116: Год 2 - итого | D116: Рік 2 - загалом
A117: =IF(Disclaimer!$C$2="English",B117,IF(Disclaimer!$C$2="Russian",C117,D117)) -> 1) For each energy stream you will need to enter account information for each meter for which you have data. For each account enter a Meter ID or name, enter the Annual Energy consumption, Energy Type, Total Annual Cost for 2 consecutive year. | B117: 1) For each energy stream you will need to enter account information for each meter for which you have data. For each account enter a Meter ID or name, enter the Annual Energy consumption, Energy Type, Total Annual Cost for 2 consecutive year. | C117: 1) По каждому энергоносителю введите показания все имеющихся счетчиков. По каждому показанию укажите тип энергоносителя, номер или наименование счетчика, введите значение годового потребления энергии установкой, общую стоимость за год и показатели годового производства. | D117: 1) Для кожного енергоносія необхідно внести показання всіх лічильників, які ви маєте. Для кожного показання зазначте тип енергоносія, номер або назву лічильника, внесіть значення річного споживання енергії на об'єкті, загальну річну вартість та дані про річне виробництво.
A118: =IF(Disclaimer!$C$2="English",B118,IF(Disclaimer!$C$2="Russian",C118,D118)) -> 2) Other Fuels include Coal, Diesel or nay other fuel that is used in Plant | B118: 2) Other Fuels include Coal, Diesel or nay other fuel that is used in Plant | C118: 2) К другим видам топлива относятся уголь, дизтопливо или любое другое топлива, используемое в установке. | D118: 2) До інших видів пального відносяться вугілля, дизельне пальне або будь-яке інше пальне, що використовується на установці.
A119: =IF(Disclaimer!$C$2="English",B119,IF(Disclaimer!$C$2="Russian",C119,D119)) -> Total Annual Energy Consumption for the Baseline Year | B119: Total Annual Energy Consumption for the Baseline Year | C119: Общее годовое потребление энергии для базисного года: | D119: Загальне річне споживання енергії для базисного року:
A120: =IF(Disclaimer!$C$2="English",B120,IF(Disclaimer!$C$2="Russian",C120,D120)) -> Energy Type | B120: Energy Type | C120: Вид энергии | D120: Тип енергії
A121: =IF(Disclaimer!$C$2="English",B121,IF(Disclaimer!$C$2="Russian",C121,D121)) -> Meter ID | B121: Meter ID | C121: Номер счетчика | D121: Номер лічильнику
A122: =IF(Disclaimer!$C$2="English",B122,IF(Disclaimer!$C$2="Russian",C122,D122)) -> Annual Energy Use (SITE) | B122: Annual Energy Use (SITE) | C122: Годовое потребление (установка) | D122: Річне споживання (об'єкт)
A123: =IF(Disclaimer!$C$2="English",B123,IF(Disclaimer!$C$2="Russian",C123,D123)) -> Unit | B123: Unit | C123: Ед. изм. | D123: Од. вим.
A124: =IF(Disclaimer!$C$2="English",B124,IF(Disclaimer!$C$2="Russian",C124,D124)) -> Annual Cost of Energy($) | B124: =CONCATENATE("Annual Cost of Energy", "(",List!$G$48,")") -> Annual Cost of Energy($) | C124: =CONCATENATE("Годовая стоимость энергии", "(",List!$G$48,")") -> Годовая стоимость энергии($) | D124: =CONCATENATE("Річна вартість енергії", "(",List!$G$48,")") -> Річна вартість енергії($)
A125: =IF(Disclaimer!$C$2="English",B125,IF(Disclaimer!$C$2="Russian",C125,D125)) -> Unit Energy Price | B125: Unit Energy Price | C125: Стоимость единицы энергии
A126: =IF(Disclaimer!$C$2="English",B126,IF(Disclaimer!$C$2="Russian",C126,D126)) -> Annual Production (Product 1) | B126: Annual Production (Product 1) | C126: Годовое производство (продукт 1) | D126: Річне виробництво (продукт 1)
A127: =IF(Disclaimer!$C$2="English",B127,IF(Disclaimer!$C$2="Russian",C127,D127)) -> Annual Production (Product 2) | B127: Annual Production (Product 2) | C127: Годовое производство (продукт 2) | D127: Річне виробництво (продукт 2)
A128: =IF(Disclaimer!$C$2="English",B128,IF(Disclaimer!$C$2="Russian",C128,D128)) -> Annual Production (Product 3 ) | B128: Annual Production (Product 3 ) | C128: Годовое производство (продукт 3 ) | D128: Річне виробництво (продукт 3)
A129: =IF(Disclaimer!$C$2="English",B129,IF(Disclaimer!$C$2="Russian",C129,D129)) -> Electricity | B129: Electricity | C129: Электроэнергия | D129: Електроенергія
A130: =IF(Disclaimer!$C$2="English",B130,IF(Disclaimer!$C$2="Russian",C130,D130)) -> Natural Gas | B130: Natural Gas | C130: Природный газ | D130: Природний газ
A131: =IF(Disclaimer!$C$2="English",B131,IF(Disclaimer!$C$2="Russian",C131,D131)) -> Steam | B131: Steam | C131: Пар | D131: Пара
A132: =IF(Disclaimer!$C$2="English",B132,IF(Disclaimer!$C$2="Russian",C132,D132)) -> Other Fuel | B132: Other Fuel | C132: Другие виды топлива | D132: Інші види пального
A133: =IF(Disclaimer!$C$2="English",B133,IF(Disclaimer!$C$2="Russian",C133,D133)) -> Unit Cost of Energy: | B133: Unit Cost of Energy: | C133: Стоимость единицы энергии: | D133: Вартість одиниці енергії:
A134: =IF(Disclaimer!$C$2="English",B134,IF(Disclaimer!$C$2="Russian",C134,D134)) -> Energy Type | B134: Energy Type | C134: Вид энергии | D134: Тип енергії
A135: =IF(Disclaimer!$C$2="English",B135,IF(Disclaimer!$C$2="Russian",C135,D135)) -> 1) Please provide unit costs for different energy types used in your plant if the associated costs were not provided in the section above. | B135: 1) Please provide unit costs for different energy types used in your plant if the associated costs were not provided in the section above. | C135: 1) Укажите стоимость единицы энергии для ее разных видов - электроэнергии, природного газа, пара и других видов топлива, используемых Вашей | D135: 1) Просимо навести вартість одиниці енергії для її різних видів - електроенергії, природного газу, пари та інших видів пального, що використовуються у вас на установці.
A136: =IF(Disclaimer!$C$2="English",B136,IF(Disclaimer!$C$2="Russian",C136,D136)) -> 2) Please provide steam cost only if user is buying steam from an utility or a third-party enterprise. | B136: 2) Please provide steam cost only if user is buying steam from an utility or a third-party enterprise. | C136: 2) Коэффициенты преобразования "объект-источник" по умолчанию приведены ниже. Пользователь может ввести свое собственное значение | D136: 2) Вартість пари наводити тільки в разі, якщо користувач закуповує пару в комунальному підприємстві або у третьої сторони.
A137: =IF(Disclaimer!$C$2="English",B137,IF(Disclaimer!$C$2="Russian",C137,D137)) -> Energy Type | B137: Energy Type | C137: Вид энергии | D137: Тип енергії
A138: =IF(Disclaimer!$C$2="English",B138,IF(Disclaimer!$C$2="Russian",C138,D138)) -> Unit Price | B138: Unit Price | C138: Цена за единицу | D138: Ціна за одиницю
A139: =IF(Disclaimer!$C$2="English",B139,IF(Disclaimer!$C$2="Russian",C139,D139)) -> Site to Source Conversion Factors | B139: Site to Source Conversion Factors | C139: Коэффициенты преобразования "объект-источник": | D139: Site to Source Conversion Factors:
A140: =IF(Disclaimer!$C$2="English",B140,IF(Disclaimer!$C$2="Russian",C140,D140)) -> Source Energy factor is used to calculate the source energy for each energy stream. Source energy incorporates all transmission, delivery and production losses associated with each energy stream. It is calculated by all multiplying the site energy by source energy factor. The default source factor for each stream is provided , based on those used in Energy Star Portfolio Manager. User may use their own source factor for each energy stream e.g. to account for electricity produced from co-generation, renewable sources, etc. Note: PEPEx provides results in site energy unless explicitily stated. | B140: Source Energy factor is used to calculate the source energy for each energy stream. Source energy incorporates all transmission, delivery and production losses associated with each energy stream. It is calculated by all multiplying the site energy by source energy factor. The default source factor for each stream is provided , based on those used in Energy Star Portfolio Manager. User may use their own source factor for each energy stream e.g. to account for electricity produced from co-generation, renewable sources, etc. Note: PEPEx provides results in site energy unless explicitily stated. | C140: Коэффициент энергоносителя используется для расчета энергетики по каждому носителю. В энергетике источника учитываются все потери при передаче, доставке и производству по каждому носителю. Расчет производится путем умножения энергетического значения объекта на коэффициент для данного энергоносителя. Значения коэффициентов для энергоносителей по умолчанию приведены по носителям на основе значений, используемых в программе Energy Star Portfolio Manager. Пользователь может воспользоваться своим собственным значением коэффициента для каждого энергоносителя, например, с учетом электроэнергии, полученной за счет когенерации, от возобновляемых источников и т.п. | D140: Коефіцієнт джерела енергії використовується для розрахунку джерела енергії для кожного носія. В джерелі енергії враховуються всі втрати передавання, постачання та виробництва для кожного носія. Розрахунок робиться шляхом множення енергії об'єкту на коефіцієнт для енергоносія. Значення коефіцієнтів для енергоносіїв за замовчуванням надані для кожного носія на основі значень, що використовуються в програмі Energy Star Portfolio Manager. Користувач може використати свій власний коефіцієнт носія для кожного з енергоносіїв, наприклад враховувати електроенергію, вироблену шляхом ко-генерації, від відновлювальних джерел, тощо.
A141: =IF(Disclaimer!$C$2="English",B141,IF(Disclaimer!$C$2="Russian",C141,D141)) -> Site-to-Source Conversion Factor | B141: Site-to-Source Conversion Factor | C141: Коэффициент преобразования "объект - источник" | D141: Коефіцієнт перетворення "об'єкт - джерело"
A142: =IF(Disclaimer!$C$2="English",B142,IF(Disclaimer!$C$2="Russian",C142,D142)) -> Total Annual Energy Consumption | B142: Total Annual Energy Consumption
A143: =IF(Disclaimer!$C$2="English",B143,IF(Disclaimer!$C$2="Russian",C143,D143)) -> Annual Energy Consumption (SOURCE) MJ | B143: Annual Energy Consumption (SOURCE) MJ | C143: Annual Energy Consumption (SOURCE) МДж | D143: Annual Energy Consumption (SOURCE) МДж
A144: =IF(Disclaimer!$C$2="English",B144,IF(Disclaimer!$C$2="Russian",C144,D144)) -> Energy Use Systems Used in the Plant | B144: Energy Use Systems Used in the Plant | C144: Энергопотребляющие системы, используемые на Вашей установке | D144: Системи енерговикористання, що використовуються на вашій установці
A145: =IF(Disclaimer!$C$2="English",B145,IF(Disclaimer!$C$2="Russian",C145,D145)) -> Please respond to the following questions on energy use systems used in the plant. | B145: Please respond to the following questions on energy use systems used in the plant. | C145: Просим дать ответы на следующие вопросы по энергопотребляющим системам, используемым на Вашей установке. | D145: Просимо відповісти на наступні запитання щодо систем енерговикористання, що використовуються на вашій установці.
A146: =IF(Disclaimer!$C$2="English",B146,IF(Disclaimer!$C$2="Russian",C146,D146)) -> Select Not Applicable (N/A) if the system is not present in your plant. | B146: Select Not Applicable (N/A) if the system is not present in your plant. | C146: Выбирайте "неприменимо" (N/A) для вопросов, не имеющих отношения к вашей установке | D146: Вибирайте "не стосується" (N/A) для запитань, які не стосуються системи на вашій установці
A147: =IF(Disclaimer!$C$2="English",B147,IF(Disclaimer!$C$2="Russian",C147,D147)) -> 1) Please select the systems present in your plant and choose the associated energy sources in Cells C24 - E35. | B147: 1) Please select the systems present in your plant and choose the associated energy sources in Cells C24 - E35. | C147: 1)Выберите имеющиеся на Вашей установке системы. Выберите энергопотребляющие системы, используемые энергоемким оборудованием установки. | D147: Виберіть системи, наявні на вашій установці. Виберіть енергетичні системи, що використовуються річним енергоємним обладнанням на вашій установці.
A148: =IF(Disclaimer!$C$2="English",B148,IF(Disclaimer!$C$2="Russian",C148,D148)) -> 2) If known, provide the percent energy distribution by fuel type for the different systems used in your plant in cells F24 - G35. PEPEx uses "Default" numbers if this information is not provided. | B148: 2) If known, provide the percent energy distribution by fuel type for the different systems used in your plant in cells F24 - G35. PEPEx uses "Default" numbers if this information is not provided. | C148: 2)Укажите распределение энергии в процентах по типам топлива для систем, используемых на Вашей установке, в таблице Энергопотребляющие системы, используемые в установке (определяются пользователем). | D148: Наведіть розподіл енергії у відсотках за типами пального для різних систем, що використовуються на вашій установці, в таблиці Системи енерговикористання, що використовуються на установці (визначені користувачем).
A149: =IF(Disclaimer!$C$2="English",B149,IF(Disclaimer!$C$2="Russian",C149,D149)) -> 3) The table Energy Use Systems Used in the Plant (Default) provides U.S. default percentages for you based on the industry that you selected in the Basic Information sheet (Tab 2). | B149: 3) The table Energy Use Systems Used in the Plant (Default) provides U.S. default percentages for you based on the industry that you selected in the Basic Information sheet (Tab 2). | C149: 3) В таблице Энергопотребляющие системы, используемые в установке (по умолчанию) для Вас приведены принятые по умолчанию в США значения для отрасли, выбранной Вами в формуляре базовой информации (табл. 2). Вы можете воспользоваться этими значениями по умолчанию, если у Вас нет точных данных о доле, используемой каждой энергопотребляющей системой. | D149: В таблиці Системи енерговикористання, що використовуються на установці (за замовчуванням) наведені для вас американські значення для галузі, що були обрані Вами в формулярі базової інформації (таб.2). Ви можете скористатися цими значеннями за замовчуванням, якщо у вас немає точних даних про фактичний відсоток що використовується кожною енергоспоживаючою системою.
A150: =IF(Disclaimer!$C$2="English",B150,IF(Disclaimer!$C$2="Russian",C150,D150)) -> 4) Default energy distribution values are based on the Energy Information Administration 2010 Manufacturing Energy Consumption Survey (MECS) for all industries except cement. Default energy distributions for the cement industry were updated to more accurately portray the industry norm by Dr. Ali Hasanbeigi of the Lawrence Berkeley National Laboratory on December 7, 2011. | B150: 4) Default energy distribution values are based on the Energy Information Administration 2010 Manufacturing Energy Consumption Survey (MECS) for all industries except cement. Default energy distributions for the cement industry were updated to more accurately portray the industry norm by Dr. Ali Hasanbeigi of the Lawrence Berkeley National Laboratory on December 7, 2011. | C150: 4) Значения разбивки энергии по умолчанию рассчитывались на основе Обзора потребления энергии на производстве за 2010 год (MECS) Администрации по вопросам данных энергетики для всех отраслей за исключением производства цемента. Значения разбивки энергии по умолчанию для цементной промышленности были обновлены для более точного отображения нормативов этой отрасли доктором Ali Hasanbeigi из Национальной лаборатории Лоуренса Беркли 7 декабря 2011 года. | D150: Значення розподілу енергії за замовчуванням розраховані на основі Огляду споживання енергії на виробництві від 2010 року (MECS) Адміністрації з питань даних енергетики для всіх галузей, за винятком вироблення цементу. Значення розподілу енергії за замовчуванням для цементної промисловості були оновлені для того, щоб точніше відобразити нормативи цієї галузі, доктором Ali Hasanbeigi з Національної лабораторії Лоуренса Берклі 7 грудня 2011 року.
A151: =IF(Disclaimer!$C$2="English",B151,IF(Disclaimer!$C$2="Russian",C151,D151)) -> 5) If the user wants to use default value kindly select the systems present in your plant and the type of energy source used for the system (in cells Cells C24 - E35.) and leave the cells F24 - G35 blank. | B151: 5) If the user wants to use default value kindly select the systems present in your plant and the type of energy source used for the system (in cells Cells C24 - E35.) and leave the cells F24 - G35 blank. | C151: 5) Если пользователь хочет использовать значение по умолчанию, просим обратиться к таблице Энергопотребляющие системы, используемые в | D151: Якщо користувач хоче скористатися значенням за замовчуванням, просимо скористатися таблицею Системи енерговикористання, що використовуються на установці (За замовчуванням) для вибору тих систем, що наявні на вашій установці, і значення за замочуванням для вашої галузі будуть використані для розрахунку енергоспоживання кожної із систем.
A152: =IF(Disclaimer!$C$2="English",B152,IF(Disclaimer!$C$2="Russian",C152,D152)) -> Energy Consumption Systems Utilized in the Plant - User Defined: | B152: Energy Consumption Systems Utilized in the Plant - User Defined: | C152: Энергопотребляющие системы, используемые на установке (по определению пользователя): | D152: Системи енерговикористання, що використовуються на установці (визначені користувачем):
A153: =IF(Disclaimer!$C$2="English",B153,IF(Disclaimer!$C$2="Russian",C153,D153)) -> System | B153: System | C153: Тип системы | D153: Тип системи
A154: =IF(Disclaimer!$C$2="English",B154,IF(Disclaimer!$C$2="Russian",C154,D154)) -> Energy System in use (Please select Yes/No) | B154: Energy System in use (Please select Yes/No) | C154: Используемая энергопотребл. система (выберите Yes/No) | D154: енергетична системи у використанні (Виберіть Yes/No)
A155: =IF(Disclaimer!$C$2="English",B155,IF(Disclaimer!$C$2="Russian",C155,D155)) -> Primary Energy Source | B155: Primary Energy Source | C155: Первичный источник энергии | D155: Первинне джерело енергії
A156: =IF(Disclaimer!$C$2="English",B156,IF(Disclaimer!$C$2="Russian",C156,D156)) -> Secondary Energy Source | B156: Secondary Energy Source | C156: Вторичный источник энергии | D156: Вторинне джерело енергії
A157: =IF(Disclaimer!$C$2="English",B157,IF(Disclaimer!$C$2="Russian",C157,D157)) -> % Primary Energy Source | B157: % Primary Energy Source | C157: % первичного источника энергии | D157: % первинного джерела енергії
A158: =IF(Disclaimer!$C$2="English",B158,IF(Disclaimer!$C$2="Russian",C158,D158)) -> % Secondary Energy Source | B158: % Secondary Energy Source | C158: % вторичного источника энергии | D158: % вторинного джерела енергії
A159: =IF(Disclaimer!$C$2="English",B159,IF(Disclaimer!$C$2="Russian",C159,D159)) -> Annual Consumption(0) | B159: =CONCATENATE("Annual Consumption", "(",List!$G$43,")") -> Annual Consumption(0) | C159: =CONCATENATE("Годичное потребление", "(",List!$G$43,")") -> Годичное потребление(0) | D159: =CONCATENATE("Річне споживання", "(",List!$G$43,")") -> Річне споживання(0)
